Workbook

Sheet Sæson statistik
A1: Sæson statistik 2010
A3: Antal runder: | B3: =('Runde 1'!J1+'Runde 2'!J1+'Runde 3'!J1+'Runde 4'!J1+'Runde 5'!J1+'Runde 6'!J1+'Runde 7'!J1+'Runde 8'!J1+'Runde 9'!J1+'Runde 10'!J1+'Runde 11'!J1+'Runde 12'!J1+'Runde 13'!J1+'Runde 14'!J1+'Runde 15'!J1+'Runde 16'!J1+'Runde 17'!J1+'Runde 18'!J1+'Runde 19'!J1+'Runde 20'!J1+'Runde 21'!J1+'Runde 22'!J1+'Runde 23'!J1+'Runde 24'!J1+'Runde 25'!J1+'Runde 26'!J1+'Runde 27'!J1+'Runde 28'!J1+'Runde 29'!J1+'Runde 30'!J1) -> 0
A5: Gennemsnitlige scores i løbet af sæsonen:
A7: Scoring:
A8: Brutto Score | B8: =IF(B3=0,"",SUM('Runde 1'!E25,'Runde 2'!E25,'Runde 3'!E25,'Runde 4'!E25,'Runde 5'!E25,'Runde 6'!E25,'Runde 7'!E25,'Runde 8'!E25,'Runde 9'!E25,'Runde 10'!E25,'Runde 11'!E25,'Runde 12'!E25,'Runde 13'!E25,'Runde 14'!E25,'Runde 15'!E25,'Runde 16'!E25,'Runde 17'!E25,'Runde 18'!E25,'Runde 19'!E25,'Runde 20'!E25,'Runde 21'!E25,'Runde 22'!E25,'Runde 23'!E25,'Runde 24'!E25,'Runde 25'!E25,'Runde 26'!E25,'Runde 27'!E25,'Runde 27'!E25,'Runde 28'!E25,'Runde 29'!E25,'Runde 30'!E25)/B3) -> 
A9: Netto Score | B9: =IF(B3=0,"",SUM('Runde 1'!F25,'Runde 2'!F25,'Runde 3'!F25,'Runde 4'!F25,'Runde 5'!F25,'Runde 6'!F25,'Runde 7'!F25,'Runde 8'!F25,'Runde 9'!F25,'Runde 10'!F25,'Runde 11'!F25,'Runde 12'!F25,'Runde 13'!F25,'Runde 14'!F25,'Runde 15'!F25,'Runde 16'!F25,'Runde 17'!F25,'Runde 18'!F25,'Runde 19'!F25,'Runde 20'!F25,'Runde 21'!F25,'Runde 22'!F25,'Runde 23'!F25,'Runde 24'!F25,'Runde 25'!F25,'Runde 26'!F25,'Runde 27'!F25,'Runde 27'!F25,'Runde 28'!F25,'Runde 29'!F25,'Runde 30'!F25)/B3) -> 
A10: Eagles/runde | B10: =IF(B3=0,"",SUM('Runde 1'!W25,'Runde 2'!W25,'Runde 3'!W25,'Runde 4'!W25,'Runde 5'!W25,'Runde 6'!W25,'Runde 7'!W25,'Runde 8'!W25,'Runde 9'!W25,'Runde 10'!W25,'Runde 11'!W25,'Runde 12'!W25,'Runde 13'!W25,'Runde 14'!W25,'Runde 15'!W25,'Runde 16'!W25,'Runde 17'!W25,'Runde 18'!W25,'Runde 19'!W25,'Runde 20'!W25,'Runde 21'!W25,'Runde 22'!W25,'Runde 23'!W25,'Runde 24'!W25,'Runde 25'!W25,'Runde 26'!W25,'Runde 27'!W25,'Runde 27'!W25,'Runde 28'!W25,'Runde 29'!W25,'Runde 30'!W25)/B3) -> 
A11: Birdies/runde | B11: =IF(B3=0,"",SUM('Runde 1'!X25,'Runde 2'!X25,'Runde 3'!X25,'Runde 4'!X25,'Runde 5'!X25,'Runde 6'!X25,'Runde 7'!X25,'Runde 8'!X25,'Runde 9'!X25,'Runde 10'!X25,'Runde 11'!X25,'Runde 12'!X25,'Runde 13'!X25,'Runde 14'!X25,'Runde 15'!X25,'Runde 16'!X25,'Runde 17'!X25,'Runde 18'!X25,'Runde 19'!X25,'Runde 20'!X25,'Runde 21'!X25,'Runde 22'!X25,'Runde 23'!X25,'Runde 24'!X25,'Runde 25'!X25,'Runde 26'!X25,'Runde 27'!X25,'Runde 27'!X25,'Runde 28'!X25,'Runde 29'!X25,'Runde 30'!X25)/B3) -> 
A12: Bogeys/runde | B12: =IF(B3=0,"",SUM('Runde 1'!Y25,'Runde 2'!Y25,'Runde 3'!Y25,'Runde 4'!Y25,'Runde 5'!Y25,'Runde 6'!Y25,'Runde 7'!Y25,'Runde 8'!Y25,'Runde 9'!Y25,'Runde 10'!Y25,'Runde 11'!Y25,'Runde 12'!Y25,'Runde 13'!Y25,'Runde 14'!Y25,'Runde 15'!Y25,'Runde 16'!Y25,'Runde 17'!Y25,'Runde 18'!Y25,'Runde 19'!Y25,'Runde 20'!Y25,'Runde 21'!Y25,'Runde 22'!Y25,'Runde 23'!Y25,'Runde 24'!Y25,'Runde 25'!Y25,'Runde 26'!Y25,'Runde 27'!Y25,'Runde 27'!Y25,'Runde 28'!Y25,'Runde 29'!Y25,'Runde 30'!Y25)/B3) -> 
A13: Værre/runde | B13: =IF(B3=0,"",SUM('Runde 1'!Z25,'Runde 2'!Z25,'Runde 3'!Z25,'Runde 4'!Z25,'Runde 5'!Z25,'Runde 6'!Z25,'Runde 7'!Z25,'Runde 8'!Z25,'Runde 9'!Z25,'Runde 10'!Z25,'Runde 11'!Z25,'Runde 12'!Z25,'Runde 13'!Z25,'Runde 14'!Z25,'Runde 15'!Z25,'Runde 16'!Z25,'Runde 17'!Z25,'Runde 18'!Z25,'Runde 19'!Z25,'Runde 20'!Z25,'Runde 21'!Z25,'Runde 22'!Z25,'Runde 23'!Z25,'Runde 24'!Z25,'Runde 25'!Z25,'Runde 26'!Z25,'Runde 27'!Z25,'Runde 27'!Z25,'Runde 28'!Z25,'Runde 29'!Z25,'Runde 30'!Z25)/B3) -> 
A15: Putting:
A16: Putts/runde | B16: =IF(B3=0,"",SUM('Runde 1'!P25,'Runde 2'!P25,'Runde 3'!P25,'Runde 4'!P25,'Runde 5'!P25,'Runde 6'!P25,'Runde 7'!P25,'Runde 8'!P25,'Runde 9'!P25,'Runde 10'!P25,'Runde 11'!P25,'Runde 12'!P25,'Runde 13'!P25,'Runde 14'!P25,'Runde 15'!P25,'Runde 16'!P25,'Runde 17'!P25,'Runde 18'!P25,'Runde 19'!P25,'Runde 20'!P25,'Runde 21'!P25,'Runde 22'!P25,'Runde 23'!P25,'Runde 24'!P25,'Runde 25'!P25,'Runde 26'!P25,'Runde 27'!P25,'Runde 27'!P25,'Runde 28'!P25,'Runde 29'!P25,'Runde 30'!P25)/B3) -> 
A17: Putts/GIR | B17: =IF(B3=0,"",SUM('Runde 1'!V25,'Runde 2'!V25,'Runde 3'!V25,'Runde 4'!V25,'Runde 5'!V25,'Runde 6'!V25,'Runde 7'!V25,'Runde 8'!V25,'Runde 9'!V25,'Runde 10'!V25,'Runde 11'!V25,'Runde 12'!V25,'Runde 13'!V25,'Runde 14'!V25,'Runde 15'!V25,'Runde 16'!V25,'Runde 17'!V25,'Runde 18'!V25,'Runde 19'!V25,'Runde 20'!V25,'Runde 21'!V25,'Runde 22'!V25,'Runde 23'!V25,'Runde 24'!V25,'Runde 25'!V25,'Runde 26'!V25,'Runde 27'!V25,'Runde 27'!V25,'Runde 28'!V25,'Runde 29'!V25,'Runde 30'!V25)/B3) -> 
A18: 3+ Putts/runde | B18: =IF(B3=0,"",SUM('Runde 1'!AB25,'Runde 2'!AB25,'Runde 3'!AB25,'Runde 4'!AB25,'Runde 5'!AB25,'Runde 6'!AB25,'Runde 7'!AB25,'Runde 8'!AB25,'Runde 9'!AB25,'Runde 10'!AB25,'Runde 11'!AB25,'Runde 12'!AB25,'Runde 13'!AB25,'Runde 14'!AB25,'Runde 15'!AB25,'Runde 16'!AB25,'Runde 17'!AB25,'Runde 18'!AB25,'Runde 19'!AB25,'Runde 20'!AB25,'Runde 21'!AB25,'Runde 22'!AB25,'Runde 23'!AB25,'Runde 24'!AB25,'Runde 25'!AB25,'Runde 26'!AB25,'Runde 27'!AB25,'Runde 27'!AB25,'Runde 28'!AB25,'Runde 29'!AB25,'Runde 30'!AB25)/B3) -> 
A20: Driving:
A21: Drivers/runde | B21: =IF(B3=0,"",SUM('Runde 1'!G25,'Runde 2'!G25,'Runde 3'!G25,'Runde 4'!G25,'Runde 5'!G25,'Runde 6'!G25,'Runde 7'!G25,'Runde 8'!G25,'Runde 9'!G25,'Runde 10'!G25,'Runde 11'!G25,'Runde 12'!G25,'Runde 13'!G25,'Runde 14'!G25,'Runde 15'!G25,'Runde 16'!G25,'Runde 17'!G25,'Runde 18'!G25,'Runde 19'!G25,'Runde 20'!G25,'Runde 21'!G25,'Runde 22'!G25,'Runde 23'!G25,'Runde 24'!G25,'Runde 25'!G25,'Runde 26'!G25,'Runde 27'!G25,'Runde 27'!G25,'Runde 28'!G25,'Runde 29'!G25,'Runde 30'!G25)/B3) -> 
A22: % Fairway hits (Driver) | B22: =IF(B3=0,"",SUM('Runde 1'!AC25,'Runde 2'!AC25,'Runde 3'!AC25,'Runde 4'!AC25,'Runde 5'!AC25,'Runde 6'!AC25,'Runde 7'!AC25,'Runde 8'!AC25,'Runde 9'!AC25,'Runde 10'!AC25,'Runde 11'!AC25,'Runde 12'!AC25,'Runde 13'!AC25,'Runde 14'!AC25,'Runde 15'!AC25,'Runde 16'!AC25,'Runde 17'!AC25,'Runde 18'!AC25,'Runde 19'!AC25,'Runde 20'!AC25,'Runde 21'!AC25,'Runde 22'!AC25,'Runde 23'!AC25,'Runde 24'!AC25,'Runde 25'!AC25,'Runde 26'!AC25,'Runde 27'!AC25,'Runde 27'!AC25,'Runde 28'!AC25,'Runde 29'!AC25,'Runde 30'!AC25)/B3) -> 
A23: % Fairway hits (alle) | B23: =IF(B3=0,"",SUM('Runde 1'!K25,'Runde 2'!K25,'Runde 3'!K25,'Runde 4'!K25,'Runde 5'!K25,'Runde 6'!K25,'Runde 7'!K25,'Runde 8'!K25,'Runde 9'!K25,'Runde 10'!K25,'Runde 11'!K25,'Runde 12'!K25,'Runde 13'!K25,'Runde 14'!K25,'Runde 15'!K25,'Runde 16'!K25,'Runde 17'!K25,'Runde 18'!K25,'Runde 19'!K25,'Runde 20'!K25,'Runde 21'!K25,'Runde 22'!K25,'Runde 23'!K25,'Runde 24'!K25,'Runde 25'!K25,'Runde 26'!K25,'Runde 27'!K25,'Runde 27'!K25,'Runde 28'!K25,'Runde 29'!K25,'Runde 30'!K25)/B3) -> 
A24: % Teeslag i venstre | B24: =IF(B3=0,"",SUM('Runde 1'!J25,'Runde 2'!J25,'Runde 3'!J25,'Runde 4'!J25,'Runde 5'!J25,'Runde 6'!J25,'Runde 7'!J25,'Runde 8'!J25,'Runde 9'!J25,'Runde 10'!J25,'Runde 11'!J25,'Runde 12'!J25,'Runde 13'!J25,'Runde 14'!J25,'Runde 15'!J25,'Runde 16'!J25,'Runde 17'!J25,'Runde 18'!J25,'Runde 19'!J25,'Runde 20'!J25,'Runde 21'!J25,'Runde 22'!J25,'Runde 23'!J25,'Runde 24'!J25,'Runde 25'!J25,'Runde 26'!J25,'Runde 27'!J25,'Runde 27'!J25,'Runde 28'!J25,'Runde 29'!J25,'Runde 30'!J25)/B3) -> 
A25: % Teeslag i højre | B25: =IF(B3=0,"",SUM('Runde 1'!L25,'Runde 2'!L25,'Runde 3'!L25,'Runde 4'!L25,'Runde 5'!L25,'Runde 6'!L25,'Runde 7'!L25,'Runde 8'!L25,'Runde 9'!L25,'Runde 10'!L25,'Runde 11'!L25,'Runde 12'!L25,'Runde 13'!L25,'Runde 14'!L25,'Runde 15'!L25,'Runde 16'!L25,'Runde 17'!L25,'Runde 18'!L25,'Runde 19'!L25,'Runde 20'!L25,'Runde 21'!L25,'Runde 22'!L25,'Runde 23'!L25,'Runde 24'!L25,'Runde 25'!L25,'Runde 26'!L25,'Runde 27'!L25,'Runde 27'!L25,'Runde 28'!L25,'Runde 29'!L25,'Runde 30'!L25)/B3) -> 
A27: Generelt:
A28: % GIR | B28: =IF(B3=0,"",SUM('Runde 1'!U25,'Runde 2'!U25,'Runde 3'!U25,'Runde 4'!U25,'Runde 5'!U25,'Runde 6'!U25,'Runde 7'!U25,'Runde 8'!U25,'Runde 9'!U25,'Runde 10'!U25,'Runde 11'!U25,'Runde 12'!U25,'Runde 13'!U25,'Runde 14'!U25,'Runde 15'!U25,'Runde 16'!U25,'Runde 17'!U25,'Runde 18'!U25,'Runde 19'!U25,'Runde 20'!U25,'Runde 21'!U25,'Runde 22'!U25,'Runde 23'!U25,'Runde 24'!U25,'Runde 25'!U25,'Runde 26'!U25,'Runde 27'!U25,'Runde 27'!U25,'Runde 28'!U25,'Runde 29'!U25,'Runde 30'!U25)/B3) -> 
A29: Afstand til hul (GIR) | B29: =IF(B3=0,"",AVERAGE('Runde 1'!S25,'Runde 2'!S25,'Runde 3'!S25,'Runde 4'!S25,'Runde 5'!S25,'Runde 6'!S25,'Runde 7'!S25,'Runde 8'!S25,'Runde 9'!S25,'Runde 10'!S25,'Runde 11'!S25,'Runde 12'!S25,'Runde 13'!S25,'Runde 14'!S25,'Runde 15'!S25,'Runde 16'!S25,'Runde 17'!S25,'Runde 18'!S25,'Runde 19'!S25,'Runde 20'!S25,'Runde 21'!S25,'Runde 22'!S25,'Runde 23'!S25,'Runde 24'!S25,'Runde 25'!S25,'Runde 26'!S25,'Runde 27'!S25,'Runde 27'!S25,'Runde 28'!S25,'Runde 29'!S25,'Runde 30'!S25)) -> 
A30: % Scrambles | B30: =IF(B3=0,"",SUM('Runde 1'!AA25,'Runde 2'!AA25,'Runde 3'!AA25,'Runde 4'!AA25,'Runde 5'!AA25,'Runde 6'!AA25,'Runde 7'!AA25,'Runde 8'!AA25,'Runde 9'!AA25,'Runde 10'!AA25,'Runde 11'!AA25,'Runde 12'!AA25,'Runde 13'!AA25,'Runde 14'!AA25,'Runde 15'!AA25,'Runde 16'!AA25,'Runde 17'!AA25,'Runde 18'!AA25,'Runde 19'!AA25,'Runde 20'!AA25,'Runde 21'!AA25,'Runde 22'!AA25,'Runde 23'!AA25,'Runde 24'!AA25,'Runde 25'!AA25,'Runde 26'!AA25,'Runde 27'!AA25,'Runde 27'!AA25,'Runde 28'!AA25,'Runde 29'!AA25,'Runde 30'!AA25)/B3) -> 
A32: Hulscore ifht par:
A33: Par 3's | B33: =IF(B3=0,"",SUM('Runde 1'!T30,'Runde 2'!T30,'Runde 3'!T30,'Runde 4'!T30,'Runde 5'!T30,'Runde 6'!U30,'Runde 7'!T30,'Runde 8'!T30,'Runde 9'!T30,'Runde 10'!T30,'Runde 11'!T30,'Runde 12'!T30,'Runde 13'!T30,'Runde 14'!T30,'Runde 15'!T30,'Runde 16'!T30,'Runde 17'!T30,'Runde 18'!T30,'Runde 19'!T30,'Runde 20'!T30,'Runde 21'!T30,'Runde 22'!T30,'Runde 23'!T30,'Runde 24'!T30,'Runde 25'!T30,'Runde 26'!T30,'Runde 27'!T30,'Runde 27'!T30,'Runde 28'!T30,'Runde 29'!T30,'Runde 30'!T30)/B3) -> 
A34: Par 4's | B34: =IF(B3=0,"",SUM('Runde 1'!T31,'Runde 2'!T31,'Runde 3'!T31,'Runde 4'!T31,'Runde 5'!T31,'Runde 6'!U31,'Runde 7'!T31,'Runde 8'!T31,'Runde 9'!T31,'Runde 10'!T31,'Runde 11'!T31,'Runde 12'!T31,'Runde 13'!T31,'Runde 14'!T31,'Runde 15'!T31,'Runde 16'!T31,'Runde 17'!T31,'Runde 18'!T31,'Runde 19'!T31,'Runde 20'!T31,'Runde 21'!T31,'Runde 22'!T31,'Runde 23'!T31,'Runde 24'!T31,'Runde 25'!T31,'Runde 26'!T31,'Runde 27'!T31,'Runde 27'!T31,'Runde 28'!T31,'Runde 29'!T31,'Runde 30'!T31)/B3) -> 
A35: Par 5's | B35: =IF(B3=0,"",SUM('Runde 1'!T32,'Runde 2'!T32,'Runde 3'!T32,'Runde 4'!T32,'Runde 5'!T32,'Runde 6'!U32,'Runde 7'!T32,'Runde 8'!T32,'Runde 9'!T32,'Runde 10'!T32,'Runde 11'!T32,'Runde 12'!T32,'Runde 13'!T32,'Runde 14'!T32,'Runde 15'!T32,'Runde 16'!T32,'Runde 17'!T32,'Runde 18'!T32,'Runde 19'!T32,'Runde 20'!T32,'Runde 21'!T32,'Runde 22'!T32,'Runde 23'!T32,'Runde 24'!T32,'Runde 25'!T32,'Runde 26'!T32,'Runde 27'!T32,'Runde 27'!T32,'Runde 28'!T32,'Runde 29'!T32,'Runde 30'!T32)/B3) -> 
A36: First 4 holes to par (+-) | B36: =IF(B3=0,"",SUM('Runde 1'!T34,'Runde 2'!T34,'Runde 3'!T34,'Runde 4'!T34,'Runde 5'!T34,'Runde 6'!U34,'Runde 7'!T34,'Runde 8'!T34,'Runde 9'!T34,'Runde 10'!T34,'Runde 11'!T34,'Runde 12'!T34,'Runde 13'!T34,'Runde 14'!T34,'Runde 15'!T34,'Runde 16'!T34,'Runde 17'!T34,'Runde 18'!T34,'Runde 19'!T34,'Runde 20'!T34,'Runde 21'!T34,'Runde 22'!T34,'Runde 23'!T34,'Runde 24'!T34,'Runde 25'!T34,'Runde 26'!T34,'Runde 27'!T34,'Runde 27'!T34,'Runde 28'!T34,'Runde 29'!T34,'Runde 30'!T34)/B3) -> 
A37: Last 4 holes to par (+-) | B37: =IF(B3=0,"",SUM('Runde 1'!T35,'Runde 2'!T35,'Runde 3'!T35,'Runde 4'!T35,'Runde 5'!T35,'Runde 6'!U35,'Runde 7'!T35,'Runde 8'!T35,'Runde 9'!T35,'Runde 10'!T35,'Runde 11'!T35,'Runde 12'!T35,'Runde 13'!T35,'Runde 14'!T35,'Runde 15'!T35,'Runde 16'!T35,'Runde 17'!T35,'Runde 18'!T35,'Runde 19'!T35,'Runde 20'!T35,'Runde 21'!T35,'Runde 22'!T35,'Runde 23'!T35,'Runde 24'!T35,'Runde 25'!T35,'Runde 26'!T35,'Runde 27'!T35,'Runde 27'!T35,'Runde 28'!T35,'Runde 29'!T35,'Runde 30'!T35)/B3) -> 
A40: Approach | D40: Putting | G40: Greenbunkers
A41: Længde (m) | B41: Afstand (m) | D41: Afstand (m) | E41: Holet (%) | G41: Bunkers/runde | H41: =IF(B3=0,"",'DATA - nix pille'!C22/B3) -> 
A42: 45 - 70 | B42: =IF(B3=0,"",AVERAGE('Runde 1'!Y30,'Runde 2'!Y30,'Runde 3'!Y30,'Runde 4'!Y30,'Runde 5'!Y30,'Runde 6'!Y30,'Runde 7'!Y30,'Runde 8'!Y30,'Runde 9'!Y30,'Runde 10'!Y30,'Runde 11'!Y30,'Runde 12'!Y30,'Runde 13'!Y30,'Runde 14'!Y30,'Runde 15'!Y30,'Runde 16'!Y30,'Runde 17'!Y30,'Runde 18'!Y30,'Runde 19'!Y30,'Runde 20'!Y30,'Runde 21'!Y30,'Runde 22'!Y30,'Runde 23'!Y30,'Runde 24'!Y30,'Runde 25'!Y30,'Runde 26'!Y30,'Runde 27'!Y30,'Runde 27'!Y30,'Runde 28'!Y30,'Runde 29'!Y30,'Runde 30'!Y30)) ->  | D42: 0 - 1 | E42: =IF(B3=0,"",AVERAGE('Runde 1'!Z39,'Runde 2'!Z39,'Runde 3'!Z39,'Runde 4'!Z39,'Runde 5'!Z39,'Runde 6'!Z39,'Runde 7'!Z39,'Runde 8'!Z39,'Runde 9'!Z39,'Runde 10'!Z39,'Runde 11'!Z39,'Runde 12'!Z39,'Runde 13'!Z39,'Runde 14'!Z39,'Runde 15'!Z39,'Runde 16'!Z39,'Runde 17'!Z39,'Runde 18'!Z39,'Runde 19'!Z39,'Runde 20'!Z39,'Runde 21'!Z39,'Runde 22'!Z39,'Runde 23'!Z39,'Runde 24'!Z39,'Runde 25'!Z39,'Runde 26'!Z39,'Runde 27'!Z39,'Runde 27'!Z39,'Runde 28'!Z39,'Runde 29'!Z39,'Runde 30'!Z39)) ->  | G42: Sandsave% | H42: =IF(B3=0,"",('DATA - nix pille'!C23/'DATA - nix pille'!C22)) -> 
A43: 71 - 90 | B43: =IF(B3=0,"",AVERAGE('Runde 1'!Y31,'Runde 2'!Y31,'Runde 3'!Y31,'Runde 4'!Y31,'Runde 5'!Y31,'Runde 6'!Y31,'Runde 7'!Y31,'Runde 8'!Y31,'Runde 9'!Y31,'Runde 10'!Y31,'Runde 11'!Y31,'Runde 12'!Y31,'Runde 13'!Y31,'Runde 14'!Y31,'Runde 15'!Y31,'Runde 16'!Y31,'Runde 17'!Y31,'Runde 18'!Y31,'Runde 19'!Y31,'Runde 20'!Y31,'Runde 21'!Y31,'Runde 22'!Y31,'Runde 23'!Y31,'Runde 24'!Y31,'Runde 25'!Y31,'Runde 26'!Y31,'Runde 27'!Y31,'Runde 27'!Y31,'Runde 28'!Y31,'Runde 29'!Y31,'Runde 30'!Y31)) ->  | D43: 1 - 1,5 | E43: =IF(B3=0,"",AVERAGE('Runde 1'!Z40,'Runde 2'!Z40,'Runde 3'!Z40,'Runde 4'!Z40,'Runde 5'!Z40,'Runde 6'!Z40,'Runde 7'!Z40,'Runde 8'!Z40,'Runde 9'!Z40,'Runde 10'!Z40,'Runde 11'!Z40,'Runde 12'!Z40,'Runde 13'!Z40,'Runde 14'!Z40,'Runde 15'!Z40,'Runde 16'!Z40,'Runde 17'!Z40,'Runde 18'!Z40,'Runde 19'!Z40,'Runde 20'!Z40,'Runde 21'!Z40,'Runde 22'!Z40,'Runde 23'!Z40,'Runde 24'!Z40,'Runde 25'!Z40,'Runde 26'!Z40,'Runde 27'!Z40,'Runde 27'!Z40,'Runde 28'!Z40,'Runde 29'!Z40,'Runde 30'!Z40)) -> 
A44: 91 - 115 | B44: =IF(B3=0,"",AVERAGE('Runde 1'!Y32,'Runde 2'!Y32,'Runde 3'!Y32,'Runde 4'!Y32,'Runde 5'!Y32,'Runde 6'!Y32,'Runde 7'!Y32,'Runde 8'!Y32,'Runde 9'!Y32,'Runde 10'!Y32,'Runde 11'!Y32,'Runde 12'!Y32,'Runde 13'!Y32,'Runde 14'!Y32,'Runde 15'!Y32,'Runde 16'!Y32,'Runde 17'!Y32,'Runde 18'!Y32,'Runde 19'!Y32,'Runde 20'!Y32,'Runde 21'!Y32,'Runde 22'!Y32,'Runde 23'!Y32,'Runde 24'!Y32,'Runde 25'!Y32,'Runde 26'!Y32,'Runde 27'!Y32,'Runde 27'!Y32,'Runde 28'!Y32,'Runde 29'!Y32,'Runde 30'!Y32)) ->  | D44: 1,5 - 3 | E44: =IF(B3=0,"",AVERAGE('Runde 1'!Z41,'Runde 2'!Z41,'Runde 3'!Z41,'Runde 4'!Z41,'Runde 5'!Z41,'Runde 6'!Z41,'Runde 7'!Z41,'Runde 8'!Z41,'Runde 9'!Z41,'Runde 10'!Z41,'Runde 11'!Z41,'Runde 12'!Z41,'Runde 13'!Z41,'Runde 14'!Z41,'Runde 15'!Z41,'Runde 16'!Z41,'Runde 17'!Z41,'Runde 18'!Z41,'Runde 19'!Z41,'Runde 20'!Z41,'Runde 21'!Z41,'Runde 22'!Z41,'Runde 23'!Z41,'Runde 24'!Z41,'Runde 25'!Z41,'Runde 26'!Z41,'Runde 27'!Z41,'Runde 27'!Z41,'Runde 28'!Z41,'Runde 29'!Z41,'Runde 30'!Z41)) -> 
A45: 116 - 140 | B45: =IF(B3=0,"",AVERAGE('Runde 1'!Y33,'Runde 2'!Y33,'Runde 3'!Y33,'Runde 4'!Y33,'Runde 5'!Y33,'Runde 6'!Y33,'Runde 7'!Y33,'Runde 8'!Y33,'Runde 9'!Y33,'Runde 10'!Y33,'Runde 11'!Y33,'Runde 12'!Y33,'Runde 13'!Y33,'Runde 14'!Y33,'Runde 15'!Y33,'Runde 16'!Y33,'Runde 17'!Y33,'Runde 18'!Y33,'Runde 19'!Y33,'Runde 20'!Y33,'Runde 21'!Y33,'Runde 22'!Y33,'Runde 23'!Y33,'Runde 24'!Y33,'Runde 25'!Y33,'Runde 26'!Y33,'Runde 27'!Y33,'Runde 27'!Y33,'Runde 28'!Y33,'Runde 29'!Y33,'Runde 30'!Y33)) ->  | D45: 3 - 4,5 | E45: =IF(B3=0,"",AVERAGE('Runde 1'!Z42,'Runde 2'!Z42,'Runde 3'!Z42,'Runde 4'!Z42,'Runde 5'!Z42,'Runde 6'!Z42,'Runde 7'!Z42,'Runde 8'!Z42,'Runde 9'!Z42,'Runde 10'!Z42,'Runde 11'!Z42,'Runde 12'!Z42,'Runde 13'!Z42,'Runde 14'!Z42,'Runde 15'!Z42,'Runde 16'!Z42,'Runde 17'!Z42,'Runde 18'!Z42,'Runde 19'!Z42,'Runde 20'!Z42,'Runde 21'!Z42,'Runde 22'!Z42,'Runde 23'!Z42,'Runde 24'!Z42,'Runde 25'!Z42,'Runde 26'!Z42,'Runde 27'!Z42,'Runde 27'!Z42,'Runde 28'!Z42,'Runde 29'!Z42,'Runde 30'!Z42)) -> 
A46: 141 - 160 | B46: =IF(B3=0,"",AVERAGE('Runde 1'!Y34,'Runde 2'!Y34,'Runde 3'!Y34,'Runde 4'!Y34,'Runde 5'!Y34,'Runde 6'!Y34,'Runde 7'!Y34,'Runde 8'!Y34,'Runde 9'!Y34,'Runde 10'!Y34,'Runde 11'!Y34,'Runde 12'!Y34,'Runde 13'!Y34,'Runde 14'!Y34,'Runde 15'!Y34,'Runde 16'!Y34,'Runde 17'!Y34,'Runde 18'!Y34,'Runde 19'!Y34,'Runde 20'!Y34,'Runde 21'!Y34,'Runde 22'!Y34,'Runde 23'!Y34,'Runde 24'!Y34,'Runde 25'!Y34,'Runde 26'!Y34,'Runde 27'!Y34,'Runde 27'!Y34,'Runde 28'!Y34,'Runde 29'!Y34,'Runde 30'!Y34)) ->  | D46: 4,5 - 6 | E46: =IF(B3=0,"",AVERAGE('Runde 1'!Z43,'Runde 2'!Z43,'Runde 3'!Z43,'Runde 4'!Z43,'Runde 5'!Z43,'Runde 6'!Z43,'Runde 7'!Z43,'Runde 8'!Z43,'Runde 9'!Z43,'Runde 10'!Z43,'Runde 11'!Z43,'Runde 12'!Z43,'Runde 13'!Z43,'Runde 14'!Z43,'Runde 15'!Z43,'Runde 16'!Z43,'Runde 17'!Z43,'Runde 18'!Z43,'Runde 19'!Z43,'Runde 20'!Z43,'Runde 21'!Z43,'Runde 22'!Z43,'Runde 23'!Z43,'Runde 24'!Z43,'Runde 25'!Z43,'Runde 26'!Z43,'Runde 27'!Z43,'Runde 27'!Z43,'Runde 28'!Z43,'Runde 29'!Z43,'Runde 30'!Z43)) -> 
A47: 161 - 180 | B47: =IF(B3=0,"",AVERAGE('Runde 1'!Y35,'Runde 2'!Y35,'Runde 3'!Y35,'Runde 4'!Y35,'Runde 5'!Y35,'Runde 6'!Y35,'Runde 7'!Y35,'Runde 8'!Y35,'Runde 9'!Y35,'Runde 10'!Y35,'Runde 11'!Y35,'Runde 12'!Y35,'Runde 13'!Y35,'Runde 14'!Y35,'Runde 15'!Y35,'Runde 16'!Y35,'Runde 17'!Y35,'Runde 18'!Y35,'Runde 19'!Y35,'Runde 20'!Y35,'Runde 21'!Y35,'Runde 22'!Y35,'Runde 23'!Y35,'Runde 24'!Y35,'Runde 25'!Y35,'Runde 26'!Y35,'Runde 27'!Y35,'Runde 27'!Y35,'Runde 28'!Y35,'Runde 29'!Y35,'Runde 30'!Y35)) ->  | D47: over 6 m | E47: =IF(B3=0,"",AVERAGE('Runde 1'!Z44,'Runde 2'!Z44,'Runde 3'!Z44,'Runde 4'!Z44,'Runde 5'!Z44,'Runde 6'!Z44,'Runde 7'!Z44,'Runde 8'!Z44,'Runde 9'!Z44,'Runde 10'!Z44,'Runde 11'!Z44,'Runde 12'!Z44,'Runde 13'!Z44,'Runde 14'!Z44,'Runde 15'!Z44,'Runde 16'!Z44,'Runde 17'!Z44,'Runde 18'!Z44,'Runde 19'!Z44,'Runde 20'!Z44,'Runde 21'!Z44,'Runde 22'!Z44,'Runde 23'!Z44,'Runde 24'!Z44,'Runde 25'!Z44,'Runde 26'!Z44,'Runde 27'!Z44,'Runde 27'!Z44,'Runde 28'!Z44,'Runde 29'!Z44,'Runde 30'!Z44)) -> 

Sheet Sæson graf

Sheet Scorekort til print
A1: Vallø Golf Klub - 18 huller - Gul tee | J1: =IF(E25="0","0","1") -> 1 | L1: Dato:
H3: Tee shot | K3: Fairway hits i % | N3: Bunker
A4: Hul | B4: Gul tee | C4: Par | D4: HCP | E4: Score | F4: Netto | G4: Driver | H4: Wood | I4: Jern | J4: Venstre | K4: Midt | L4: Højre | M4: FB | N4: GB | O4: SS | P4: Putts | Q4: GIR
A5: 1 | B5: 387 | C5: 4 | D5: 3
A6: 2 | B6: 126 | C6: 3 | D6: 13
A7: 3 | B7: 437 | C7: 5 | D7: 11
A8: 4 | B8: 437 | C8: 5 | D8: 9
A9: 5 | B9: 391 | C9: 4 | D9: 5
A10: 6 | B10: 164 | C10: 3 | D10: 15
A11: 7 | B11: 397 | C11: 4 | D11: 1
A12: 8 | B12: 101 | C12: 3 | D12: 17
A13: 9 | B13: 343 | C13: 4 | D13: 7
B14: =SUM(B5:B13) -> 2783 | C14: =SUM(C5:C13) -> 35 | D14: UD
A15: 10 | B15: 384 | C15: 4 | D15: 4
A16: 11 | B16: 322 | C16: 4 | D16: 12
A17: 12 | B17: 262 | C17: 4 | D17: 16
A18: 13 | B18: 167 | C18: 3 | D18: 14
A19: 14 | B19: 355 | C19: 4 | D19: 10
A20: 15 | B20: 126 | C20: 3 | D20: 18
A21: 16 | B21: 522 | C21: 5 | D21: 8
A22: 17 | B22: 451 | C22: 5 | D22: 6
A23: 18 | B23: 405 | C23: 4 | D23: 2
B24: =SUM(B15:B23) -> 2994 | C24: =SUM(C15:C23) -> 36 | D24: IND
B25: =SUM(B24,B14) -> 5777 | C25: =SUM(C24,C14) -> 71 | D25: TOTAL
A29: Korsør Golf Klub - 18 huller - Gul tee | J29: =IF(E53="0","0","1") -> 1 | L29: Dato:
H31: Tee shot | K31: Fairway hits i % | N31: Bunker
A32: Hul | B32: Gul tee | C32: Par | D32: HCP | E32: Score | F32: Netto | G32: Driver | H32: Wood | I32: Jern | J32: Venstre | K32: Midt | L32: Højre | M32: FB | N32: GB | O32: SS | P32: Putts | Q32: GIR
A33: 1 | B33: 307 | C33: 4 | D33: 11
A34: 2 | B34: 323 | C34: 4 | D34: 5
A35: 3 | B35: 138 | C35: 3 | D35: 15
A36: 4 | B36: 310 | C36: 4 | D36: 13
A37: 5 | B37: 431 | C37: 5 | D37: 3
A38: 6 | B38: 312 | C38: 4 | D38: 9
A39: 7 | B39: 498 | C39: 5 | D39: 1
A40: 8 | B40: 138 | C40: 3 | D40: 17
A41: 9 | B41: 310 | C41: 4 | D41: 7
B42: =SUM(B33:B41) -> 2767 | C42: =SUM(C33:C41) -> 36 | D42: UD
A43: 10 | B43: 481 | C43: 5 | D43: 4
A44: 11 | B44: 319 | C44: 4 | D44: 16
A45: 12 | B45: 431 | C45: 5 | D45: 2
A46: 13 | B46: 122 | C46: 3 | D46: 18
A47: 14 | B47: 379 | C47: 4 | D47: 6
A48: 15 | B48: 316 | C48: 4 | D48: 8
A49: 16 | B49: 322 | C49: 4 | D49: 14
A50: 17 | B50: 345 | C50: 4 | D50: 10
A51: 18 | B51: 281 | C51: 4 | D51: 12
B52: =SUM(B43:B51) -> 2996 | C52: =SUM(C43:C51) -> 37 | D52: IND
B53: =SUM(B52,B42) -> 5763 | C53: =SUM(C52,C42) -> 73 | D53: TOTAL
A57: Roskilde Golf Klub - 18 huller - Gul tee | J57: =IF(E81="0","0","1") -> 1 | L57: Dato:
H59: Tee shot | K59: Fairway hits i % | N59: Bunker
A60: Hul | B60: Gul tee | C60: Par | D60: HCP | E60: Score | F60: Netto | G60: Driver | H60: Wood | I60: Jern | J60: Venstre | K60: Midt | L60: Højre | M60: FB | N60: GB | O60: SS | P60: Putts | Q60: GIR
A61: 1 | B61: 453 | C61: 5 | D61: 4
A62: 2 | B62: 294 | C62: 4 | D62: 8
A63: 3 | B63: 317 | C63: 4 | D63: 12
A64: 4 | B64: 308 | C64: 4 | D64: 10
A65: 5 | B65: 160 | C65: 3 | D65: 18
A66: 6 | B66: 299 | C66: 4 | D66: 14
A67: 7 | B67: 152 | C67: 3 | D67: 16
A68: 8 | B68: 308 | C68: 4 | D68: 6
A69: 9 | B69: 332 | C69: 4 | D69: 2
B70: =SUM(B61:B69) -> 2623 | C70: =SUM(C61:C69) -> 35 | D70: UD
A71: 10 | B71: 372 | C71: 4 | D71: 1
A72: 11 | B72: 269 | C72: 4 | D72: 9
A73: 12 | B73: 496 | C73: 5 | D73: 3
A74: 13 | B74: 178 | C74: 3 | D74: 15
A75: 14 | B75: 390 | C75: 4 | D75: 7
A76: 15 | B76: 485 | C76: 5 | D76: 5
A77: 16 | B77: 310 | C77: 4 | D77: 13
A78: 17 | B78: 147 | C78: 3 | D78: 17
A79: 18 | B79: 453 | C79: 5 | D79: 11
B80: =SUM(B71:B79) -> 3100 | C80: =SUM(C71:C79) -> 37 | D80: IND
B81: =SUM(B80,B70) -> 5723 | C81: =SUM(C80,C70) -> 72 | D81: TOTAL
A85: Trelleborg Golf Klub - 18 huller - Gul tee | J85: =IF(E109="0","0","1") -> 1 | L85: Dato:
H87: Tee shot | K87: Fairway hits i % | N87: Bunker
A88: Hul | B88: Gul tee | C88: Par | D88: HCP | E88: Score | F88: Netto | G88: Driver | H88: Wood | I88: Jern | J88: Venstre | K88: Midt | L88: Højre | M88: FB | N88: GB | O88: SS | P88: Putts | Q88: GIR
A89: 1 | B89: 432 | C89: 5 | D89: 5
A90: 2 | B90: 336 | C90: 4 | D90: 15
A91: 3 | B91: 351 | C91: 4 | D91: 3
A92: 4 | B92: 340 | C92: 4 | D92: 11
A93: 5 | B93: 145 | C93: 3 | D93: 17
A94: 6 | B94: 318 | C94: 4 | D94: 13
A95: 7 | B95: 517 | C95: 5 | D95: 1
A96: 8 | B96: 387 | C96: 4 | D96: 7
A97: 9 | B97: 115 | C97: 3 | D97: 9
B98: =SUM(B89:B97) -> 2941 | C98: =SUM(C89:C97) -> 36 | D98: UD
A99: 10 | B99: 360 | C99: 4 | D99: 14
A100: 11 | B100: 325 | C100: 4 | D100: 12
A101: 12 | B101: 482 | C101: 5 | D101: 2
A102: 13 | B102: 370 | C102: 4 | D102: 8
A103: 14 | B103: 365 | C103: 4 | D103: 4
A104: 15 | B104: 128 | C104: 3 | D104: 16
A105: 16 | B105: 380 | C105: 4 | D105: 10
A106: 17 | B106: 160 | C106: 3 | D106: 18
A107: 18 | B107: 504 | C107: 5 | D107: 6
B108: =SUM(B99:B107) -> 3074 | C108: =SUM(C99:C107) -> 36 | D108: IND
B109: =SUM(B108,B98) -> 6015 | C109: =SUM(C108,C98) -> 72 | D109: TOTAL
A113: Korsør Golf Klub - 18 huller - Hvid tee | J113: =IF(E137="0","0","1") -> 1 | L113: Dato:
H115: Tee shot | K115: Fairway hits i % | N115: Bunker
A116: Hul | B116: Gul tee | C116: Par | D116: HCP | E116: Score | F116: Netto | G116: Driver | H116: Wood | I116: Jern | J116: Venstre | K116: Midt | L116: Højre | M116: FB | N116: GB | O116: SS | P116: Putts | Q116: GIR
A117: 1 | B117: 313 | C117: 4 | D117: 11
A118: 2 | B118: 340 | C118: 4 | D118: 5
A119: 3 | B119: 143 | C119: 3 | D119: 15
A120: 4 | B120: 335 | C120: 4 | D120: 13
A121: 5 | B121: 443 | C121: 5 | D121: 3
A122: 6 | B122: 319 | C122: 4 | D122: 9
A123: 7 | B123: 555 | C123: 5 | D123: 1
A124: 8 | B124: 143 | C124: 3 | D124: 17
A125: 9 | B125: 320 | C125: 4 | D125: 7
B126: =SUM(B117:B125) -> 2911 | C126: =SUM(C117:C125) -> 36 | D126: UD
A127: 10 | B127: 490 | C127: 5 | D127: 4
A128: 11 | B128: 330 | C128: 4 | D128: 16
A129: 12 | B129: 451 | C129: 5 | D129: 2
A130: 13 | B130: 140 | C130: 3 | D130: 18
A131: 14 | B131: 383 | C131: 4 | D131: 6
A132: 15 | B132: 332 | C132: 4 | D132: 8
A133: 16 | B133: 334 | C133: 4 | D133: 14
A134: 17 | B134: 368 | C134: 4 | D134: 10
A135: 18 | B135: 299 | C135: 4 | D135: 12
B136: =SUM(B127:B135) -> 3127 | C136: =SUM(C127:C135) -> 37 | D136: IND
B137: =SUM(B136,B126) -> 6038 | C137: =SUM(C136,C126) -> 73 | D137: TOTAL

Sheet Runde 1
A1: Korsør Golf Klub - 18 huller - Gul tee | J1: =IF(E25="0","0","1") -> 0 | L1: Dato: | O1: Handicap: | T1: Antal tildelte slag:
H3: Tee shot | K3: Fairway hits i % | N3: Bunker | R3: Approach shots
A4: Hul | B4: Gul tee | C4: Par | D4: HCP | E4: Score | F4: Netto | G4: Driver | H4: Wood | I4: Jern | J4: Venstre | K4: Midt | L4: Højre | M4: FB | N4: GB | O4: SS | P4: Putts | Q4: GIR | R4: Dist. to pin (m) | S4: Dist. to hole (m) | T4: % SS | U4: % GIR | V4: Putts/GIR | W4: Eagles | X4: Birdies | Y4: Bogeys | Z4: Værre | AA4: % Scramble | AB4: 3+ Putts | AC4: % Driver/Fairwayhits
A5: 1 | B5: 307 | C5: 4 | D5: 11 | V5: =IF(Q5=0,"",P5) ->  | AA5: =IF(AND(Q5="",P5=1),1,"") ->  | AC5: =IF(AND(G5=""),"",SUM(K5)) -> 
A6: 2 | B6: 323 | C6: 4 | D6: 5
A7: 3 | B7: 138 | C7: 3 | D7: 15
A8: 4 | B8: 310 | C8: 4 | D8: 13
A9: 5 | B9: 431 | C9: 5 | D9: 3
A10: 6 | B10: 312 | C10: 4 | D10: 9
A11: 7 | B11: 498 | C11: 5 | D11: 1
A12: 8 | B12: 138 | C12: 3 | D12: 17
A13: 9 | B13: 310 | C13: 4 | D13: 7
B14: =SUM(B5:B13) -> 2767 | C14: =SUM(C5:C13) -> 36 | D14: UD | E14: =SUM(E5:E13) -> 0 | F14: =SUM(F5:F13) -> 0 | G14: =SUM(G5:G13) -> 0 | H14: =SUM(H5:H13) -> 0 | I14: =SUM(I5:I13) -> 0 | J14: =IF((A28=27),"",(SUM(J5:J13)/SUM(J5:L13))*100) ->  | K14: =IF((A28=27),"",(SUM(K5:K13)/SUM(J5:L13))*100) ->  | L14: =IF((A28=27),"",(SUM(L5:L13)/SUM(J5:L13))*100) ->  | M14: =SUM(M5:M13) -> 0 | N14: =SUM(N5:N13) -> 0 | O14: =SUM(O5:O13) -> 0 | P14: =SUM(P5:P13) -> 0 | Q14: =SUM(Q5:Q13) -> 0 | S14: =IF(Q14=0,"",SUM(S5:S13)/Q14) ->  | V14: =SUM(V5:V13) -> 0 | W14: =ColorFunction($E$30,$E$5:$E$13) -> 0 | X14: =ColorFunction($E$31,$E$5:$E$13) -> 0 | Y14: =ColorFunction($E$32,$E$5:$E$13) -> 0 | Z14: =ColorFunction($E$33,$E$5:$E$13) -> 0 | AA14: =SUM(AA5:AA13)/(9-Q14)*100 -> 0 | AB14: =COUNTIF(P5:P13,">2") -> 0 | AC14: =IF((G14=0),"",SUM(AC5:AC13)/G14*100) -> 
A15: 10 | B15: 481 | C15: 5 | D15: 4 | V15: =IF(Q15=0,"",P15) ->  | AA15: =IF(AND(Q15="",P15=1),1,"") ->  | AC15: =IF(AND(G15=""),"",SUM(K15)) -> 
A16: 11 | B16: 319 | C16: 4 | D16: 16
A17: 12 | B17: 431 | C17: 5 | D17: 2
A18: 13 | B18: 122 | C18: 3 | D18: 18
A19: 14 | B19: 379 | C19: 4 | D19: 6
A20: 15 | B20: 316 | C20: 4 | D20: 8
A21: 16 | B21: 322 | C21: 4 | D21: 14
A22: 17 | B22: 345 | C22: 4 | D22: 10
A23: 18 | B23: 281 | C23: 4 | D23: 12
B24: =SUM(B15:B23) -> 2996 | C24: =SUM(C15:C23) -> 37 | D24: IND | E24: =SUM(E15:E23) -> 0 | F24: =SUM(F15:F23) -> 0 | G24: =SUM(G15:G23) -> 0 | H24: =SUM(H15:H23) -> 0 | I24: =SUM(I15:I23) -> 0 | J24: =IF((A29=27),"",(SUM(J15:J23)/SUM(J15:L23))*100) ->  | K24: =IF((A29=27),"",(SUM(K15:K23)/SUM(J15:L23))*100) ->  | L24: =IF((A29=27),"",(SUM(L15:L23)/SUM(J15:L23))*100) ->  | M24: =SUM(M15:M23) -> 0 | N24: =SUM(N15:N23) -> 0 | O24: =SUM(O15:O23) -> 0 | P24: =SUM(P15:P23) -> 0 | Q24: =SUM(Q15:Q23) -> 0 | S24: =IF(Q24=0,"",SUM(S15:S23)/Q24) ->  | V24: =SUM(V15:V23) -> 0 | W24: =ColorFunction($E$30,$E$15:$E$23) -> 0 | X24: =ColorFunction($E$31,$E$15:$E$23) -> 0 | Y24: =ColorFunction($E$32,$E$15:$E$23) -> 0 | Z24: =ColorFunction($E$33,$E$15:$E$23) -> 0 | AA24: =SUM(AA15:AA23)/(9-Q24)*100 -> 0 | AB24: =COUNTIF(P15:P23,">2") -> 0 | AC24: =IF((G24=0),"",SUM(AC15:AC23)/G24*100) -> 
B25: =SUM(B24,B14) -> 5763 | C25: =SUM(C24,C14) -> 73 | D25: TOTAL | E25: =IF(E14=0,"0",(E24+E14)) -> 0 | F25: =SUM(F14,F24) -> 0 | G25: =SUM(G24,G14) -> 0 | H25: =SUM(H24,H14) -> 0 | I25: =SUM(I24,I14) -> 0 | J25: =IF((A28=27),"",(SUM(J14,J24)/2)) ->  | K25: =IF((A28=27),"",(SUM(K14,K24)/2)) ->  | L25: =IF((A28=27),"",(SUM(L14,L24)/2)) ->  | M25: =SUM(M24,M14) -> 0 | N25: =SUM(N24,N14) -> 0 | O25: =SUM(O24,O14) -> 0 | P25: =IF(P14+P24=0,"",SUM(P24,P14)) ->  | Q25: =IF(Q14+Q24=0,"",SUM(Q24,Q14)) ->  | S25: =IF(Q25="","",SUM(S24,S14)/2) ->  | T25: =IF(N25=0,"",(O25)/N25*100) ->  | U25: =IF(Q25="","",(Q25)/18*100) ->  | V25: =IF(Q25="","",(V14+V24)/Q25) ->  | W25: =SUM(W14,W24) -> 0 | X25: =SUM(X14,X24) -> 0 | Y25: =SUM(Y14,Y24) -> 0 | Z25: =SUM(Z14,Z24) -> 0 | AA25: =SUM(AA14,AA24)/2 -> 0 | AB25: =SUM(AB14,AB24) -> 0 | AC25: =SUM(AC24,AC14)/2 -> 0
E27: Udfyld alle grønne felter med 1 for positiv eller antal i tal
A28: =COUNTBLANK(J5:L13) -> 27 | W28: Approach
A29: =COUNTBLANK(J15:L23) -> 27 | E29: Udfyld følgende farver: | S29: Holes to par | W29: Længde (m) | X29: Antal | Y29: Afstand (m)
A30: =SUM(M5:M23) -> 0 | E30: Eagles | S30: Par 3 | T30: =SUMIF(C:C,"3",E:E)/COUNTIF(C:C,3) -> 0 | W30: 45-70 | X30: =COUNTIFS(R5:R23,">=45",R5:R23,"<=70") -> 0 | Y30: =IF(X30=0,"",AVERAGEIFS(S5:S23,R5:R23,">=45",R5:R23,"<=70")) -> 
E31: Birdies | S31: Par 4 | T31: =SUMIF(C:C,"4",E:E)/COUNTIF(C:C,4) -> 0 | W31: 71-90 | X31: =COUNTIFS(R5:R23,">=71",R5:R23,"<=90") -> 0 | Y31: =IF(X31=0,"",AVERAGEIFS(S5:S23,R5:R23,">=71",R5:R23,"<=90")) -> 
E32: Bogeys | S32: Par 5 | T32: =SUMIF(C:C,"5",E:E)/COUNTIF(C:C,5) -> 0 | W32: 91-115 | X32: =COUNTIFS(R5:R23,">=91",R5:R23,"<=115") -> 0 | Y32: =IF(X32=0,"",AVERAGEIFS(S5:S23,R5:R23,">=91",R5:R23,"<=115")) -> 
E33: Doublebogeys eller værre | W33: 116-140 | X33: =COUNTIFS(R5:R23,">=116",R5:R23,"<=140") -> 0 | Y33: =IF(X33=0,"",AVERAGEIFS(S5:S23,R5:R23,">=116",R5:R23,"<=140")) -> 
S34: First 4 | T34: =IF(E25="0","",SUM(E5:E8)-SUM(C5:C8)) ->  | W34: 141-160 | X34: =COUNTIFS(R5:R23,">=141",R5:R23,"<=161") -> 0 | Y34: =IF(X34=0,"",AVERAGEIFS(S5:S23,R5:R23,">=141",R5:R23,"<=160")) -> 
S35: Last 4 | T35: =IF(E25="0","",SUM(E20:E23)-SUM(C20:C23)) ->  | W35: 161-180 | X35: =COUNTIFS(R5:R23,">=161",R5:R23,"<=180") -> 0 | Y35: =IF(X35=0,"",AVERAGEIFS(S5:S23,R5:R23,">=161",R5:R23,"<=180")) -> 
W37: Putting
W38: Længde (m) | X38: Antal | Y38: Holet | Z38: Holet (%)
W39: under 1 m | X39: =COUNTIFS(S5:S23,">=0,1",S5:S23,"<=0,9") -> 0 | Y39: =IF(X39=0,"",COUNTIFS(P5:P23,"=1",S5:S23,"<1")) ->  | Z39: =IF(X39=0,"",Y39/X39*100) -> 
W40: 1 - 1,5 | X40: =COUNTIFS(S5:S23,">=1",S5:S23,"<=1,5") -> 0 | Y40: =IF(X40=0,"",COUNTIFS(P5:P23,"=1",S5:S23,">=1",S5:S23,"<=1,5")) ->  | Z40: =IF(X40=0,"",Y40/X40*100) -> 
W41: 1,5 - 3 | X41: =COUNTIFS(S5:S23,">=1,6",S5:S23,"<=3") -> 0 | Y41: =IF(X41=0,"",COUNTIFS(P5:P23,"=1",S5:S23,">=1,6",S5:S23,"<=3")) ->  | Z41: =IF(X41=0,"",Y41/X41*100) -> 
W42: 3 - 4,5 | X42: =COUNTIFS(S5:S23,">=3,1",S5:S23,"<=4,5") -> 0 | Y42: =IF(X42=0,"",COUNTIFS(P5:P23,"=1",S5:S23,">=3,1",S5:S23,"<=4,5")) -> 
W43: 4,5 - 6 | X43: =COUNTIFS(S5:S23,">=4,6",S5:S23,"<=6") -> 0 | Y43: =IF(X43=0,"",COUNTIFS(P5:P23,"=1",S5:S23,">=4,6",S5:S23,"<=6")) -> 
W44: over 6 meter | X44: =COUNTIFS(S5:S23,">6") -> 0 | Y44: =IF(X44=0,"",COUNTIFS(P5:P23,"=1",S5:S23,">6")) -> 

Sheet Runde 2
A1: Korsør Golf Klub - 18 huller - Gul tee | J1: =IF(E25="0","0","1") -> 0 | L1: Dato: | O1: Handicap: | T1: Antal tildelte slag:
H3: Tee shot | K3: Fairway hits i % | N3: Bunker | R3: Approach shots
A4: Hul | B4: Gul tee | C4: Par | D4: HCP | E4: Score | F4: Netto | G4: Driver | H4: Wood | I4: Jern | J4: Venstre | K4: Midt | L4: Højre | M4: FB | N4: GB | O4: SS | P4: Putts | Q4: GIR | R4: Dist. to pin (m) | S4: Dist. to hole (m) | T4: % SS | U4: % GIR | V4: Putts/GIR | W4: Eagles | X4: Birdies | Y4: Bogeys | Z4: Værre | AA4: % Scramble | AB4: 3+ Putts | AC4: % Driver/Fairwayhits
A5: 1 | B5: 307 | C5: 4 | D5: 11 | V5: =IF(Q5=0,"",P5) ->  | AA5: =IF(AND(Q5="",P5=1),1,"") ->  | AC5: =IF(AND(G5=""),"",SUM(K5)) -> 
A6: 2 | B6: 323 | C6: 4 | D6: 5
A7: 3 | B7: 138 | C7: 3 | D7: 15
A8: 4 | B8: 310 | C8: 4 | D8: 13
A9: 5 | B9: 431 | C9: 5 | D9: 3
A10: 6 | B10: 312 | C10: 4 | D10: 9
A11: 7 | B11: 498 | C11: 5 | D11: 1
A12: 8 | B12: 138 | C12: 3 | D12: 17
A13: 9 | B13: 310 | C13: 4 | D13: 7
B14: =SUM(B5:B13) -> 2767 | C14: =SUM(C5:C13) -> 36 | D14: UD | E14: =SUM(E5:E13) -> 0 | F14: =SUM(F5:F13) -> 0 | G14: =SUM(G5:G13) -> 0 | H14: =SUM(H5:H13) -> 0 | I14: =SUM(I5:I13) -> 0 | J14: =IF((A28=27),"",(SUM(J5:J13)/SUM(J5:L13))*100) ->  | K14: =IF((A28=27),"",(SUM(K5:K13)/SUM(J5:L13))*100) ->  | L14: =IF((A28=27),"",(SUM(L5:L13)/SUM(J5:L13))*100) ->  | M14: =SUM(M5:M13) -> 0 | N14: =SUM(N5:N13) -> 0 | O14: =SUM(O5:O13) -> 0 | P14: =SUM(P5:P13) -> 0 | Q14: =SUM(Q5:Q13) -> 0 | S14: =IF(Q14=0,"",SUM(S5:S13)/Q14) ->  | V14: =SUM(V5:V13) -> 0 | W14: =ColorFunction($E$30,$E$5:$E$13) -> 0 | X14: =ColorFunction($E$31,$E$5:$E$13) -> 0 | Y14: =ColorFunction($E$32,$E$5:$E$13) -> 0 | Z14: =ColorFunction($E$33,$E$5:$E$13) -> 0 | AA14: =SUM(AA5:AA13)/(9-Q14)*100 -> 0 | AB14: =COUNTIF(P5:P13,">2") -> 0 | AC14: =IF((G14=0),"",SUM(AC5:AC13)/G14*100) -> 
A15: 10 | B15: 481 | C15: 5 | D15: 4 | V15: =IF(Q15=0,"",P15) ->  | AA15: =IF(AND(Q15="",P15=1),1,"") ->  | AC15: =IF(AND(G15=""),"",SUM(K15)) -> 
A16: 11 | B16: 319 | C16: 4 | D16: 16
A17: 12 | B17: 431 | C17: 5 | D17: 2
A18: 13 | B18: 122 | C18: 3 | D18: 18
A19: 14 | B19: 379 | C19: 4 | D19: 6
A20: 15 | B20: 316 | C20: 4 | D20: 8
A21: 16 | B21: 322 | C21: 4 | D21: 14
A22: 17 | B22: 345 | C22: 4 | D22: 10
A23: 18 | B23: 281 | C23: 4 | D23: 12
B24: =SUM(B15:B23) -> 2996 | C24: =SUM(C15:C23) -> 37 | D24: IND | E24: =SUM(E15:E23) -> 0 | F24: =SUM(F15:F23) -> 0 | G24: =SUM(G15:G23) -> 0 | H24: =SUM(H15:H23) -> 0 | I24: =SUM(I15:I23) -> 0 | J24: =IF((A29=27),"",(SUM(J15:J23)/SUM(J15:L23))*100) ->  | K24: =IF((A29=27),"",(SUM(K15:K23)/SUM(J15:L23))*100) ->  | L24: =IF((A29=27),"",(SUM(L15:L23)/SUM(J15:L23))*100) ->  | M24: =SUM(M15:M23) -> 0 | N24: =SUM(N15:N23) -> 0 | O24: =SUM(O15:O23) -> 0 | P24: =SUM(P15:P23) -> 0 | Q24: =SUM(Q15:Q23) -> 0 | S24: =IF(Q24=0,"",SUM(S15:S23)/Q24) ->  | V24: =SUM(V15:V23) -> 0 | W24: =ColorFunction($E$30,$E$15:$E$23) -> 0 | X24: =ColorFunction($E$31,$E$15:$E$23) -> 0 | Y24: =ColorFunction($E$32,$E$15:$E$23) -> 0 | Z24: =ColorFunction($E$33,$E$15:$E$23) -> 0 | AA24: =SUM(AA15:AA23)/(9-Q24)*100 -> 0 | AB24: =COUNTIF(P15:P23,">2") -> 0 | AC24: =IF((G24=0),"",SUM(AC15:AC23)/G24*100) -> 
B25: =SUM(B24,B14) -> 5763 | C25: =SUM(C24,C14) -> 73 | D25: TOTAL | E25: =IF(E14=0,"0",(E24+E14)) -> 0 | F25: =SUM(F14,F24) -> 0 | G25: =SUM(G24,G14) -> 0 | H25: =SUM(H24,H14) -> 0 | I25: =SUM(I24,I14) -> 0 | J25: =IF((A28=27),"",(SUM(J14,J24)/2)) ->  | K25: =IF((A28=27),"",(SUM(K14,K24)/2)) ->  | L25: =IF((A28=27),"",(SUM(L14,L24)/2)) ->  | M25: =SUM(M24,M14) -> 0 | N25: =SUM(N24,N14) -> 0 | O25: =SUM(O24,O14) -> 0 | P25: =IF(P14+P24=0,"",SUM(P24,P14)) ->  | Q25: =IF(Q14+Q24=0,"",SUM(Q24,Q14)) ->  | S25: =IF(Q25="","",SUM(S24,S14)/2) ->  | T25: =IF(N25=0,"",(O25)/N25*100) ->  | U25: =IF(Q25="","",(Q25)/18*100) ->  | V25: =IF(Q25="","",(V14+V24)/Q25) ->  | W25: =SUM(W14,W24) -> 0 | X25: =SUM(X14,X24) -> 0 | Y25: =SUM(Y14,Y24) -> 0 | Z25: =SUM(Z14,Z24) -> 0 | AA25: =SUM(AA14,AA24)/2 -> 0 | AB25: =SUM(AB14,AB24) -> 0 | AC25: =SUM(AC24,AC14)/2 -> 0
E27: Udfyld alle grønne felter med 1 for positiv eller antal i tal
A28: =COUNTBLANK(I5:K13) -> 27 | W28: Approach
A29: =COUNTBLANK(I15:K23) -> 27 | E29: Udfyld følgende farver: | S29: Holes to par | W29: Længde (m) | X29: Antal | Y29: Afstand (m)
A30: =SUM(L5:L23) -> 0 | E30: Eagles | S30: Par 3 | T30: =SUMIF(C:C,"3",E:E)/COUNTIF(C:C,3) -> 0 | W30: 45-70 | X30: =COUNTIFS(R5:R23,">=45",R5:R23,"<=70") -> 0 | Y30: =IF(X30=0,"",AVERAGEIFS(S5:S23,R5:R23,">=45",R5:R23,"<=70")) -> 
E31: Birdies | S31: Par 4 | T31: =SUMIF(C:C,"4",E:E)/COUNTIF(C:C,4) -> 0 | W31: 71-90 | X31: =COUNTIFS(R5:R23,">=71",R5:R23,"<=90") -> 0 | Y31: =IF(X31=0,"",AVERAGEIFS(S5:S23,R5:R23,">=71",R5:R23,"<=90")) -> 
E32: Bogeys | S32: Par 5 | T32: =SUMIF(C:C,"5",E:E)/COUNTIF(C:C,5) -> 0 | W32: 91-115 | X32: =COUNTIFS(R5:R23,">=91",R5:R23,"<=115") -> 0 | Y32: =IF(X32=0,"",AVERAGEIFS(S5:S23,R5:R23,">=91",R5:R23,"<=115")) -> 
E33: Doublebogeys eller værre | W33: 116-140 | X33: =COUNTIFS(R5:R23,">=116",R5:R23,"<=140") -> 0 | Y33: =IF(X33=0,"",AVERAGEIFS(S5:S23,R5:R23,">=116",R5:R23,"<=140")) -> 
S34: First 4 | T34: =IF(E25="0","",SUM(E5:E8)-SUM(C5:C8)) ->  | W34: 141-160 | X34: =COUNTIFS(R5:R23,">=141",R5:R23,"<=161") -> 0 | Y34: =IF(X34=0,"",AVERAGEIFS(S5:S23,R5:R23,">=141",R5:R23,"<=160")) -> 
S35: Last 4 | T35: =IF(E25="0","",SUM(E20:E23)-SUM(C20:C23)) ->  | W35: 161-180 | X35: =COUNTIFS(R5:R23,">=161",R5:R23,"<=180") -> 0 | Y35: =IF(X35=0,"",AVERAGEIFS(S5:S23,R5:R23,">=161",R5:R23,"<=180")) -> 
W37: Putting
W38: Længde (m) | X38: Antal | Y38: Holet | Z38: Holet (%)
W39: under 1 m | X39: =COUNTIFS(S5:S23,">=0,1",S5:S23,"<=0,9") -> 0 | Y39: =IF(X39=0,"",COUNTIFS(P5:P23,"=1",S5:S23,"<1")) ->  | Z39: =IF(X39=0,"",Y39/X39*100) -> 
W40: 1 - 1,5 | X40: =COUNTIFS(S5:S23,">=1",S5:S23,"<=1,5") -> 0 | Y40: =IF(X40=0,"",COUNTIFS(P5:P23,"=1",S5:S23,">=1",S5:S23,"<=1,5")) ->  | Z40: =IF(X40=0,"",Y40/X40*100) -> 
W41: 1,5 - 3 | X41: =COUNTIFS(S5:S23,">=1,6",S5:S23,"<=3") -> 0 | Y41: =IF(X41=0,"",COUNTIFS(P5:P23,"=1",S5:S23,">=1,6",S5:S23,"<=3")) ->  | Z41: =IF(X41=0,"",Y41/X41*100) -> 
W42: 3 - 4,5 | X42: =COUNTIFS(S5:S23,">=3,1",S5:S23,"<=4,5") -> 0 | Y42: =IF(X42=0,"",COUNTIFS(P5:P23,"=1",S5:S23,">=3,1",S5:S23,"<=4,5")) -> 
W43: 4,5 - 6 | X43: =COUNTIFS(S5:S23,">=4,6",S5:S23,"<=6") -> 0 | Y43: =IF(X43=0,"",COUNTIFS(P5:P23,"=1",S5:S23,">=4,6",S5:S23,"<=6")) -> 
W44: over 6 meter | X44: =COUNTIFS(S5:S23,">6") -> 0 | Y44: =IF(X44=0,"",COUNTIFS(P5:P23,"=1",S5:S23,">6")) -> 

Sheet Runde 3
A1: Korsør Golf Klub - 18 huller - Gul tee | J1: =IF(E25="0","0","1") -> 0 | L1: Dato: | O1: Handicap: | T1: Antal tildelte slag:
H3: Tee shot | K3: Fairway hits i % | N3: Bunker | R3: Approach shots
A4: Hul | B4: Gul tee | C4: Par | D4: HCP | E4: Score | F4: Netto | G4: Driver | H4: Wood | I4: Jern | J4: Venstre | K4: Midt | L4: Højre | M4: FB | N4: GB | O4: SS | P4: Putts | Q4: GIR | R4: Dist. to pin (m) | S4: Dist. to hole (m) | T4: % SS | U4: % GIR | V4: Putts/GIR | W4: Eagles | X4: Birdies | Y4: Bogeys | Z4: Værre | AA4: % Scramble | AB4: 3+ Putts | AC4: % Driver/Fairwayhits
A5: 1 | B5: 307 | C5: 4 | D5: 11 | V5: =IF(Q5=0,"",P5) ->  | AA5: =IF(AND(Q5="",P5=1),1,"") ->  | AC5: =IF(AND(G5=""),"",SUM(K5)) -> 
A6: 2 | B6: 323 | C6: 4 | D6: 5
A7: 3 | B7: 138 | C7: 3 | D7: 15
A8: 4 | B8: 310 | C8: 4 | D8: 13
A9: 5 | B9: 431 | C9: 5 | D9: 3
A10: 6 | B10: 312 | C10: 4 | D10: 9
A11: 7 | B11: 498 | C11: 5 | D11: 1
A12: 8 | B12: 138 | C12: 3 | D12: 17
A13: 9 | B13: 310 | C13: 4 | D13: 7
B14: =SUM(B5:B13) -> 2767 | C14: =SUM(C5:C13) -> 36 | D14: UD | E14: =SUM(E5:E13) -> 0 | F14: =SUM(F5:F13) -> 0 | G14: =SUM(G5:G13) -> 0 | H14: =SUM(H5:H13) -> 0 | I14: =SUM(I5:I13) -> 0 | J14: =IF((A28=27),"",(SUM(J5:J13)/SUM(J5:L13))*100) ->  | K14: =IF((A28=27),"",(SUM(K5:K13)/SUM(J5:L13))*100) ->  | L14: =IF((A28=27),"",(SUM(L5:L13)/SUM(J5:L13))*100) ->  | M14: =SUM(M5:M13) -> 0 | N14: =SUM(N5:N13) -> 0 | O14: =SUM(O5:O13) -> 0 | P14: =SUM(P5:P13) -> 0 | Q14: =SUM(Q5:Q13) -> 0 | S14: =IF(Q14=0,"",SUM(S5:S13)/Q14) ->  | V14: =SUM(V5:V13) -> 0 | W14: =ColorFunction($E$30,$E$5:$E$13) -> 0 | X14: =ColorFunction($E$31,$E$5:$E$13) -> 0 | Y14: =ColorFunction($E$32,$E$5:$E$13) -> 0 | Z14: =ColorFunction($E$33,$E$5:$E$13) -> 0 | AA14: =SUM(AA5:AA13)/(9-Q14)*100 -> 0 | AB14: =COUNTIF(P5:P13,">2") -> 0 | AC14: =IF((G14=0),"",SUM(AC5:AC13)/G14*100) -> 
A15: 10 | B15: 481 | C15: 5 | D15: 4 | V15: =IF(Q15=0,"",P15) ->  | AA15: =IF(AND(Q15="",P15=1),1,"") ->  | AC15: =IF(AND(G15=""),"",SUM(K15)) -> 
A16: 11 | B16: 319 | C16: 4 | D16: 16
A17: 12 | B17: 431 | C17: 5 | D17: 2
A18: 13 | B18: 122 | C18: 3 | D18: 18
A19: 14 | B19: 379 | C19: 4 | D19: 6
A20: 15 | B20: 316 | C20: 4 | D20: 8
A21: 16 | B21: 322 | C21: 4 | D21: 14
A22: 17 | B22: 345 | C22: 4 | D22: 10
A23: 18 | B23: 281 | C23: 4 | D23: 12
B24: =SUM(B15:B23) -> 2996 | C24: =SUM(C15:C23) -> 37 | D24: IND | E24: =SUM(E15:E23) -> 0 | F24: =SUM(F15:F23) -> 0 | G24: =SUM(G15:G23) -> 0 | H24: =SUM(H15:H23) -> 0 | I24: =SUM(I15:I23) -> 0 | J24: =IF((A29=27),"",(SUM(J15:J23)/SUM(J15:L23))*100) ->  | K24: =IF((A29=27),"",(SUM(K15:K23)/SUM(J15:L23))*100) ->  | L24: =IF((A29=27),"",(SUM(L15:L23)/SUM(J15:L23))*100) ->  | M24: =SUM(M15:M23) -> 0 | N24: =SUM(N15:N23) -> 0 | O24: =SUM(O15:O23) -> 0 | P24: =SUM(P15:P23) -> 0 | Q24: =SUM(Q15:Q23) -> 0 | S24: =IF(Q24=0,"",SUM(S15:S23)/Q24) ->  | V24: =SUM(V15:V23) -> 0 | W24: =ColorFunction($E$30,$E$15:$E$23) -> 0 | X24: =ColorFunction($E$31,$E$15:$E$23) -> 0 | Y24: =ColorFunction($E$32,$E$15:$E$23) -> 0 | Z24: =ColorFunction($E$33,$E$15:$E$23) -> 0 | AA24: =SUM(AA15:AA23)/(9-Q24)*100 -> 0 | AB24: =COUNTIF(P15:P23,">2") -> 0 | AC24: =IF((G24=0),"",SUM(AC15:AC23)/G24*100) -> 
B25: =SUM(B24,B14) -> 5763 | C25: =SUM(C24,C14) -> 73 | D25: TOTAL | E25: =IF(E14=0,"0",(E24+E14)) -> 0 | F25: =SUM(F14,F24) -> 0 | G25: =SUM(G24,G14) -> 0 | H25: =SUM(H24,H14) -> 0 | I25: =SUM(I24,I14) -> 0 | J25: =IF((A28=27),"",(SUM(J14,J24)/2)) ->  | K25: =IF((A28=27),"",(SUM(K14,K24)/2)) ->  | L25: =IF((A28=27),"",(SUM(L14,L24)/2)) ->  | M25: =SUM(M24,M14) -> 0 | N25: =SUM(N24,N14) -> 0 | O25: =SUM(O24,O14) -> 0 | P25: =IF(P14+P24=0,"",SUM(P24,P14)) ->  | Q25: =IF(Q14+Q24=0,"",SUM(Q24,Q14)) ->  | S25: =IF(Q25="","",SUM(S24,S14)/2) ->  | T25: =IF(N25=0,"",(O25)/N25*100) ->  | U25: =IF(Q25="","",(Q25)/18*100) ->  | V25: =IF(Q25="","",(V14+V24)/Q25) ->  | W25: =SUM(W14,W24) -> 0 | X25: =SUM(X14,X24) -> 0 | Y25: =SUM(Y14,Y24) -> 0 | Z25: =SUM(Z14,Z24) -> 0 | AA25: =SUM(AA14,AA24)/2 -> 0 | AB25: =SUM(AB14,AB24) -> 0 | AC25: =SUM(AC24,AC14)/2 -> 0
E27: Udfyld alle grønne felter med 1 for positiv eller antal i tal
A28: =COUNTBLANK(I5:K13) -> 27 | W28: Approach
A29: =COUNTBLANK(I15:K23) -> 27 | E29: Udfyld følgende farver: | S29: Holes to par | W29: Længde (m) | X29: Antal | Y29: Afstand (m)
A30: =SUM(L5:L23) -> 0 | E30: Eagles | S30: Par 3 | T30: =SUMIF(C:C,"3",E:E)/COUNTIF(C:C,3) -> 0 | W30: 45-70 | X30: =COUNTIFS(R5:R23,">=45",R5:R23,"<=70") -> 0 | Y30: =IF(X30=0,"",AVERAGEIFS(S5:S23,R5:R23,">=45",R5:R23,"<=70")) -> 
E31: Birdies | S31: Par 4 | T31: =SUMIF(C:C,"4",E:E)/COUNTIF(C:C,4) -> 0 | W31: 71-90 | X31: =COUNTIFS(R5:R23,">=71",R5:R23,"<=90") -> 0 | Y31: =IF(X31=0,"",AVERAGEIFS(S5:S23,R5:R23,">=71",R5:R23,"<=90")) -> 
E32: Bogeys | S32: Par 5 | T32: =SUMIF(C:C,"5",E:E)/COUNTIF(C:C,5) -> 0 | W32: 91-115 | X32: =COUNTIFS(R5:R23,">=91",R5:R23,"<=115") -> 0 | Y32: =IF(X32=0,"",AVERAGEIFS(S5:S23,R5:R23,">=91",R5:R23,"<=115")) -> 
E33: Doublebogeys eller værre | W33: 116-140 | X33: =COUNTIFS(R5:R23,">=116",R5:R23,"<=140") -> 0 | Y33: =IF(X33=0,"",AVERAGEIFS(S5:S23,R5:R23,">=116",R5:R23,"<=140")) -> 
S34: First 4 | T34: =IF(E25="0","",SUM(E5:E8)-SUM(C5:C8)) ->  | W34: 141-160 | X34: =COUNTIFS(R5:R23,">=141",R5:R23,"<=161") -> 0 | Y34: =IF(X34=0,"",AVERAGEIFS(S5:S23,R5:R23,">=141",R5:R23,"<=160")) -> 
S35: Last 4 | T35: =IF(E25="0","",SUM(E20:E23)-SUM(C20:C23)) ->  | W35: 161-180 | X35: =COUNTIFS(R5:R23,">=161",R5:R23,"<=180") -> 0 | Y35: =IF(X35=0,"",AVERAGEIFS(S5:S23,R5:R23,">=161",R5:R23,"<=180")) -> 
W37: Putting
W38: Længde (m) | X38: Antal | Y38: Holet | Z38: Holet (%)
W39: under 1 m | X39: =COUNTIFS(S5:S23,">=0,1",S5:S23,"<=0,9") -> 0 | Y39: =IF(X39=0,"",COUNTIFS(P5:P23,"=1",S5:S23,"<1")) ->  | Z39: =IF(X39=0,"",Y39/X39*100) -> 
W40: 1 - 1,5 | X40: =COUNTIFS(S5:S23,">=1",S5:S23,"<=1,5") -> 0 | Y40: =IF(X40=0,"",COUNTIFS(P5:P23,"=1",S5:S23,">=1",S5:S23,"<=1,5")) ->  | Z40: =IF(X40=0,"",Y40/X40*100) -> 
W41: 1,5 - 3 | X41: =COUNTIFS(S5:S23,">=1,6",S5:S23,"<=3") -> 0 | Y41: =IF(X41=0,"",COUNTIFS(P5:P23,"=1",S5:S23,">=1,6",S5:S23,"<=3")) ->  | Z41: =IF(X41=0,"",Y41/X41*100) -> 
W42: 3 - 4,5 | X42: =COUNTIFS(S5:S23,">=3,1",S5:S23,"<=4,5") -> 0 | Y42: =IF(X42=0,"",COUNTIFS(P5:P23,"=1",S5:S23,">=3,1",S5:S23,"<=4,5")) -> 
W43: 4,5 - 6 | X43: =COUNTIFS(S5:S23,">=4,6",S5:S23,"<=6") -> 0 | Y43: =IF(X43=0,"",COUNTIFS(P5:P23,"=1",S5:S23,">=4,6",S5:S23,"<=6")) -> 
W44: over 6 meter | X44: =COUNTIFS(S5:S23,">6") -> 0 | Y44: =IF(X44=0,"",COUNTIFS(P5:P23,"=1",S5:S23,">6")) -> 

Sheet Runde 4
A1: Korsør Golf Klub - 18 huller - Gul tee | J1: =IF(E25="0","0","1") -> 0 | L1: Dato: | O1: Handicap: | T1: Antal tildelte slag:
H3: Tee shot | K3: Fairway hits i % | N3: Bunker | R3: Approach shots
A4: Hul | B4: Gul tee | C4: Par | D4: HCP | E4: Score | F4: Netto | G4: Driver | H4: Wood | I4: Jern | J4: Venstre | K4: Midt | L4: Højre | M4: FB | N4: GB | O4: SS | P4: Putts | Q4: GIR | R4: Dist. to pin (m) | S4: Dist. to hole (m) | T4: % SS | U4: % GIR | V4: Putts/GIR | W4: Eagles | X4: Birdies | Y4: Bogeys | Z4: Værre | AA4: % Scramble | AB4: 3+ Putts | AC4: % Driver/Fairwayhits
A5: 1 | B5: 307 | C5: 4 | D5: 11 | V5: =IF(Q5=0,"",P5) ->  | AA5: =IF(AND(Q5="",P5=1),1,"") ->  | AC5: =IF(AND(G5=""),"",SUM(K5)) -> 
A6: 2 | B6: 323 | C6: 4 | D6: 5
A7: 3 | B7: 138 | C7: 3 | D7: 15
A8: 4 | B8: 310 | C8: 4 | D8: 13
A9: 5 | B9: 431 | C9: 5 | D9: 3
A10: 6 | B10: 312 | C10: 4 | D10: 9
A11: 7 | B11: 498 | C11: 5 | D11: 1
A12: 8 | B12: 138 | C12: 3 | D12: 17
A13: 9 | B13: 310 | C13: 4 | D13: 7
B14: =SUM(B5:B13) -> 2767 | C14: =SUM(C5:C13) -> 36 | D14: UD | E14: =SUM(E5:E13) -> 0 | F14: =SUM(F5:F13) -> 0 | G14: =SUM(G5:G13) -> 0 | H14: =SUM(H5:H13) -> 0 | I14: =SUM(I5:I13) -> 0 | J14: =IF((A28=27),"",(SUM(J5:J13)/SUM(J5:L13))*100) ->  | K14: =IF((A28=27),"",(SUM(K5:K13)/SUM(J5:L13))*100) ->  | L14: =IF((A28=27),"",(SUM(L5:L13)/SUM(J5:L13))*100) ->  | M14: =SUM(M5:M13) -> 0 | N14: =SUM(N5:N13) -> 0 | O14: =SUM(O5:O13) -> 0 | P14: =SUM(P5:P13) -> 0 | Q14: =SUM(Q5:Q13) -> 0 | S14: =IF(Q14=0,"",SUM(S5:S13)/Q14) ->  | V14: =SUM(V5:V13) -> 0 | W14: =ColorFunction($E$30,$E$5:$E$13) -> 0 | X14: =ColorFunction($E$31,$E$5:$E$13) -> 0 | Y14: =ColorFunction($E$32,$E$5:$E$13) -> 0 | Z14: =ColorFunction($E$33,$E$5:$E$13) -> 0 | AA14: =SUM(AA5:AA13)/(9-Q14)*100 -> 0 | AB14: =COUNTIF(P5:P13,">2") -> 0 | AC14: =IF((G14=0),"",SUM(AC5:AC13)/G14*100) -> 
A15: 10 | B15: 481 | C15: 5 | D15: 4 | V15: =IF(Q15=0,"",P15) ->  | AA15: =IF(AND(Q15="",P15=1),1,"") ->  | AC15: =IF(AND(G15=""),"",SUM(K15)) -> 
A16: 11 | B16: 319 | C16: 4 | D16: 16
A17: 12 | B17: 431 | C17: 5 | D17: 2
A18: 13 | B18: 122 | C18: 3 | D18: 18
A19: 14 | B19: 379 | C19: 4 | D19: 6
A20: 15 | B20: 316 | C20: 4 | D20: 8
A21: 16 | B21: 322 | C21: 4 | D21: 14
A22: 17 | B22: 345 | C22: 4 | D22: 10
A23: 18 | B23: 281 | C23: 4 | D23: 12
B24: =SUM(B15:B23) -> 2996 | C24: =SUM(C15:C23) -> 37 | D24: IND | E24: =SUM(E15:E23) -> 0 | F24: =SUM(F15:F23) -> 0 | G24: =SUM(G15:G23) -> 0 | H24: =SUM(H15:H23) -> 0 | I24: =SUM(I15:I23) -> 0 | J24: =IF((A29=27),"",(SUM(J15:J23)/SUM(J15:L23))*100) ->  | K24: =IF((A29=27),"",(SUM(K15:K23)/SUM(J15:L23))*100) ->  | L24: =IF((A29=27),"",(SUM(L15:L23)/SUM(J15:L23))*100) ->  | M24: =SUM(M15:M23) -> 0 | N24: =SUM(N15:N23) -> 0 | O24: =SUM(O15:O23) -> 0 | P24: =SUM(P15:P23) -> 0 | Q24: =SUM(Q15:Q23) -> 0 | S24: =IF(Q24=0,"",SUM(S15:S23)/Q24) ->  | V24: =SUM(V15:V23) -> 0 | W24: =ColorFunction($E$30,$E$15:$E$23) -> 0 | X24: =ColorFunction($E$31,$E$15:$E$23) -> 0 | Y24: =ColorFunction($E$32,$E$15:$E$23) -> 0 | Z24: =ColorFunction($E$33,$E$15:$E$23) -> 0 | AA24: =SUM(AA15:AA23)/(9-Q24)*100 -> 0 | AB24: =COUNTIF(P15:P23,">2") -> 0 | AC24: =IF((G24=0),"",SUM(AC15:AC23)/G24*100) -> 
B25: =SUM(B24,B14) -> 5763 | C25: =SUM(C24,C14) -> 73 | D25: TOTAL | E25: =IF(E14=0,"0",(E24+E14)) -> 0 | F25: =SUM(F14,F24) -> 0 | G25: =SUM(G24,G14) -> 0 | H25: =SUM(H24,H14) -> 0 | I25: =SUM(I24,I14) -> 0 | J25: =IF((A28=27),"",(SUM(J14,J24)/2)) ->  | K25: =IF((A28=27),"",(SUM(K14,K24)/2)) ->  | L25: =IF((A28=27),"",(SUM(L14,L24)/2)) ->  | M25: =SUM(M24,M14) -> 0 | N25: =SUM(N24,N14) -> 0 | O25: =SUM(O24,O14) -> 0 | P25: =IF(P14+P24=0,"",SUM(P24,P14)) ->  | Q25: =IF(Q14+Q24=0,"",SUM(Q24,Q14)) ->  | S25: =IF(Q25="","",SUM(S24,S14)/2) ->  | T25: =IF(N25=0,"",(O25)/N25*100) ->  | U25: =IF(Q25="","",(Q25)/18*100) ->  | V25: =IF(Q25="","",(V14+V24)/Q25) ->  | W25: =SUM(W14,W24) -> 0 | X25: =SUM(X14,X24) -> 0 | Y25: =SUM(Y14,Y24) -> 0 | Z25: =SUM(Z14,Z24) -> 0 | AA25: =SUM(AA14,AA24)/2 -> 0 | AB25: =SUM(AB14,AB24) -> 0 | AC25: =SUM(AC24,AC14)/2 -> 0
E27: Udfyld alle grønne felter med 1 for positiv eller antal i tal
A28: =COUNTBLANK(I5:K13) -> 27 | W28: Approach
A29: =COUNTBLANK(I15:K23) -> 27 | E29: Udfyld følgende farver: | S29: Holes to par | W29: Længde (m) | X29: Antal | Y29: Afstand (m)
A30: =SUM(L5:L23) -> 0 | E30: Eagles | S30: Par 3 | T30: =SUMIF(C:C,"3",E:E)/COUNTIF(C:C,3) -> 0 | W30: 45-70 | X30: =COUNTIFS(R5:R23,">=45",R5:R23,"<=70") -> 0 | Y30: =IF(X30=0,"",AVERAGEIFS(S5:S23,R5:R23,">=45",R5:R23,"<=70")) -> 
E31: Birdies | S31: Par 4 | T31: =SUMIF(C:C,"4",E:E)/COUNTIF(C:C,4) -> 0 | W31: 71-90 | X31: =COUNTIFS(R5:R23,">=71",R5:R23,"<=90") -> 0 | Y31: =IF(X31=0,"",AVERAGEIFS(S5:S23,R5:R23,">=71",R5:R23,"<=90")) -> 
E32: Bogeys | S32: Par 5 | T32: =SUMIF(C:C,"5",E:E)/COUNTIF(C:C,5) -> 0 | W32: 91-115 | X32: =COUNTIFS(R5:R23,">=91",R5:R23,"<=115") -> 0 | Y32: =IF(X32=0,"",AVERAGEIFS(S5:S23,R5:R23,">=91",R5:R23,"<=115")) -> 
E33: Doublebogeys eller værre | W33: 116-140 | X33: =COUNTIFS(R5:R23,">=116",R5:R23,"<=140") -> 0 | Y33: =IF(X33=0,"",AVERAGEIFS(S5:S23,R5:R23,">=116",R5:R23,"<=140")) -> 
S34: First 4 | T34: =IF(E25="0","",SUM(E5:E8)-SUM(C5:C8)) ->  | W34: 141-160 | X34: =COUNTIFS(R5:R23,">=141",R5:R23,"<=161") -> 0 | Y34: =IF(X34=0,"",AVERAGEIFS(S5:S23,R5:R23,">=141",R5:R23,"<=160")) -> 
S35: Last 4 | T35: =IF(E25="0","",SUM(E20:E23)-SUM(C20:C23)) ->  | W35: 161-180 | X35: =COUNTIFS(R5:R23,">=161",R5:R23,"<=180") -> 0 | Y35: =IF(X35=0,"",AVERAGEIFS(S5:S23,R5:R23,">=161",R5:R23,"<=180")) -> 
W37: Putting
W38: Længde (m) | X38: Antal | Y38: Holet | Z38: Holet (%)
W39: under 1 m | X39: =COUNTIFS(S5:S23,">=0,1",S5:S23,"<=0,9") -> 0 | Y39: =IF(X39=0,"",COUNTIFS(P5:P23,"=1",S5:S23,"<1")) ->  | Z39: =IF(X39=0,"",Y39/X39*100) -> 
W40: 1 - 1,5 | X40: =COUNTIFS(S5:S23,">=1",S5:S23,"<=1,5") -> 0 | Y40: =IF(X40=0,"",COUNTIFS(P5:P23,"=1",S5:S23,">=1",S5:S23,"<=1,5")) ->  | Z40: =IF(X40=0,"",Y40/X40*100) -> 
W41: 1,5 - 3 | X41: =COUNTIFS(S5:S23,">=1,6",S5:S23,"<=3") -> 0 | Y41: =IF(X41=0,"",COUNTIFS(P5:P23,"=1",S5:S23,">=1,6",S5:S23,"<=3")) ->  | Z41: =IF(X41=0,"",Y41/X41*100) -> 
W42: 3 - 4,5 | X42: =COUNTIFS(S5:S23,">=3,1",S5:S23,"<=4,5") -> 0 | Y42: =IF(X42=0,"",COUNTIFS(P5:P23,"=1",S5:S23,">=3,1",S5:S23,"<=4,5")) -> 
W43: 4,5 - 6 | X43: =COUNTIFS(S5:S23,">=4,6",S5:S23,"<=6") -> 0 | Y43: =IF(X43=0,"",COUNTIFS(P5:P23,"=1",S5:S23,">=4,6",S5:S23,"<=6")) -> 
W44: over 6 meter | X44: =COUNTIFS(S5:S23,">6") -> 0 | Y44: =IF(X44=0,"",COUNTIFS(P5:P23,"=1",S5:S23,">6")) -> 

Sheet Runde 5
A1: Korsør Golf Klub - 18 huller - Gul tee | J1: =IF(E25="0","0","1") -> 0 | L1: Dato: | O1: Handicap: | T1: Antal tildelte slag:
H3: Tee shot | K3: Fairway hits i % | N3: Bunker | R3: Approach shots
A4: Hul | B4: Gul tee | C4: Par | D4: HCP | E4: Score | F4: Netto | G4: Driver | H4: Wood | I4: Jern | J4: Venstre | K4: Midt | L4: Højre | M4: FB | N4: GB | O4: SS | P4: Putts | Q4: GIR | R4: Dist. to pin (m) | S4: Dist. to hole (m) | T4: % SS | U4: % GIR | V4: Putts/GIR | W4: Eagles | X4: Birdies | Y4: Bogeys | Z4: Værre | AA4: % Scramble | AB4: 3+ Putts | AC4: % Driver/Fairwayhits
A5: 1 | B5: 307 | C5: 4 | D5: 11 | V5: =IF(Q5=0,"",P5) ->  | AA5: =IF(AND(Q5="",P5=1),1,"") ->  | AC5: =IF(AND(G5=""),"",SUM(K5)) -> 
A6: 2 | B6: 323 | C6: 4 | D6: 5
A7: 3 | B7: 138 | C7: 3 | D7: 15
A8: 4 | B8: 310 | C8: 4 | D8: 13
A9: 5 | B9: 431 | C9: 5 | D9: 3
A10: 6 | B10: 312 | C10: 4 | D10: 9
A11: 7 | B11: 498 | C11: 5 | D11: 1
A12: 8 | B12: 138 | C12: 3 | D12: 17
A13: 9 | B13: 310 | C13: 4 | D13: 7
B14: =SUM(B5:B13) -> 2767 | C14: =SUM(C5:C13) -> 36 | D14: UD | E14: =SUM(E5:E13) -> 0 | F14: =SUM(F5:F13) -> 0 | G14: =SUM(G5:G13) -> 0 | H14: =SUM(H5:H13) -> 0 | I14: =SUM(I5:I13) -> 0 | J14: =IF((A28=27),"",(SUM(J5:J13)/SUM(J5:L13))*100) ->  | K14: =IF((A28=27),"",(SUM(K5:K13)/SUM(J5:L13))*100) ->  | L14: =IF((A28=27),"",(SUM(L5:L13)/SUM(J5:L13))*100) ->  | M14: =SUM(M5:M13) -> 0 | N14: =SUM(N5:N13) -> 0 | O14: =SUM(O5:O13) -> 0 | P14: =SUM(P5:P13) -> 0 | Q14: =SUM(Q5:Q13) -> 0 | S14: =IF(Q14=0,"",SUM(S5:S13)/Q14) ->  | V14: =SUM(V5:V13) -> 0 | W14: =ColorFunction($E$30,$E$5:$E$13) -> 0 | X14: =ColorFunction($E$31,$E$5:$E$13) -> 0 | Y14: =ColorFunction($E$32,$E$5:$E$13) -> 0 | Z14: =ColorFunction($E$33,$E$5:$E$13) -> 0 | AA14: =SUM(AA5:AA13)/(9-Q14)*100 -> 0 | AB14: =COUNTIF(P5:P13,">2") -> 0 | AC14: =IF((G14=0),"",SUM(AC5:AC13)/G14*100) -> 
A15: 10 | B15: 481 | C15: 5 | D15: 4 | V15: =IF(Q15=0,"",P15) ->  | AA15: =IF(AND(Q15="",P15=1),1,"") ->  | AC15: =IF(AND(G15=""),"",SUM(K15)) -> 
A16: 11 | B16: 319 | C16: 4 | D16: 16
A17: 12 | B17: 431 | C17: 5 | D17: 2
A18: 13 | B18: 122 | C18: 3 | D18: 18
A19: 14 | B19: 379 | C19: 4 | D19: 6
A20: 15 | B20: 316 | C20: 4 | D20: 8
A21: 16 | B21: 322 | C21: 4 | D21: 14
A22: 17 | B22: 345 | C22: 4 | D22: 10
A23: 18 | B23: 281 | C23: 4 | D23: 12
B24: =SUM(B15:B23) -> 2996 | C24: =SUM(C15:C23) -> 37 | D24: IND | E24: =SUM(E15:E23) -> 0 | F24: =SUM(F15:F23) -> 0 | G24: =SUM(G15:G23) -> 0 | H24: =SUM(H15:H23) -> 0 | I24: =SUM(I15:I23) -> 0 | J24: =IF((A29=27),"",(SUM(J15:J23)/SUM(J15:L23))*100) ->  | K24: =IF((A29=27),"",(SUM(K15:K23)/SUM(J15:L23))*100) ->  | L24: =IF((A29=27),"",(SUM(L15:L23)/SUM(J15:L23))*100) ->  | M24: =SUM(M15:M23) -> 0 | N24: =SUM(N15:N23) -> 0 | O24: =SUM(O15:O23) -> 0 | P24: =SUM(P15:P23) -> 0 | Q24: =SUM(Q15:Q23) -> 0 | S24: =IF(Q24=0,"",SUM(S15:S23)/Q24) ->  | V24: =SUM(V15:V23) -> 0 | W24: =ColorFunction($E$30,$E$15:$E$23) -> 0 | X24: =ColorFunction($E$31,$E$15:$E$23) -> 0 | Y24: =ColorFunction($E$32,$E$15:$E$23) -> 0 | Z24: =ColorFunction($E$33,$E$15:$E$23) -> 0 | AA24: =SUM(AA15:AA23)/(9-Q24)*100 -> 0 | AB24: =COUNTIF(P15:P23,">2") -> 0 | AC24: =IF((G24=0),"",SUM(AC15:AC23)/G24*100) -> 
B25: =SUM(B24,B14) -> 5763 | C25: =SUM(C24,C14) -> 73 | D25: TOTAL | E25: =IF(E14=0,"0",(E24+E14)) -> 0 | F25: =SUM(F14,F24) -> 0 | G25: =SUM(G24,G14) -> 0 | H25: =SUM(H24,H14) -> 0 | I25: =SUM(I24,I14) -> 0 | J25: =IF((A28=27),"",(SUM(J14,J24)/2)) ->  | K25: =IF((A28=27),"",(SUM(K14,K24)/2)) ->  | L25: =IF((A28=27),"",(SUM(L14,L24)/2)) ->  | M25: =SUM(M24,M14) -> 0 | N25: =SUM(N24,N14) -> 0 | O25: =SUM(O24,O14) -> 0 | P25: =IF(P14+P24=0,"",SUM(P24,P14)) ->  | Q25: =IF(Q14+Q24=0,"",SUM(Q24,Q14)) ->  | S25: =IF(Q25="","",SUM(S24,S14)/2) ->  | T25: =IF(N25=0,"",(O25)/N25*100) ->  | U25: =IF(Q25="","",(Q25)/18*100) ->  | V25: =IF(Q25="","",(V14+V24)/Q25) ->  | W25: =SUM(W14,W24) -> 0 | X25: =SUM(X14,X24) -> 0 | Y25: =SUM(Y14,Y24) -> 0 | Z25: =SUM(Z14,Z24) -> 0 | AA25: =SUM(AA14,AA24)/2 -> 0 | AB25: =SUM(AB14,AB24) -> 0 | AC25: =SUM(AC24,AC14)/2 -> 0
E27: Udfyld alle grønne felter med 1 for positiv eller antal i tal
A28: =COUNTBLANK(I5:K13) -> 27 | W28: Approach
A29: =COUNTBLANK(I15:K23) -> 27 | E29: Udfyld følgende farver: | S29: Holes to par | W29: Længde (m) | X29: Antal | Y29: Afstand (m)
A30: =SUM(L5:L23) -> 0 | E30: Eagles | S30: Par 3 | T30: =SUMIF(C:C,"3",E:E)/COUNTIF(C:C,3) -> 0 | W30: 45-70 | X30: =COUNTIFS(R5:R23,">=45",R5:R23,"<=70") -> 0 | Y30: =IF(X30=0,"",AVERAGEIFS(S5:S23,R5:R23,">=45",R5:R23,"<=70")) -> 
E31: Birdies | S31: Par 4 | T31: =SUMIF(C:C,"4",E:E)/COUNTIF(C:C,4) -> 0 | W31: 71-90 | X31: =COUNTIFS(R5:R23,">=71",R5:R23,"<=90") -> 0 | Y31: =IF(X31=0,"",AVERAGEIFS(S5:S23,R5:R23,">=71",R5:R23,"<=90")) -> 
E32: Bogeys | S32: Par 5 | T32: =SUMIF(C:C,"5",E:E)/COUNTIF(C:C,5) -> 0 | W32: 91-115 | X32: =COUNTIFS(R5:R23,">=91",R5:R23,"<=115") -> 0 | Y32: =IF(X32=0,"",AVERAGEIFS(S5:S23,R5:R23,">=91",R5:R23,"<=115")) -> 
E33: Doublebogeys eller værre | W33: 116-140 | X33: =COUNTIFS(R5:R23,">=116",R5:R23,"<=140") -> 0 | Y33: =IF(X33=0,"",AVERAGEIFS(S5:S23,R5:R23,">=116",R5:R23,"<=140")) -> 
S34: First 4 | T34: =IF(E25="0","",SUM(E18:E21)-SUM(C18:C21)) ->  | W34: 141-160 | X34: =COUNTIFS(R5:R23,">=141",R5:R23,"<=161") -> 0 | Y34: =IF(X34=0,"",AVERAGEIFS(S5:S23,R5:R23,">=141",R5:R23,"<=160")) -> 
S35: Last 4 | T35: =IF(E25="0","",SUM(E15:E17)-SUM(C15:C17)) ->  | W35: 161-180 | X35: =COUNTIFS(R5:R23,">=161",R5:R23,"<=180") -> 0 | Y35: =IF(X35=0,"",AVERAGEIFS(S5:S23,R5:R23,">=161",R5:R23,"<=180")) -> 
W37: Putting
W38: Længde (m) | X38: Antal | Y38: Holet | Z38: Holet (%)
W39: under 1 m | X39: =COUNTIFS(S5:S23,">=0,1",S5:S23,"<=0,9") -> 0 | Y39: =IF(X39=0,"",COUNTIFS(P5:P23,"=1",S5:S23,"<1")) ->  | Z39: =IF(X39=0,"",Y39/X39*100) -> 
W40: 1 - 1,5 | X40: =COUNTIFS(S5:S23,">=1",S5:S23,"<=1,5") -> 0 | Y40: =IF(X40=0,"",COUNTIFS(P5:P23,"=1",S5:S23,">=1",S5:S23,"<=1,5")) ->  | Z40: =IF(X40=0,"",Y40/X40*100) -> 
W41: 1,5 - 3 | X41: =COUNTIFS(S5:S23,">=1,6",S5:S23,"<=3") -> 0 | Y41: =IF(X41=0,"",COUNTIFS(P5:P23,"=1",S5:S23,">=1,6",S5:S23,"<=3")) ->  | Z41: =IF(X41=0,"",Y41/X41*100) -> 
W42: 3 - 4,5 | X42: =COUNTIFS(S5:S23,">=3,1",S5:S23,"<=4,5") -> 0 | Y42: =IF(X42=0,"",COUNTIFS(P5:P23,"=1",S5:S23,">=3,1",S5:S23,"<=4,5")) -> 
W43: 4,5 - 6 | X43: =COUNTIFS(S5:S23,">=4,6",S5:S23,"<=6") -> 0 | Y43: =IF(X43=0,"",COUNTIFS(P5:P23,"=1",S5:S23,">=4,6",S5:S23,"<=6")) -> 
W44: over 6 meter | X44: =COUNTIFS(S5:S23,">6") -> 0 | Y44: =IF(X44=0,"",COUNTIFS(P5:P23,"=1",S5:S23,">6")) -> 

Sheet Runde 6
A1: Korsør Golf Klub - 18 huller - Gul tee | J1: =IF(E25="0","0","1") -> 0 | L1: Dato: | O1: Handicap: | T1: Antal tildelte slag:
H3: Tee shot | K3: Fairway hits i % | N3: Bunker | R3: Approach shots
A4: Hul | B4: Gul tee | C4: Par | D4: HCP | E4: Score | F4: Netto | G4: Driver | H4: Wood | I4: Jern | J4: Venstre | K4: Midt | L4: Højre | M4: FB | N4: GB | O4: SS | P4: Putts | Q4: GIR | R4: Dist. to pin (m) | S4: Dist. to hole (m) | T4: % SS | U4: % GIR | V4: Putts/GIR | W4: Eagles | X4: Birdies | Y4: Bogeys | Z4: Værre | AA4: % Scramble | AB4: 3+ Putts | AC4: % Driver/Fairwayhits
A5: 1 | B5: 307 | C5: 4 | D5: 11 | V5: =IF(Q5=0,"",P5) ->  | AA5: =IF(AND(Q5="",P5=1),1,"") ->  | AC5: =IF(AND(G5=""),"",SUM(K5)) -> 
A6: 2 | B6: 323 | C6: 4 | D6: 5
A7: 3 | B7: 138 | C7: 3 | D7: 15
A8: 4 | B8: 310 | C8: 4 | D8: 13
A9: 5 | B9: 431 | C9: 5 | D9: 3
A10: 6 | B10: 312 | C10: 4 | D10: 9
A11: 7 | B11: 498 | C11: 5 | D11: 1
A12: 8 | B12: 138 | C12: 3 | D12: 17
A13: 9 | B13: 310 | C13: 4 | D13: 7
B14: =SUM(B5:B13) -> 2767 | C14: =SUM(C5:C13) -> 36 | D14: UD | E14: =SUM(E5:E13) -> 0 | F14: =SUM(F5:F13) -> 0 | G14: =SUM(G5:G13) -> 0 | H14: =SUM(H5:H13) -> 0 | I14: =SUM(I5:I13) -> 0 | J14: =IF((A28=27),"",(SUM(J5:J13)/SUM(J5:L13))*100) ->  | K14: =IF((A28=27),"",(SUM(K5:K13)/SUM(J5:L13))*100) ->  | L14: =IF((A28=27),"",(SUM(L5:L13)/SUM(J5:L13))*100) ->  | M14: =SUM(M5:M13) -> 0 | N14: =SUM(N5:N13) -> 0 | O14: =SUM(O5:O13) -> 0 | P14: =SUM(P5:P13) -> 0 | Q14: =SUM(Q5:Q13) -> 0 | S14: =IF(Q14=0,"",SUM(S5:S13)/Q14) ->  | V14: =SUM(V5:V13) -> 0 | W14: =ColorFunction($E$30,$E$5:$E$13) -> 0 | X14: =ColorFunction($E$31,$E$5:$E$13) -> 0 | Y14: =ColorFunction($E$32,$E$5:$E$13) -> 0 | Z14: =ColorFunction($E$33,$E$5:$E$13) -> 0 | AA14: =SUM(AA5:AA13)/(9-Q14)*100 -> 0 | AB14: =COUNTIF(P5:P13,">2") -> 0 | AC14: =IF((G14=0),"",SUM(AC5:AC13)/G14*100) -> 
A15: 10 | B15: 481 | C15: 5 | D15: 4 | V15: =IF(Q15=0,"",P15) ->  | AA15: =IF(AND(Q15="",P15=1),1,"") ->  | AC15: =IF(AND(G15=""),"",SUM(K15)) -> 
A16: 11 | B16: 319 | C16: 4 | D16: 16
A17: 12 | B17: 431 | C17: 5 | D17: 2
A18: 13 | B18: 122 | C18: 3 | D18: 18
A19: 14 | B19: 379 | C19: 4 | D19: 6
A20: 15 | B20: 316 | C20: 4 | D20: 8
A21: 16 | B21: 322 | C21: 4 | D21: 14
A22: 17 | B22: 345 | C22: 4 | D22: 10
A23: 18 | B23: 281 | C23: 4 | D23: 12
B24: =SUM(B15:B23) -> 2996 | C24: =SUM(C15:C23) -> 37 | D24: IND | E24: =SUM(E15:E23) -> 0 | F24: =SUM(F15:F23) -> 0 | G24: =SUM(G15:G23) -> 0 | H24: =SUM(H15:H23) -> 0 | I24: =SUM(I15:I23) -> 0 | J24: =IF((A29=27),"",(SUM(J15:J23)/SUM(J15:L23))*100) ->  | K24: =IF((A29=27),"",(SUM(K15:K23)/SUM(J15:L23))*100) ->  | L24: =IF((A29=27),"",(SUM(L15:L23)/SUM(J15:L23))*100) ->  | M24: =SUM(M15:M23) -> 0 | N24: =SUM(N15:N23) -> 0 | O24: =SUM(O15:O23) -> 0 | P24: =SUM(P15:P23) -> 0 | Q24: =SUM(Q15:Q23) -> 0 | S24: =IF(Q24=0,"",SUM(S15:S23)/Q24) ->  | V24: =SUM(V15:V23) -> 0 | W24: =ColorFunction($E$30,$E$15:$E$23) -> 0 | X24: =ColorFunction($E$31,$E$15:$E$23) -> 0 | Y24: =ColorFunction($E$32,$E$15:$E$23) -> 0 | Z24: =ColorFunction($E$33,$E$15:$E$23) -> 0 | AA24: =SUM(AA15:AA23)/(9-Q24)*100 -> 0 | AB24: =COUNTIF(P15:P23,">2") -> 0 | AC24: =IF((G24=0),"",SUM(AC15:AC23)/G24*100) -> 
B25: =SUM(B24,B14) -> 5763 | C25: =SUM(C24,C14) -> 73 | D25: TOTAL | E25: =IF(E14=0,"0",(E24+E14)) -> 0 | F25: =SUM(F14,F24) -> 0 | G25: =SUM(G24,G14) -> 0 | H25: =SUM(H24,H14) -> 0 | I25: =SUM(I24,I14) -> 0 | J25: =IF((A28=27),"",(SUM(J14,J24)/2)) ->  | K25: =IF((A28=27),"",(SUM(K14,K24)/2)) ->  | L25: =IF((A28=27),"",(SUM(L14,L24)/2)) ->  | M25: =SUM(M24,M14) -> 0 | N25: =SUM(N24,N14) -> 0 | O25: =SUM(O24,O14) -> 0 | P25: =IF(P14+P24=0,"",SUM(P24,P14)) ->  | Q25: =IF(Q14+Q24=0,"",SUM(Q24,Q14)) ->  | S25: =IF(Q25="","",SUM(S24,S14)/2) ->  | T25: =IF(N25=0,"",(O25)/N25*100) ->  | U25: =IF(Q25="","",(Q25)/18*100) ->  | V25: =IF(Q25="","",(V14+V24)/Q25) ->  | W25: =SUM(W14,W24) -> 0 | X25: =SUM(X14,X24) -> 0 | Y25: =SUM(Y14,Y24) -> 0 | Z25: =SUM(Z14,Z24) -> 0 | AA25: =SUM(AA14,AA24)/2 -> 0 | AB25: =SUM(AB14,AB24) -> 0 | AC25: =SUM(AC24,AC14)/2 -> 0
E27: Udfyld alle grønne felter med 1 for positiv eller antal i tal
A28: =COUNTBLANK(I5:K13) -> 27 | W28: Approach
A29: =COUNTBLANK(I15:K23) -> 27 | E29: Udfyld følgende farver: | T29: Holes to par | W29: Længde (m) | X29: Antal | Y29: Afstand (m)
A30: =SUM(L5:L23) -> 0 | E30: Eagles | T30: Par 3 | U30: =SUMIF(C:C,"3",E:E)/COUNTIF(C:C,3) -> 0 | W30: 45-70 | X30: =COUNTIFS(R5:R23,">=45",R5:R23,"<=70") -> 0 | Y30: =IF(X30=0,"",AVERAGEIFS(S5:S23,R5:R23,">=45",R5:R23,"<=70")) -> 
E31: Birdies | T31: Par 4 | U31: =SUMIF(C:C,"4",E:E)/COUNTIF(C:C,4) -> 0 | W31: 71-90 | X31: =COUNTIFS(R5:R23,">=71",R5:R23,"<=90") -> 0 | Y31: =IF(X31=0,"",AVERAGEIFS(S5:S23,R5:R23,">=71",R5:R23,"<=90")) -> 
E32: Bogeys | T32: Par 5 | U32: =SUMIF(C:C,"5",E:E)/COUNTIF(C:C,5) -> 0 | W32: 91-115 | X32: =COUNTIFS(R5:R23,">=91",R5:R23,"<=115") -> 0 | Y32: =IF(X32=0,"",AVERAGEIFS(S5:S23,R5:R23,">=91",R5:R23,"<=115")) -> 
E33: Doublebogeys eller værre | W33: 116-140 | X33: =COUNTIFS(R5:R23,">=116",R5:R23,"<=140") -> 0 | Y33: =IF(X33=0,"",AVERAGEIFS(S5:S23,R5:R23,">=116",R5:R23,"<=140")) -> 
T34: First 4 | U34: =IF(E25="0","",SUM(E5:E8)-SUM(C5:C8)) ->  | W34: 141-160 | X34: =COUNTIFS(R5:R23,">=141",R5:R23,"<=161") -> 0 | Y34: =IF(X34=0,"",AVERAGEIFS(S5:S23,R5:R23,">=141",R5:R23,"<=160")) -> 
T35: Last 4 | U35: =IF(E25="0","",SUM(E20:E23)-SUM(C20:C23)) ->  | W35: 161-180 | X35: =COUNTIFS(R5:R23,">=161",R5:R23,"<=180") -> 0 | Y35: =IF(X35=0,"",AVERAGEIFS(S5:S23,R5:R23,">=161",R5:R23,"<=180")) -> 
W37: Putting
W38: Længde (m) | X38: Antal | Y38: Holet | Z38: Holet (%)
W39: under 1 m | X39: =COUNTIFS(S5:S23,">=0,1",S5:S23,"<=0,9") -> 0 | Y39: =IF(X39=0,"",COUNTIFS(P5:P23,"=1",S5:S23,"<1")) ->  | Z39: =IF(X39=0,"",Y39/X39*100) -> 
W40: 1 - 1,5 | X40: =COUNTIFS(S5:S23,">=1",S5:S23,"<=1,5") -> 0 | Y40: =IF(X40=0,"",COUNTIFS(P5:P23,"=1",S5:S23,">=1",S5:S23,"<=1,5")) ->  | Z40: =IF(X40=0,"",Y40/X40*100) -> 
W41: 1,5 - 3 | X41: =COUNTIFS(S5:S23,">=1,6",S5:S23,"<=3") -> 0 | Y41: =IF(X41=0,"",COUNTIFS(P5:P23,"=1",S5:S23,">=1,6",S5:S23,"<=3")) ->  | Z41: =IF(X41=0,"",Y41/X41*100) -> 
W42: 3 - 4,5 | X42: =COUNTIFS(S5:S23,">=3,1",S5:S23,"<=4,5") -> 0 | Y42: =IF(X42=0,"",COUNTIFS(P5:P23,"=1",S5:S23,">=3,1",S5:S23,"<=4,5")) -> 
W43: 4,5 - 6 | X43: =COUNTIFS(S5:S23,">=4,6",S5:S23,"<=6") -> 0 | Y43: =IF(X43=0,"",COUNTIFS(P5:P23,"=1",S5:S23,">=4,6",S5:S23,"<=6")) -> 
W44: over 6 meter | X44: =COUNTIFS(S5:S23,">6") -> 0 | Y44: =IF(X44=0,"",COUNTIFS(P5:P23,"=1",S5:S23,">6")) -> 

Sheet Runde 7
A1: Korsør Golf Klub - 18 huller - Gul tee | J1: =IF(E25="0","0","1") -> 0 | L1: Dato: | O1: Handicap: | T1: Antal tildelte slag:
H3: Tee shot | K3: Fairway hits i % | N3: Bunker | R3: Approach shots
A4: Hul | B4: Gul tee | C4: Par | D4: HCP | E4: Score | F4: Netto | G4: Driver | H4: Wood | I4: Jern | J4: Venstre | K4: Midt | L4: Højre | M4: FB | N4: GB | O4: SS | P4: Putts | Q4: GIR | R4: Dist. to pin (m) | S4: Dist. to hole (m) | T4: % SS | U4: % GIR | V4: Putts/GIR | W4: Eagles | X4: Birdies | Y4: Bogeys | Z4: Værre | AA4: % Scramble | AB4: 3+ Putts | AC4: % Driver/Fairwayhits
A5: 1 | B5: 307 | C5: 4 | D5: 11 | V5: =IF(Q5=0,"",P5) ->  | AA5: =IF(AND(Q5="",P5=1),1,"") ->  | AC5: =IF(AND(G5=""),"",SUM(K5)) -> 
A6: 2 | B6: 323 | C6: 4 | D6: 5
A7: 3 | B7: 138 | C7: 3 | D7: 15
A8: 4 | B8: 310 | C8: 4 | D8: 13
A9: 5 | B9: 431 | C9: 5 | D9: 3
A10: 6 | B10: 312 | C10: 4 | D10: 9
A11: 7 | B11: 498 | C11: 5 | D11: 1
A12: 8 | B12: 138 | C12: 3 | D12: 17
A13: 9 | B13: 310 | C13: 4 | D13: 7
B14: =SUM(B5:B13) -> 2767 | C14: =SUM(C5:C13) -> 36 | D14: UD | E14: =SUM(E5:E13) -> 0 | F14: =SUM(F5:F13) -> 0 | G14: =SUM(G5:G13) -> 0 | H14: =SUM(H5:H13) -> 0 | I14: =SUM(I5:I13) -> 0 | J14: =IF((A28=27),"",(SUM(J5:J13)/SUM(J5:L13))*100) ->  | K14: =IF((A28=27),"",(SUM(K5:K13)/SUM(J5:L13))*100) ->  | L14: =IF((A28=27),"",(SUM(L5:L13)/SUM(J5:L13))*100) ->  | M14: =SUM(M5:M13) -> 0 | N14: =SUM(N5:N13) -> 0 | O14: =SUM(O5:O13) -> 0 | P14: =SUM(P5:P13) -> 0 | Q14: =SUM(Q5:Q13) -> 0 | S14: =IF(Q14=0,"",SUM(S5:S13)/Q14) ->  | V14: =SUM(V5:V13) -> 0 | W14: =ColorFunction($E$30,$E$5:$E$13) -> 0 | X14: =ColorFunction($E$31,$E$5:$E$13) -> 0 | Y14: =ColorFunction($E$32,$E$5:$E$13) -> 0 | Z14: =ColorFunction($E$33,$E$5:$E$13) -> 0 | AA14: =SUM(AA5:AA13)/(9-Q14)*100 -> 0 | AB14: =COUNTIF(P5:P13,">2") -> 0 | AC14: =IF((G14=0),"",SUM(AC5:AC13)/G14*100) -> 
A15: 10 | B15: 481 | C15: 5 | D15: 4 | V15: =IF(Q15=0,"",P15) ->  | AA15: =IF(AND(Q15="",P15=1),1,"") ->  | AC15: =IF(AND(G15=""),"",SUM(K15)) -> 
A16: 11 | B16: 319 | C16: 4 | D16: 16
A17: 12 | B17: 431 | C17: 5 | D17: 2
A18: 13 | B18: 122 | C18: 3 | D18: 18
A19: 14 | B19: 379 | C19: 4 | D19: 6
A20: 15 | B20: 316 | C20: 4 | D20: 8
A21: 16 | B21: 322 | C21: 4 | D21: 14
A22: 17 | B22: 345 | C22: 4 | D22: 10
A23: 18 | B23: 281 | C23: 4 | D23: 12
B24: =SUM(B15:B23) -> 2996 | C24: =SUM(C15:C23) -> 37 | D24: IND | E24: =SUM(E15:E23) -> 0 | F24: =SUM(F15:F23) -> 0 | G24: =SUM(G15:G23) -> 0 | H24: =SUM(H15:H23) -> 0 | I24: =SUM(I15:I23) -> 0 | J24: =IF((A29=27),"",(SUM(J15:J23)/SUM(J15:L23))*100) ->  | K24: =IF((A29=27),"",(SUM(K15:K23)/SUM(J15:L23))*100) ->  | L24: =IF((A29=27),"",(SUM(L15:L23)/SUM(J15:L23))*100) ->  | M24: =SUM(M15:M23) -> 0 | N24: =SUM(N15:N23) -> 0 | O24: =SUM(O15:O23) -> 0 | P24: =SUM(P15:P23) -> 0 | Q24: =SUM(Q15:Q23) -> 0 | S24: =IF(Q24=0,"",SUM(S15:S23)/Q24) ->  | V24: =SUM(V15:V23) -> 0 | W24: =ColorFunction($E$30,$E$15:$E$23) -> 0 | X24: =ColorFunction($E$31,$E$15:$E$23) -> 0 | Y24: =ColorFunction($E$32,$E$15:$E$23) -> 0 | Z24: =ColorFunction($E$33,$E$15:$E$23) -> 0 | AA24: =SUM(AA15:AA23)/(9-Q24)*100 -> 0 | AB24: =COUNTIF(P15:P23,">2") -> 0 | AC24: =IF((G24=0),"",SUM(AC15:AC23)/G24*100) -> 
B25: =SUM(B24,B14) -> 5763 | C25: =SUM(C24,C14) -> 73 | D25: TOTAL | E25: =IF(E14=0,"0",(E24+E14)) -> 0 | F25: =SUM(F14,F24) -> 0 | G25: =SUM(G24,G14) -> 0 | H25: =SUM(H24,H14) -> 0 | I25: =SUM(I24,I14) -> 0 | J25: =IF((A28=27),"",(SUM(J14,J24)/2)) ->  | K25: =IF((A28=27),"",(SUM(K14,K24)/2)) ->  | L25: =IF((A28=27),"",(SUM(L14,L24)/2)) ->  | M25: =SUM(M24,M14) -> 0 | N25: =SUM(N24,N14) -> 0 | O25: =SUM(O24,O14) -> 0 | P25: =IF(P14+P24=0,"",SUM(P24,P14)) ->  | Q25: =IF(Q14+Q24=0,"",SUM(Q24,Q14)) ->  | S25: =IF(Q25="","",SUM(S24,S14)/2) ->  | T25: =IF(N25=0,"",(O25)/N25*100) ->  | U25: =IF(Q25="","",(Q25)/18*100) ->  | V25: =IF(Q25="","",(V14+V24)/Q25) ->  | W25: =SUM(W14,W24) -> 0 | X25: =SUM(X14,X24) -> 0 | Y25: =SUM(Y14,Y24) -> 0 | Z25: =SUM(Z14,Z24) -> 0 | AA25: =SUM(AA14,AA24)/2 -> 0 | AB25: =SUM(AB14,AB24) -> 0 | AC25: =SUM(AC24,AC14)/2 -> 0
E27: Udfyld alle grønne felter med 1 for positiv eller antal i tal
A28: =COUNTBLANK(I5:K13) -> 27 | W28: Approach
A29: =COUNTBLANK(I15:K23) -> 27 | E29: Udfyld følgende farver: | S29: Holes to par | W29: Længde (m) | X29: Antal | Y29: Afstand (m)
A30: =SUM(L5:L23) -> 0 | E30: Eagles | S30: Par 3 | T30: =SUMIF(C:C,"3",E:E)/COUNTIF(C:C,3) -> 0 | W30: 45-70 | X30: =COUNTIFS(R5:R23,">=45",R5:R23,"<=70") -> 0 | Y30: =IF(X30=0,"",AVERAGEIFS(S5:S23,R5:R23,">=45",R5:R23,"<=70")) -> 
E31: Birdies | S31: Par 4 | T31: =SUMIF(C:C,"4",E:E)/COUNTIF(C:C,4) -> 0 | W31: 71-90 | X31: =COUNTIFS(R5:R23,">=71",R5:R23,"<=90") -> 0 | Y31: =IF(X31=0,"",AVERAGEIFS(S5:S23,R5:R23,">=71",R5:R23,"<=90")) -> 
E32: Bogeys | S32: Par 5 | T32: =SUMIF(C:C,"5",E:E)/COUNTIF(C:C,5) -> 0 | W32: 91-115 | X32: =COUNTIFS(R5:R23,">=91",R5:R23,"<=115") -> 0 | Y32: =IF(X32=0,"",AVERAGEIFS(S5:S23,R5:R23,">=91",R5:R23,"<=115")) -> 
E33: Doublebogeys eller værre | W33: 116-140 | X33: =COUNTIFS(R5:R23,">=116",R5:R23,"<=140") -> 0 | Y33: =IF(X33=0,"",AVERAGEIFS(S5:S23,R5:R23,">=116",R5:R23,"<=140")) -> 
S34: First 4 | T34: =IF(E25="0","",SUM(E5:E8)-SUM(C5:C8)) ->  | W34: 141-160 | X34: =COUNTIFS(R5:R23,">=141",R5:R23,"<=161") -> 0 | Y34: =IF(X34=0,"",AVERAGEIFS(S5:S23,R5:R23,">=141",R5:R23,"<=160")) -> 
S35: Last 4 | T35: =IF(E25="0","",SUM(E20:E23)-SUM(C20:C23)) ->  | W35: 161-180 | X35: =COUNTIFS(R5:R23,">=161",R5:R23,"<=180") -> 0 | Y35: =IF(X35=0,"",AVERAGEIFS(S5:S23,R5:R23,">=161",R5:R23,"<=180")) -> 
W37: Putting
W38: Længde (m) | X38: Antal | Y38: Holet | Z38: Holet (%)
W39: under 1 m | X39: =COUNTIFS(S5:S23,">=0,1",S5:S23,"<=0,9") -> 0 | Y39: =IF(X39=0,"",COUNTIFS(P5:P23,"=1",S5:S23,"<1")) ->  | Z39: =IF(X39=0,"",Y39/X39*100) -> 
W40: 1 - 1,5 | X40: =COUNTIFS(S5:S23,">=1",S5:S23,"<=1,5") -> 0 | Y40: =IF(X40=0,"",COUNTIFS(P5:P23,"=1",S5:S23,">=1",S5:S23,"<=1,5")) ->  | Z40: =IF(X40=0,"",Y40/X40*100) -> 
W41: 1,5 - 3 | X41: =COUNTIFS(S5:S23,">=1,6",S5:S23,"<=3") -> 0 | Y41: =IF(X41=0,"",COUNTIFS(P5:P23,"=1",S5:S23,">=1,6",S5:S23,"<=3")) ->  | Z41: =IF(X41=0,"",Y41/X41*100) -> 
W42: 3 - 4,5 | X42: =COUNTIFS(S5:S23,">=3,1",S5:S23,"<=4,5") -> 0 | Y42: =IF(X42=0,"",COUNTIFS(P5:P23,"=1",S5:S23,">=3,1",S5:S23,"<=4,5")) -> 
W43: 4,5 - 6 | X43: =COUNTIFS(S5:S23,">=4,6",S5:S23,"<=6") -> 0 | Y43: =IF(X43=0,"",COUNTIFS(P5:P23,"=1",S5:S23,">=4,6",S5:S23,"<=6")) -> 
W44: over 6 meter | X44: =COUNTIFS(S5:S23,">6") -> 0 | Y44: =IF(X44=0,"",COUNTIFS(P5:P23,"=1",S5:S23,">6")) -> 

Sheet Runde 8
A1: Korsør Golf Klub - 18 huller - Gul tee | J1: =IF(E25="0","0","1") -> 0 | L1: Dato: | O1: Handicap: | T1: Antal tildelte slag:
H3: Tee shot | K3: Fairway hits i % | N3: Bunker | R3: Approach shots
A4: Hul | B4: Gul tee | C4: Par | D4: HCP | E4: Score | F4: Netto | G4: Driver | H4: Wood | I4: Jern | J4: Venstre | K4: Midt | L4: Højre | M4: FB | N4: GB | O4: SS | P4: Putts | Q4: GIR | R4: Dist. to pin (m) | S4: Dist. to hole (m) | T4: % SS | U4: % GIR | V4: Putts/GIR | W4: Eagles | X4: Birdies | Y4: Bogeys | Z4: Værre | AA4: % Scramble | AB4: 3+ Putts | AC4: % Driver/Fairwayhits
A5: 1 | B5: 307 | C5: 4 | D5: 11 | V5: =IF(Q5=0,"",P5) ->  | AA5: =IF(AND(Q5="",P5=1),1,"") ->  | AC5: =IF(AND(G5=""),"",SUM(K5)) -> 
A6: 2 | B6: 323 | C6: 4 | D6: 5
A7: 3 | B7: 138 | C7: 3 | D7: 15
A8: 4 | B8: 310 | C8: 4 | D8: 13
A9: 5 | B9: 431 | C9: 5 | D9: 3
A10: 6 | B10: 312 | C10: 4 | D10: 9
A11: 7 | B11: 498 | C11: 5 | D11: 1
A12: 8 | B12: 138 | C12: 3 | D12: 17
A13: 9 | B13: 310 | C13: 4 | D13: 7
B14: =SUM(B5:B13) -> 2767 | C14: =SUM(C5:C13) -> 36 | D14: UD | E14: =SUM(E5:E13) -> 0 | F14: =SUM(F5:F13) -> 0 | G14: =SUM(G5:G13) -> 0 | H14: =SUM(H5:H13) -> 0 | I14: =SUM(I5:I13) -> 0 | J14: =IF((A28=27),"",(SUM(J5:J13)/SUM(J5:L13))*100) ->  | K14: =IF((A28=27),"",(SUM(K5:K13)/SUM(J5:L13))*100) ->  | L14: =IF((A28=27),"",(SUM(L5:L13)/SUM(J5:L13))*100) ->  | M14: =SUM(M5:M13) -> 0 | N14: =SUM(N5:N13) -> 0 | O14: =SUM(O5:O13) -> 0 | P14: =SUM(P5:P13) -> 0 | Q14: =SUM(Q5:Q13) -> 0 | S14: =IF(Q14=0,"",SUM(S5:S13)/Q14) ->  | V14: =SUM(V5:V13) -> 0 | W14: =ColorFunction($E$30,$E$5:$E$13) -> 0 | X14: =ColorFunction($E$31,$E$5:$E$13) -> 0 | Y14: =ColorFunction($E$32,$E$5:$E$13) -> 0 | Z14: =ColorFunction($E$33,$E$5:$E$13) -> 0 | AA14: =SUM(AA5:AA13)/(9-Q14)*100 -> 0 | AB14: =COUNTIF(P5:P13,">2") -> 0 | AC14: =IF((G14=0),"",SUM(AC5:AC13)/G14*100) -> 
A15: 10 | B15: 481 | C15: 5 | D15: 4 | V15: =IF(Q15=0,"",P15) ->  | AA15: =IF(AND(Q15="",P15=1),1,"") ->  | AC15: =IF(AND(G15=""),"",SUM(K15)) -> 
A16: 11 | B16: 319 | C16: 4 | D16: 16
A17: 12 | B17: 431 | C17: 5 | D17: 2
A18: 13 | B18: 122 | C18: 3 | D18: 18
A19: 14 | B19: 379 | C19: 4 | D19: 6
A20: 15 | B20: 316 | C20: 4 | D20: 8
A21: 16 | B21: 322 | C21: 4 | D21: 14
A22: 17 | B22: 345 | C22: 4 | D22: 10
A23: 18 | B23: 281 | C23: 4 | D23: 12
B24: =SUM(B15:B23) -> 2996 | C24: =SUM(C15:C23) -> 37 | D24: IND | E24: =SUM(E15:E23) -> 0 | F24: =SUM(F15:F23) -> 0 | G24: =SUM(G15:G23) -> 0 | H24: =SUM(H15:H23) -> 0 | I24: =SUM(I15:I23) -> 0 | J24: =IF((A29=27),"",(SUM(J15:J23)/SUM(J15:L23))*100) ->  | K24: =IF((A29=27),"",(SUM(K15:K23)/SUM(J15:L23))*100) ->  | L24: =IF((A29=27),"",(SUM(L15:L23)/SUM(J15:L23))*100) ->  | M24: =SUM(M15:M23) -> 0 | N24: =SUM(N15:N23) -> 0 | O24: =SUM(O15:O23) -> 0 | P24: =SUM(P15:P23) -> 0 | Q24: =SUM(Q15:Q23) -> 0 | S24: =IF(Q24=0,"",SUM(S15:S23)/Q24) ->  | V24: =SUM(V15:V23) -> 0 | W24: =ColorFunction($E$30,$E$15:$E$23) -> 0 | X24: =ColorFunction($E$31,$E$15:$E$23) -> 0 | Y24: =ColorFunction($E$32,$E$15:$E$23) -> 0 | Z24: =ColorFunction($E$33,$E$15:$E$23) -> 0 | AA24: =SUM(AA15:AA23)/(9-Q24)*100 -> 0 | AB24: =COUNTIF(P15:P23,">2") -> 0 | AC24: =IF((G24=0),"",SUM(AC15:AC23)/G24*100) -> 
B25: =SUM(B24,B14) -> 5763 | C25: =SUM(C24,C14) -> 73 | D25: TOTAL | E25: =IF(E14=0,"0",(E24+E14)) -> 0 | F25: =SUM(F14,F24) -> 0 | G25: =SUM(G24,G14) -> 0 | H25: =SUM(H24,H14) -> 0 | I25: =SUM(I24,I14) -> 0 | J25: =IF((A28=27),"",(SUM(J14,J24)/2)) ->  | K25: =IF((A28=27),"",(SUM(K14,K24)/2)) ->  | L25: =IF((A28=27),"",(SUM(L14,L24)/2)) ->  | M25: =SUM(M24,M14) -> 0 | N25: =SUM(N24,N14) -> 0 | O25: =SUM(O24,O14) -> 0 | P25: =IF(P14+P24=0,"",SUM(P24,P14)) ->  | Q25: =IF(Q14+Q24=0,"",SUM(Q24,Q14)) ->  | S25: =IF(Q25="","",SUM(S24,S14)/2) ->  | T25: =IF(N25=0,"",(O25)/N25*100) ->  | U25: =IF(Q25="","",(Q25)/18*100) ->  | V25: =IF(Q25="","",(V14+V24)/Q25) ->  | W25: =SUM(W14,W24) -> 0 | X25: =SUM(X14,X24) -> 0 | Y25: =SUM(Y14,Y24) -> 0 | Z25: =SUM(Z14,Z24) -> 0 | AA25: =SUM(AA14,AA24)/2 -> 0 | AB25: =SUM(AB14,AB24) -> 0 | AC25: =SUM(AC24,AC14)/2 -> 0
E27: Udfyld alle grønne felter med 1 for positiv eller antal i tal
A28: =COUNTBLANK(I5:K13) -> 27 | W28: Approach
A29: =COUNTBLANK(I15:K23) -> 27 | E29: Udfyld følgende farver: | S29: Holes to par | W29: Længde (m) | X29: Antal | Y29: Afstand (m)
A30: =SUM(L5:L23) -> 0 | E30: Eagles | S30: Par 3 | T30: =SUMIF(C:C,"3",E:E)/COUNTIF(C:C,3) -> 0 | W30: 45-70 | X30: =COUNTIFS(R5:R23,">=45",R5:R23,"<=70") -> 0 | Y30: =IF(X30=0,"",AVERAGEIFS(S5:S23,R5:R23,">=45",R5:R23,"<=70")) -> 
E31: Birdies | S31: Par 4 | T31: =SUMIF(C:C,"4",E:E)/COUNTIF(C:C,4) -> 0 | W31: 71-90 | X31: =COUNTIFS(R5:R23,">=71",R5:R23,"<=90") -> 0 | Y31: =IF(X31=0,"",AVERAGEIFS(S5:S23,R5:R23,">=71",R5:R23,"<=90")) -> 
E32: Bogeys | S32: Par 5 | T32: =SUMIF(C:C,"5",E:E)/COUNTIF(C:C,5) -> 0 | W32: 91-115 | X32: =COUNTIFS(R5:R23,">=91",R5:R23,"<=115") -> 0 | Y32: =IF(X32=0,"",AVERAGEIFS(S5:S23,R5:R23,">=91",R5:R23,"<=115")) -> 
E33: Doublebogeys eller værre | W33: 116-140 | X33: =COUNTIFS(R5:R23,">=116",R5:R23,"<=140") -> 0 | Y33: =IF(X33=0,"",AVERAGEIFS(S5:S23,R5:R23,">=116",R5:R23,"<=140")) -> 
S34: First 4 | T34: =IF(E25="0","",SUM(E5:E8)-SUM(C5:C8)) ->  | W34: 141-160 | X34: =COUNTIFS(R5:R23,">=141",R5:R23,"<=161") -> 0 | Y34: =IF(X34=0,"",AVERAGEIFS(S5:S23,R5:R23,">=141",R5:R23,"<=160")) -> 
S35: Last 4 | T35: =IF(E25="0","",SUM(E20:E23)-SUM(C20:C23)) ->  | W35: 161-180 | X35: =COUNTIFS(R5:R23,">=161",R5:R23,"<=180") -> 0 | Y35: =IF(X35=0,"",AVERAGEIFS(S5:S23,R5:R23,">=161",R5:R23,"<=180")) -> 
W37: Putting
W38: Længde (m) | X38: Antal | Y38: Holet | Z38: Holet (%)
W39: under 1 m | X39: =COUNTIFS(S5:S23,">=0,1",S5:S23,"<=0,9") -> 0 | Y39: =IF(X39=0,"",COUNTIFS(P5:P23,"=1",S5:S23,"<1")) ->  | Z39: =IF(X39=0,"",Y39/X39*100) -> 
W40: 1 - 1,5 | X40: =COUNTIFS(S5:S23,">=1",S5:S23,"<=1,5") -> 0 | Y40: =IF(X40=0,"",COUNTIFS(P5:P23,"=1",S5:S23,">=1",S5:S23,"<=1,5")) ->  | Z40: =IF(X40=0,"",Y40/X40*100) -> 
W41: 1,5 - 3 | X41: =COUNTIFS(S5:S23,">=1,6",S5:S23,"<=3") -> 0 | Y41: =IF(X41=0,"",COUNTIFS(P5:P23,"=1",S5:S23,">=1,6",S5:S23,"<=3")) ->  | Z41: =IF(X41=0,"",Y41/X41*100) -> 
W42: 3 - 4,5 | X42: =COUNTIFS(S5:S23,">=3,1",S5:S23,"<=4,5") -> 0 | Y42: =IF(X42=0,"",COUNTIFS(P5:P23,"=1",S5:S23,">=3,1",S5:S23,"<=4,5")) -> 
W43: 4,5 - 6 | X43: =COUNTIFS(S5:S23,">=4,6",S5:S23,"<=6") -> 0 | Y43: =IF(X43=0,"",COUNTIFS(P5:P23,"=1",S5:S23,">=4,6",S5:S23,"<=6")) -> 
W44: over 6 meter | X44: =COUNTIFS(S5:S23,">6") -> 0 | Y44: =IF(X44=0,"",COUNTIFS(P5:P23,"=1",S5:S23,">6")) -> 

Sheet Runde 9
A1: Korsør Golf Klub - 18 huller - Gul tee | J1: =IF(E25="0","0","1") -> 0 | L1: Dato: | O1: Handicap: | T1: Antal tildelte slag:
H3: Tee shot | K3: Fairway hits i % | N3: Bunker | R3: Approach shots
A4: Hul | B4: Gul tee | C4: Par | D4: HCP | E4: Score | F4: Netto | G4: Driver | H4: Wood | I4: Jern | J4: Venstre | K4: Midt | L4: Højre | M4: FB | N4: GB | O4: SS | P4: Putts | Q4: GIR | R4: Dist. to pin (m) | S4: Dist. to hole (m) | T4: % SS | U4: % GIR | V4: Putts/GIR | W4: Eagles | X4: Birdies | Y4: Bogeys | Z4: Værre | AA4: % Scramble | AB4: 3+ Putts | AC4: % Driver/Fairwayhits
A5: 1 | B5: 307 | C5: 4 | D5: 11 | V5: =IF(Q5=0,"",P5) ->  | AA5: =IF(AND(Q5="",P5=1),1,"") ->  | AC5: =IF(AND(G5=""),"",SUM(K5)) -> 
A6: 2 | B6: 323 | C6: 4 | D6: 5
A7: 3 | B7: 138 | C7: 3 | D7: 15
A8: 4 | B8: 310 | C8: 4 | D8: 13
A9: 5 | B9: 431 | C9: 5 | D9: 3
A10: 6 | B10: 312 | C10: 4 | D10: 9
A11: 7 | B11: 498 | C11: 5 | D11: 1
A12: 8 | B12: 138 | C12: 3 | D12: 17
A13: 9 | B13: 310 | C13: 4 | D13: 7
B14: =SUM(B5:B13) -> 2767 | C14: =SUM(C5:C13) -> 36 | D14: UD | E14: =SUM(E5:E13) -> 0 | F14: =SUM(F5:F13) -> 0 | G14: =SUM(G5:G13) -> 0 | H14: =SUM(H5:H13) -> 0 | I14: =SUM(I5:I13) -> 0 | J14: =IF((A28=27),"",(SUM(J5:J13)/SUM(J5:L13))*100) ->  | K14: =IF((A28=27),"",(SUM(K5:K13)/SUM(J5:L13))*100) ->  | L14: =IF((A28=27),"",(SUM(L5:L13)/SUM(J5:L13))*100) ->  | M14: =SUM(M5:M13) -> 0 | N14: =SUM(N5:N13) -> 0 | O14: =SUM(O5:O13) -> 0 | P14: =SUM(P5:P13) -> 0 | Q14: =SUM(Q5:Q13) -> 0 | S14: =IF(Q14=0,"",SUM(S5:S13)/Q14) ->  | V14: =SUM(V5:V13) -> 0 | W14: =ColorFunction($E$30,$E$5:$E$13) -> 0 | X14: =ColorFunction($E$31,$E$5:$E$13) -> 0 | Y14: =ColorFunction($E$32,$E$5:$E$13) -> 0 | Z14: =ColorFunction($E$33,$E$5:$E$13) -> 0 | AA14: =SUM(AA5:AA13)/(9-Q14)*100 -> 0 | AB14: =COUNTIF(P5:P13,">2") -> 0 | AC14: =IF((G14=0),"",SUM(AC5:AC13)/G14*100) -> 
A15: 10 | B15: 481 | C15: 5 | D15: 4 | V15: =IF(Q15=0,"",P15) ->  | AA15: =IF(AND(Q15="",P15=1),1,"") ->  | AC15: =IF(AND(G15=""),"",SUM(K15)) -> 
A16: 11 | B16: 319 | C16: 4 | D16: 16
A17: 12 | B17: 431 | C17: 5 | D17: 2
A18: 13 | B18: 122 | C18: 3 | D18: 18
A19: 14 | B19: 379 | C19: 4 | D19: 6
A20: 15 | B20: 316 | C20: 4 | D20: 8
A21: 16 | B21: 322 | C21: 4 | D21: 14
A22: 17 | B22: 345 | C22: 4 | D22: 10
A23: 18 | B23: 281 | C23: 4 | D23: 12
B24: =SUM(B15:B23) -> 2996 | C24: =SUM(C15:C23) -> 37 | D24: IND | E24: =SUM(E15:E23) -> 0 | F24: =SUM(F15:F23) -> 0 | G24: =SUM(G15:G23) -> 0 | H24: =SUM(H15:H23) -> 0 | I24: =SUM(I15:I23) -> 0 | J24: =IF((A29=27),"",(SUM(J15:J23)/SUM(J15:L23))*100) ->  | K24: =IF((A29=27),"",(SUM(K15:K23)/SUM(J15:L23))*100) ->  | L24: =IF((A29=27),"",(SUM(L15:L23)/SUM(J15:L23))*100) ->  | M24: =SUM(M15:M23) -> 0 | N24: =SUM(N15:N23) -> 0 | O24: =SUM(O15:O23) -> 0 | P24: =SUM(P15:P23) -> 0 | Q24: =SUM(Q15:Q23) -> 0 | S24: =IF(Q24=0,"",SUM(S15:S23)/Q24) ->  | V24: =SUM(V15:V23) -> 0 | W24: =ColorFunction($E$30,$E$15:$E$23) -> 0 | X24: =ColorFunction($E$31,$E$15:$E$23) -> 0 | Y24: =ColorFunction($E$32,$E$15:$E$23) -> 0 | Z24: =ColorFunction($E$33,$E$15:$E$23) -> 0 | AA24: =SUM(AA15:AA23)/(9-Q24)*100 -> 0 | AB24: =COUNTIF(P15:P23,">2") -> 0 | AC24: =IF((G24=0),"",SUM(AC15:AC23)/G24*100) -> 
B25: =SUM(B24,B14) -> 5763 | C25: =SUM(C24,C14) -> 73 | D25: TOTAL | E25: =IF(E14=0,"0",(E24+E14)) -> 0 | F25: =SUM(F14,F24) -> 0 | G25: =SUM(G24,G14) -> 0 | H25: =SUM(H24,H14) -> 0 | I25: =SUM(I24,I14) -> 0 | J25: =IF((A28=27),"",(SUM(J14,J24)/2)) ->  | K25: =IF((A28=27),"",(SUM(K14,K24)/2)) ->  | L25: =IF((A28=27),"",(SUM(L14,L24)/2)) ->  | M25: =SUM(M24,M14) -> 0 | N25: =SUM(N24,N14) -> 0 | O25: =SUM(O24,O14) -> 0 | P25: =IF(P14+P24=0,"",SUM(P24,P14)) ->  | Q25: =IF(Q14+Q24=0,"",SUM(Q24,Q14)) ->  | S25: =IF(Q25="","",SUM(S24,S14)/2) ->  | T25: =IF(N25=0,"",(O25)/N25*100) ->  | U25: =IF(Q25="","",(Q25)/18*100) ->  | V25: =IF(Q25="","",(V14+V24)/Q25) ->  | W25: =SUM(W14,W24) -> 0 | X25: =SUM(X14,X24) -> 0 | Y25: =SUM(Y14,Y24) -> 0 | Z25: =SUM(Z14,Z24) -> 0 | AA25: =SUM(AA14,AA24)/2 -> 0 | AB25: =SUM(AB14,AB24) -> 0 | AC25: =SUM(AC24,AC14)/2 -> 0
E27: Udfyld alle grønne felter med 1 for positiv eller antal i tal
A28: =COUNTBLANK(I5:K13) -> 27 | W28: Approach
A29: =COUNTBLANK(I15:K23) -> 27 | E29: Udfyld følgende farver: | S29: Holes to par | W29: Længde (m) | X29: Antal | Y29: Afstand (m)
A30: =SUM(L5:L23) -> 0 | E30: Eagles | S30: Par 3 | T30: =SUMIF(C:C,"3",E:E)/COUNTIF(C:C,3) -> 0 | W30: 45-70 | X30: =COUNTIFS(R5:R23,">=45",R5:R23,"<=70") -> 0 | Y30: =IF(X30=0,"",AVERAGEIFS(S5:S23,R5:R23,">=45",R5:R23,"<=70")) -> 
E31: Birdies | S31: Par 4 | T31: =SUMIF(C:C,"4",E:E)/COUNTIF(C:C,4) -> 0 | W31: 71-90 | X31: =COUNTIFS(R5:R23,">=71",R5:R23,"<=90") -> 0 | Y31: =IF(X31=0,"",AVERAGEIFS(S5:S23,R5:R23,">=71",R5:R23,"<=90")) -> 
E32: Bogeys | S32: Par 5 | T32: =SUMIF(C:C,"5",E:E)/COUNTIF(C:C,5) -> 0 | W32: 91-115 | X32: =COUNTIFS(R5:R23,">=91",R5:R23,"<=115") -> 0 | Y32: =IF(X32=0,"",AVERAGEIFS(S5:S23,R5:R23,">=91",R5:R23,"<=115")) -> 
E33: Doublebogeys eller værre | W33: 116-140 | X33: =COUNTIFS(R5:R23,">=116",R5:R23,"<=140") -> 0 | Y33: =IF(X33=0,"",AVERAGEIFS(S5:S23,R5:R23,">=116",R5:R23,"<=140")) -> 
S34: First 4 | T34: =IF(E25="0","",SUM(E5:E8)-SUM(C5:C8)) ->  | W34: 141-160 | X34: =COUNTIFS(R5:R23,">=141",R5:R23,"<=161") -> 0 | Y34: =IF(X34=0,"",AVERAGEIFS(S5:S23,R5:R23,">=141",R5:R23,"<=160")) -> 
S35: Last 4 | T35: =IF(E25="0","",SUM(E20:E23)-SUM(C20:C23)) ->  | W35: 161-180 | X35: =COUNTIFS(R5:R23,">=161",R5:R23,"<=180") -> 0 | Y35: =IF(X35=0,"",AVERAGEIFS(S5:S23,R5:R23,">=161",R5:R23,"<=180")) -> 
W37: Putting
W38: Længde (m) | X38: Antal | Y38: Holet | Z38: Holet (%)
W39: under 1 m | X39: =COUNTIFS(S5:S23,">=0,1",S5:S23,"<=0,9") -> 0 | Y39: =IF(X39=0,"",COUNTIFS(P5:P23,"=1",S5:S23,"<1")) ->  | Z39: =IF(X39=0,"",Y39/X39*100) -> 
W40: 1 - 1,5 | X40: =COUNTIFS(S5:S23,">=1",S5:S23,"<=1,5") -> 0 | Y40: =IF(X40=0,"",COUNTIFS(P5:P23,"=1",S5:S23,">=1",S5:S23,"<=1,5")) ->  | Z40: =IF(X40=0,"",Y40/X40*100) -> 
W41: 1,5 - 3 | X41: =COUNTIFS(S5:S23,">=1,6",S5:S23,"<=3") -> 0 | Y41: =IF(X41=0,"",COUNTIFS(P5:P23,"=1",S5:S23,">=1,6",S5:S23,"<=3")) ->  | Z41: =IF(X41=0,"",Y41/X41*100) -> 
W42: 3 - 4,5 | X42: =COUNTIFS(S5:S23,">=3,1",S5:S23,"<=4,5") -> 0 | Y42: =IF(X42=0,"",COUNTIFS(P5:P23,"=1",S5:S23,">=3,1",S5:S23,"<=4,5")) -> 
W43: 4,5 - 6 | X43: =COUNTIFS(S5:S23,">=4,6",S5:S23,"<=6") -> 0 | Y43: =IF(X43=0,"",COUNTIFS(P5:P23,"=1",S5:S23,">=4,6",S5:S23,"<=6")) -> 
W44: over 6 meter | X44: =COUNTIFS(S5:S23,">6") -> 0 | Y44: =IF(X44=0,"",COUNTIFS(P5:P23,"=1",S5:S23,">6")) -> 

Sheet Runde 10
A1: Korsør Golf Klub - 18 huller - Gul tee | J1: =IF(E25="0","0","1") -> 0 | L1: Dato: | O1: Handicap: | T1: Antal tildelte slag:
H3: Tee shot | K3: Fairway hits i % | N3: Bunker | R3: Approach shots
A4: Hul | B4: Gul tee | C4: Par | D4: HCP | E4: Score | F4: Netto | G4: Driver | H4: Wood | I4: Jern | J4: Venstre | K4: Midt | L4: Højre | M4: FB | N4: GB | O4: SS | P4: Putts | Q4: GIR | R4: Dist. to pin (m) | S4: Dist. to hole (m) | T4: % SS | U4: % GIR | V4: Putts/GIR | W4: Eagles | X4: Birdies | Y4: Bogeys | Z4: Værre | AA4: % Scramble | AB4: 3+ Putts | AC4: % Driver/Fairwayhits
A5: 1 | B5: 307 | C5: 4 | D5: 11 | V5: =IF(Q5=0,"",P5) ->  | AA5: =IF(AND(Q5="",P5=1),1,"") ->  | AC5: =IF(AND(G5=""),"",SUM(K5)) -> 
A6: 2 | B6: 323 | C6: 4 | D6: 5
A7: 3 | B7: 138 | C7: 3 | D7: 15
A8: 4 | B8: 310 | C8: 4 | D8: 13
A9: 5 | B9: 431 | C9: 5 | D9: 3
A10: 6 | B10: 312 | C10: 4 | D10: 9
A11: 7 | B11: 498 | C11: 5 | D11: 1
A12: 8 | B12: 138 | C12: 3 | D12: 17
A13: 9 | B13: 310 | C13: 4 | D13: 7
B14: =SUM(B5:B13) -> 2767 | C14: =SUM(C5:C13) -> 36 | D14: UD | E14: =SUM(E5:E13) -> 0 | F14: =SUM(F5:F13) -> 0 | G14: =SUM(G5:G13) -> 0 | H14: =SUM(H5:H13) -> 0 | I14: =SUM(I5:I13) -> 0 | J14: =IF((A28=27),"",(SUM(J5:J13)/SUM(J5:L13))*100) ->  | K14: =IF((A28=27),"",(SUM(K5:K13)/SUM(J5:L13))*100) ->  | L14: =IF((A28=27),"",(SUM(L5:L13)/SUM(J5:L13))*100) ->  | M14: =SUM(M5:M13) -> 0 | N14: =SUM(N5:N13) -> 0 | O14: =SUM(O5:O13) -> 0 | P14: =SUM(P5:P13) -> 0 | Q14: =SUM(Q5:Q13) -> 0 | S14: =IF(Q14=0,"",SUM(S5:S13)/Q14) ->  | V14: =SUM(V5:V13) -> 0 | W14: =ColorFunction($E$30,$E$5:$E$13) -> 0 | X14: =ColorFunction($E$31,$E$5:$E$13) -> 0 | Y14: =ColorFunction($E$32,$E$5:$E$13) -> 0 | Z14: =ColorFunction($E$33,$E$5:$E$13) -> 0 | AA14: =SUM(AA5:AA13)/(9-Q14)*100 -> 0 | AB14: =COUNTIF(P5:P13,">2") -> 0 | AC14: =IF((G14=0),"",SUM(AC5:AC13)/G14*100) -> 
A15: 10 | B15: 481 | C15: 5 | D15: 4 | V15: =IF(Q15=0,"",P15) ->  | AA15: =IF(AND(Q15="",P15=1),1,"") ->  | AC15: =IF(AND(G15=""),"",SUM(K15)) -> 
A16: 11 | B16: 319 | C16: 4 | D16: 16
A17: 12 | B17: 431 | C17: 5 | D17: 2
A18: 13 | B18: 122 | C18: 3 | D18: 18
A19: 14 | B19: 379 | C19: 4 | D19: 6
A20: 15 | B20: 316 | C20: 4 | D20: 8
A21: 16 | B21: 322 | C21: 4 | D21: 14
A22: 17 | B22: 345 | C22: 4 | D22: 10
A23: 18 | B23: 281 | C23: 4 | D23: 12
B24: =SUM(B15:B23) -> 2996 | C24: =SUM(C15:C23) -> 37 | D24: IND | E24: =SUM(E15:E23) -> 0 | F24: =SUM(F15:F23) -> 0 | G24: =SUM(G15:G23) -> 0 | H24: =SUM(H15:H23) -> 0 | I24: =SUM(I15:I23) -> 0 | J24: =IF((A29=27),"",(SUM(J15:J23)/SUM(J15:L23))*100) ->  | K24: =IF((A29=27),"",(SUM(K15:K23)/SUM(J15:L23))*100) ->  | L24: =IF((A29=27),"",(SUM(L15:L23)/SUM(J15:L23))*100) ->  | M24: =SUM(M15:M23) -> 0 | N24: =SUM(N15:N23) -> 0 | O24: =SUM(O15:O23) -> 0 | P24: =SUM(P15:P23) -> 0 | Q24: =SUM(Q15:Q23) -> 0 | S24: =IF(Q24=0,"",SUM(S15:S23)/Q24) ->  | V24: =SUM(V15:V23) -> 0 | W24: =ColorFunction($E$30,$E$15:$E$23) -> 0 | X24: =ColorFunction($E$31,$E$15:$E$23) -> 0 | Y24: =ColorFunction($E$32,$E$15:$E$23) -> 0 | Z24: =ColorFunction($E$33,$E$15:$E$23) -> 0 | AA24: =SUM(AA15:AA23)/(9-Q24)*100 -> 0 | AB24: =COUNTIF(P15:P23,">2") -> 0 | AC24: =IF((G24=0),"",SUM(AC15:AC23)/G24*100) -> 
B25: =SUM(B24,B14) -> 5763 | C25: =SUM(C24,C14) -> 73 | D25: TOTAL | E25: =IF(E14=0,"0",(E24+E14)) -> 0 | F25: =SUM(F14,F24) -> 0 | G25: =SUM(G24,G14) -> 0 | H25: =SUM(H24,H14) -> 0 | I25: =SUM(I24,I14) -> 0 | J25: =IF((A28=27),"",(SUM(J14,J24)/2)) ->  | K25: =IF((A28=27),"",(SUM(K14,K24)/2)) ->  | L25: =IF((A28=27),"",(SUM(L14,L24)/2)) ->  | M25: =SUM(M24,M14) -> 0 | N25: =SUM(N24,N14) -> 0 | O25: =SUM(O24,O14) -> 0 | P25: =IF(P14+P24=0,"",SUM(P24,P14)) ->  | Q25: =IF(Q14+Q24=0,"",SUM(Q24,Q14)) ->  | S25: =IF(Q25="","",SUM(S24,S14)/2) ->  | T25: =IF(N25=0,"",(O25)/N25*100) ->  | U25: =IF(Q25="","",(Q25)/18*100) ->  | V25: =IF(Q25="","",(V14+V24)/Q25) ->  | W25: =SUM(W14,W24) -> 0 | X25: =SUM(X14,X24) -> 0 | Y25: =SUM(Y14,Y24) -> 0 | Z25: =SUM(Z14,Z24) -> 0 | AA25: =SUM(AA14,AA24)/2 -> 0 | AB25: =SUM(AB14,AB24) -> 0 | AC25: =SUM(AC24,AC14)/2 -> 0
E27: Udfyld alle grønne felter med 1 for positiv eller antal i tal
A28: =COUNTBLANK(I5:K13) -> 27 | W28: Approach
A29: =COUNTBLANK(I15:K23) -> 27 | E29: Udfyld følgende farver: | S29: Holes to par | W29: Længde (m) | X29: Antal | Y29: Afstand (m)
A30: =SUM(L5:L23) -> 0 | E30: Eagles | S30: Par 3 | T30: =SUMIF(C:C,"3",E:E)/COUNTIF(C:C,3) -> 0 | W30: 45-70 | X30: =COUNTIFS(R5:R23,">=45",R5:R23,"<=70") -> 0 | Y30: =IF(X30=0,"",AVERAGEIFS(S5:S23,R5:R23,">=45",R5:R23,"<=70")) -> 
E31: Birdies | S31: Par 4 | T31: =SUMIF(C:C,"4",E:E)/COUNTIF(C:C,4) -> 0 | W31: 71-90 | X31: =COUNTIFS(R5:R23,">=71",R5:R23,"<=90") -> 0 | Y31: =IF(X31=0,"",AVERAGEIFS(S5:S23,R5:R23,">=71",R5:R23,"<=90")) -> 
E32: Bogeys | S32: Par 5 | T32: =SUMIF(C:C,"5",E:E)/COUNTIF(C:C,5) -> 0 | W32: 91-115 | X32: =COUNTIFS(R5:R23,">=91",R5:R23,"<=115") -> 0 | Y32: =IF(X32=0,"",AVERAGEIFS(S5:S23,R5:R23,">=91",R5:R23,"<=115")) -> 
E33: Doublebogeys eller værre | W33: 116-140 | X33: =COUNTIFS(R5:R23,">=116",R5:R23,"<=140") -> 0 | Y33: =IF(X33=0,"",AVERAGEIFS(S5:S23,R5:R23,">=116",R5:R23,"<=140")) -> 
S34: First 4 | T34: =IF(E25="0","",SUM(E5:E8)-SUM(C5:C8)) ->  | W34: 141-160 | X34: =COUNTIFS(R5:R23,">=141",R5:R23,"<=161") -> 0 | Y34: =IF(X34=0,"",AVERAGEIFS(S5:S23,R5:R23,">=141",R5:R23,"<=160")) -> 
S35: Last 4 | T35: =IF(E25="0","",SUM(E20:E23)-SUM(C20:C23)) ->  | W35: 161-180 | X35: =COUNTIFS(R5:R23,">=161",R5:R23,"<=180") -> 0 | Y35: =IF(X35=0,"",AVERAGEIFS(S5:S23,R5:R23,">=161",R5:R23,"<=180")) -> 
W37: Putting
W38: Længde (m) | X38: Antal | Y38: Holet | Z38: Holet (%)
W39: under 1 m | X39: =COUNTIFS(S5:S23,">=0,1",S5:S23,"<=0,9") -> 0 | Y39: =IF(X39=0,"",COUNTIFS(P5:P23,"=1",S5:S23,"<1")) ->  | Z39: =IF(X39=0,"",Y39/X39*100) -> 
W40: 1 - 1,5 | X40: =COUNTIFS(S5:S23,">=1",S5:S23,"<=1,5") -> 0 | Y40: =IF(X40=0,"",COUNTIFS(P5:P23,"=1",S5:S23,">=1",S5:S23,"<=1,5")) ->  | Z40: =IF(X40=0,"",Y40/X40*100) -> 
W41: 1,5 - 3 | X41: =COUNTIFS(S5:S23,">=1,6",S5:S23,"<=3") -> 0 | Y41: =IF(X41=0,"",COUNTIFS(P5:P23,"=1",S5:S23,">=1,6",S5:S23,"<=3")) ->  | Z41: =IF(X41=0,"",Y41/X41*100) -> 
W42: 3 - 4,5 | X42: =COUNTIFS(S5:S23,">=3,1",S5:S23,"<=4,5") -> 0 | Y42: =IF(X42=0,"",COUNTIFS(P5:P23,"=1",S5:S23,">=3,1",S5:S23,"<=4,5")) -> 
W43: 4,5 - 6 | X43: =COUNTIFS(S5:S23,">=4,6",S5:S23,"<=6") -> 0 | Y43: =IF(X43=0,"",COUNTIFS(P5:P23,"=1",S5:S23,">=4,6",S5:S23,"<=6")) -> 
W44: over 6 meter | X44: =COUNTIFS(S5:S23,">6") -> 0 | Y44: =IF(X44=0,"",COUNTIFS(P5:P23,"=1",S5:S23,">6")) -> 

Sheet Runde 11
A1: Korsør Golf Klub - 18 huller - Gul tee | J1: =IF(E25="0","0","1") -> 0 | L1: Dato: | O1: Handicap: | T1: Antal tildelte slag:
H3: Tee shot | K3: Fairway hits i % | N3: Bunker | R3: Approach shots
A4: Hul | B4: Gul tee | C4: Par | D4: HCP | E4: Score | F4: Netto | G4: Driver | H4: Wood | I4: Jern | J4: Venstre | K4: Midt | L4: Højre | M4: FB | N4: GB | O4: SS | P4: Putts | Q4: GIR | R4: Dist. to pin (m) | S4: Dist. to hole (m) | T4: % SS | U4: % GIR | V4: Putts/GIR | W4: Eagles | X4: Birdies | Y4: Bogeys | Z4: Værre | AA4: % Scramble | AB4: 3+ Putts | AC4: % Driver/Fairwayhits
A5: 1 | B5: 307 | C5: 4 | D5: 11 | V5: =IF(Q5=0,"",P5) ->  | AA5: =IF(AND(Q5="",P5=1),1,"") ->  | AC5: =IF(AND(G5=""),"",SUM(K5)) -> 
A6: 2 | B6: 323 | C6: 4 | D6: 5
A7: 3 | B7: 138 | C7: 3 | D7: 15
A8: 4 | B8: 310 | C8: 4 | D8: 13
A9: 5 | B9: 431 | C9: 5 | D9: 3
A10: 6 | B10: 312 | C10: 4 | D10: 9
A11: 7 | B11: 498 | C11: 5 | D11: 1
A12: 8 | B12: 138 | C12: 3 | D12: 17
A13: 9 | B13: 310 | C13: 4 | D13: 7
B14: =SUM(B5:B13) -> 2767 | C14: =SUM(C5:C13) -> 36 | D14: UD | E14: =SUM(E5:E13) -> 0 | F14: =SUM(F5:F13) -> 0 | G14: =SUM(G5:G13) -> 0 | H14: =SUM(H5:H13) -> 0 | I14: =SUM(I5:I13) -> 0 | J14: =IF((A28=27),"",(SUM(J5:J13)/SUM(J5:L13))*100) ->  | K14: =IF((A28=27),"",(SUM(K5:K13)/SUM(J5:L13))*100) ->  | L14: =IF((A28=27),"",(SUM(L5:L13)/SUM(J5:L13))*100) ->  | M14: =SUM(M5:M13) -> 0 | N14: =SUM(N5:N13) -> 0 | O14: =SUM(O5:O13) -> 0 | P14: =SUM(P5:P13) -> 0 | Q14: =SUM(Q5:Q13) -> 0 | S14: =IF(Q14=0,"",SUM(S5:S13)/Q14) ->  | V14: =SUM(V5:V13) -> 0 | W14: =ColorFunction($E$30,$E$5:$E$13) -> 0 | X14: =ColorFunction($E$31,$E$5:$E$13) -> 0 | Y14: =ColorFunction($E$32,$E$5:$E$13) -> 0 | Z14: =ColorFunction($E$33,$E$5:$E$13) -> 0 | AA14: =SUM(AA5:AA13)/(9-Q14)*100 -> 0 | AB14: =COUNTIF(P5:P13,">2") -> 0 | AC14: =IF((G14=0),"",SUM(AC5:AC13)/G14*100) -> 
A15: 10 | B15: 481 | C15: 5 | D15: 4 | V15: =IF(Q15=0,"",P15) ->  | AA15: =IF(AND(Q15="",P15=1),1,"") ->  | AC15: =IF(AND(G15=""),"",SUM(K15)) -> 
A16: 11 | B16: 319 | C16: 4 | D16: 16
A17: 12 | B17: 431 | C17: 5 | D17: 2
A18: 13 | B18: 122 | C18: 3 | D18: 18
A19: 14 | B19: 379 | C19: 4 | D19: 6
A20: 15 | B20: 316 | C20: 4 | D20: 8
A21: 16 | B21: 322 | C21: 4 | D21: 14
A22: 17 | B22: 345 | C22: 4 | D22: 10
A23: 18 | B23: 281 | C23: 4 | D23: 12
B24: =SUM(B15:B23) -> 2996 | C24: =SUM(C15:C23) -> 37 | D24: IND | E24: =SUM(E15:E23) -> 0 | F24: =SUM(F15:F23) -> 0 | G24: =SUM(G15:G23) -> 0 | H24: =SUM(H15:H23) -> 0 | I24: =SUM(I15:I23) -> 0 | J24: =IF((A29=27),"",(SUM(J15:J23)/SUM(J15:L23))*100) ->  | K24: =IF((A29=27),"",(SUM(K15:K23)/SUM(J15:L23))*100) ->  | L24: =IF((A29=27),"",(SUM(L15:L23)/SUM(J15:L23))*100) ->  | M24: =SUM(M15:M23) -> 0 | N24: =SUM(N15:N23) -> 0 | O24: =SUM(O15:O23) -> 0 | P24: =SUM(P15:P23) -> 0 | Q24: =SUM(Q15:Q23) -> 0 | S24: =IF(Q24=0,"",SUM(S15:S23)/Q24) ->  | V24: =SUM(V15:V23) -> 0 | W24: =ColorFunction($E$30,$E$15:$E$23) -> 0 | X24: =ColorFunction($E$31,$E$15:$E$23) -> 0 | Y24: =ColorFunction($E$32,$E$15:$E$23) -> 0 | Z24: =ColorFunction($E$33,$E$15:$E$23) -> 0 | AA24: =SUM(AA15:AA23)/(9-Q24)*100 -> 0 | AB24: =COUNTIF(P15:P23,">2") -> 0 | AC24: =IF((G24=0),"",SUM(AC15:AC23)/G24*100) -> 
B25: =SUM(B24,B14) -> 5763 | C25: =SUM(C24,C14) -> 73 | D25: TOTAL | E25: =IF(E14=0,"0",(E24+E14)) -> 0 | F25: =SUM(F14,F24) -> 0 | G25: =SUM(G24,G14) -> 0 | H25: =SUM(H24,H14) -> 0 | I25: =SUM(I24,I14) -> 0 | J25: =IF((A28=27),"",(SUM(J14,J24)/2)) ->  | K25: =IF((A28=27),"",(SUM(K14,K24)/2)) ->  | L25: =IF((A28=27),"",(SUM(L14,L24)/2)) ->  | M25: =SUM(M24,M14) -> 0 | N25: =SUM(N24,N14) -> 0 | O25: =SUM(O24,O14) -> 0 | P25: =IF(P14+P24=0,"",SUM(P24,P14)) ->  | Q25: =IF(Q14+Q24=0,"",SUM(Q24,Q14)) ->  | S25: =IF(Q25="","",SUM(S24,S14)/2) ->  | T25: =IF(N25=0,"",(O25)/N25*100) ->  | U25: =IF(Q25="","",(Q25)/18*100) ->  | V25: =IF(Q25="","",(V14+V24)/Q25) ->  | W25: =SUM(W14,W24) -> 0 | X25: =SUM(X14,X24) -> 0 | Y25: =SUM(Y14,Y24) -> 0 | Z25: =SUM(Z14,Z24) -> 0 | AA25: =SUM(AA14,AA24)/2 -> 0 | AB25: =SUM(AB14,AB24) -> 0 | AC25: =SUM(AC24,AC14)/2 -> 0
E27: Udfyld alle grønne felter med 1 for positiv eller antal i tal
A28: =COUNTBLANK(I5:K13) -> 27 | W28: Approach
A29: =COUNTBLANK(I15:K23) -> 27 | E29: Udfyld følgende farver: | S29: Holes to par | W29: Længde (m) | X29: Antal | Y29: Afstand (m)
A30: =SUM(L5:L23) -> 0 | E30: Eagles | S30: Par 3 | T30: =SUMIF(C:C,"3",E:E)/COUNTIF(C:C,3) -> 0 | W30: 45-70 | X30: =COUNTIFS(R5:R23,">=45",R5:R23,"<=70") -> 0 | Y30: =IF(X30=0,"",AVERAGEIFS(S5:S23,R5:R23,">=45",R5:R23,"<=70")) -> 
E31: Birdies | S31: Par 4 | T31: =SUMIF(C:C,"4",E:E)/COUNTIF(C:C,4) -> 0 | W31: 71-90 | X31: =COUNTIFS(R5:R23,">=71",R5:R23,"<=90") -> 0 | Y31: =IF(X31=0,"",AVERAGEIFS(S5:S23,R5:R23,">=71",R5:R23,"<=90")) -> 
E32: Bogeys | S32: Par 5 | T32: =SUMIF(C:C,"5",E:E)/COUNTIF(C:C,5) -> 0 | W32: 91-115 | X32: =COUNTIFS(R5:R23,">=91",R5:R23,"<=115") -> 0 | Y32: =IF(X32=0,"",AVERAGEIFS(S5:S23,R5:R23,">=91",R5:R23,"<=115")) -> 
E33: Doublebogeys eller værre | W33: 116-140 | X33: =COUNTIFS(R5:R23,">=116",R5:R23,"<=140") -> 0 | Y33: =IF(X33=0,"",AVERAGEIFS(S5:S23,R5:R23,">=116",R5:R23,"<=140")) -> 
S34: First 4 | T34: =IF(E25="0","",SUM(E5:E8)-SUM(C5:C8)) ->  | W34: 141-160 | X34: =COUNTIFS(R5:R23,">=141",R5:R23,"<=161") -> 0 | Y34: =IF(X34=0,"",AVERAGEIFS(S5:S23,R5:R23,">=141",R5:R23,"<=160")) -> 
S35: Last 4 | T35: =IF(E25="0","",SUM(E20:E23)-SUM(C20:C23)) ->  | W35: 161-180 | X35: =COUNTIFS(R5:R23,">=161",R5:R23,"<=180") -> 0 | Y35: =IF(X35=0,"",AVERAGEIFS(S5:S23,R5:R23,">=161",R5:R23,"<=180")) -> 
W37: Putting
W38: Længde (m) | X38: Antal | Y38: Holet | Z38: Holet (%)
W39: under 1 m | X39: =COUNTIFS(S5:S23,">=0,1",S5:S23,"<=0,9") -> 0 | Y39: =IF(X39=0,"",COUNTIFS(P5:P23,"=1",S5:S23,"<1")) ->  | Z39: =IF(X39=0,"",Y39/X39*100) -> 
W40: 1 - 1,5 | X40: =COUNTIFS(S5:S23,">=1",S5:S23,"<=1,5") -> 0 | Y40: =IF(X40=0,"",COUNTIFS(P5:P23,"=1",S5:S23,">=1",S5:S23,"<=1,5")) ->  | Z40: =IF(X40=0,"",Y40/X40*100) -> 
W41: 1,5 - 3 | X41: =COUNTIFS(S5:S23,">=1,6",S5:S23,"<=3") -> 0 | Y41: =IF(X41=0,"",COUNTIFS(P5:P23,"=1",S5:S23,">=1,6",S5:S23,"<=3")) ->  | Z41: =IF(X41=0,"",Y41/X41*100) -> 
W42: 3 - 4,5 | X42: =COUNTIFS(S5:S23,">=3,1",S5:S23,"<=4,5") -> 0 | Y42: =IF(X42=0,"",COUNTIFS(P5:P23,"=1",S5:S23,">=3,1",S5:S23,"<=4,5")) -> 
W43: 4,5 - 6 | X43: =COUNTIFS(S5:S23,">=4,6",S5:S23,"<=6") -> 0 | Y43: =IF(X43=0,"",COUNTIFS(P5:P23,"=1",S5:S23,">=4,6",S5:S23,"<=6")) -> 
W44: over 6 meter | X44: =COUNTIFS(S5:S23,">6") -> 0 | Y44: =IF(X44=0,"",COUNTIFS(P5:P23,"=1",S5:S23,">6")) -> 

Sheet Runde 12
A1: Korsør Golf Klub - 18 huller - Gul tee | J1: =IF(E25="0","0","1") -> 0 | L1: Dato: | O1: Handicap: | T1: Antal tildelte slag:
H3: Tee shot | K3: Fairway hits i % | N3: Bunker | R3: Approach shots
A4: Hul | B4: Gul tee | C4: Par | D4: HCP | E4: Score | F4: Netto | G4: Driver | H4: Wood | I4: Jern | J4: Venstre | K4: Midt | L4: Højre | M4: FB | N4: GB | O4: SS | P4: Putts | Q4: GIR | R4: Dist. to pin (m) | S4: Dist. to hole (m) | T4: % SS | U4: % GIR | V4: Putts/GIR | W4: Eagles | X4: Birdies | Y4: Bogeys | Z4: Værre | AA4: % Scramble | AB4: 3+ Putts | AC4: % Driver/Fairwayhits
A5: 1 | B5: 307 | C5: 4 | D5: 11 | V5: =IF(Q5=0,"",P5) ->  | AA5: =IF(AND(Q5="",P5=1),1,"") ->  | AC5: =IF(AND(G5=""),"",SUM(K5)) -> 
A6: 2 | B6: 323 | C6: 4 | D6: 5
A7: 3 | B7: 138 | C7: 3 | D7: 15
A8: 4 | B8: 310 | C8: 4 | D8: 13
A9: 5 | B9: 431 | C9: 5 | D9: 3
A10: 6 | B10: 312 | C10: 4 | D10: 9
A11: 7 | B11: 498 | C11: 5 | D11: 1
A12: 8 | B12: 138 | C12: 3 | D12: 17
A13: 9 | B13: 310 | C13: 4 | D13: 7
B14: =SUM(B5:B13) -> 2767 | C14: =SUM(C5:C13) -> 36 | D14: UD | E14: =SUM(E5:E13) -> 0 | F14: =SUM(F5:F13) -> 0 | G14: =SUM(G5:G13) -> 0 | H14: =SUM(H5:H13) -> 0 | I14: =SUM(I5:I13) -> 0 | J14: =IF((A28=27),"",(SUM(J5:J13)/SUM(J5:L13))*100) ->  | K14: =IF((A28=27),"",(SUM(K5:K13)/SUM(J5:L13))*100) ->  | L14: =IF((A28=27),"",(SUM(L5:L13)/SUM(J5:L13))*100) ->  | M14: =SUM(M5:M13) -> 0 | N14: =SUM(N5:N13) -> 0 | O14: =SUM(O5:O13) -> 0 | P14: =SUM(P5:P13) -> 0 | Q14: =SUM(Q5:Q13) -> 0 | S14: =IF(Q14=0,"",SUM(S5:S13)/Q14) ->  | V14: =SUM(V5:V13) -> 0 | W14: =ColorFunction($E$30,$E$5:$E$13) -> 0 | X14: =ColorFunction($E$31,$E$5:$E$13) -> 0 | Y14: =ColorFunction($E$32,$E$5:$E$13) -> 0 | Z14: =ColorFunction($E$33,$E$5:$E$13) -> 0 | AA14: =SUM(AA5:AA13)/(9-Q14)*100 -> 0 | AB14: =COUNTIF(P5:P13,">2") -> 0 | AC14: =IF((G14=0),"",SUM(AC5:AC13)/G14*100) -> 
A15: 10 | B15: 481 | C15: 5 | D15: 4 | V15: =IF(Q15=0,"",P15) ->  | AA15: =IF(AND(Q15="",P15=1),1,"") ->  | AC15: =IF(AND(G15=""),"",SUM(K15)) -> 
A16: 11 | B16: 319 | C16: 4 | D16: 16
A17: 12 | B17: 431 | C17: 5 | D17: 2
A18: 13 | B18: 122 | C18: 3 | D18: 18
A19: 14 | B19: 379 | C19: 4 | D19: 6
A20: 15 | B20: 316 | C20: 4 | D20: 8
A21: 16 | B21: 322 | C21: 4 | D21: 14
A22: 17 | B22: 345 | C22: 4 | D22: 10
A23: 18 | B23: 281 | C23: 4 | D23: 12
B24: =SUM(B15:B23) -> 2996 | C24: =SUM(C15:C23) -> 37 | D24: IND | E24: =SUM(E15:E23) -> 0 | F24: =SUM(F15:F23) -> 0 | G24: =SUM(G15:G23) -> 0 | H24: =SUM(H15:H23) -> 0 | I24: =SUM(I15:I23) -> 0 | J24: =IF((A29=27),"",(SUM(J15:J23)/SUM(J15:L23))*100) ->  | K24: =IF((A29=27),"",(SUM(K15:K23)/SUM(J15:L23))*100) ->  | L24: =IF((A29=27),"",(SUM(L15:L23)/SUM(J15:L23))*100) ->  | M24: =SUM(M15:M23) -> 0 | N24: =SUM(N15:N23) -> 0 | O24: =SUM(O15:O23) -> 0 | P24: =SUM(P15:P23) -> 0 | Q24: =SUM(Q15:Q23) -> 0 | S24: =IF(Q24=0,"",SUM(S15:S23)/Q24) ->  | V24: =SUM(V15:V23) -> 0 | W24: =ColorFunction($E$30,$E$15:$E$23) -> 0 | X24: =ColorFunction($E$31,$E$15:$E$23) -> 0 | Y24: =ColorFunction($E$32,$E$15:$E$23) -> 0 | Z24: =ColorFunction($E$33,$E$15:$E$23) -> 0 | AA24: =SUM(AA15:AA23)/(9-Q24)*100 -> 0 | AB24: =COUNTIF(P15:P23,">2") -> 0 | AC24: =IF((G24=0),"",SUM(AC15:AC23)/G24*100) -> 
B25: =SUM(B24,B14) -> 5763 | C25: =SUM(C24,C14) -> 73 | D25: TOTAL | E25: =IF(E14=0,"0",(E24+E14)) -> 0 | F25: =SUM(F14,F24) -> 0 | G25: =SUM(G24,G14) -> 0 | H25: =SUM(H24,H14) -> 0 | I25: =SUM(I24,I14) -> 0 | J25: =IF((A28=27),"",(SUM(J14,J24)/2)) ->  | K25: =IF((A28=27),"",(SUM(K14,K24)/2)) ->  | L25: =IF((A28=27),"",(SUM(L14,L24)/2)) ->  | M25: =SUM(M24,M14) -> 0 | N25: =SUM(N24,N14) -> 0 | O25: =SUM(O24,O14) -> 0 | P25: =IF(P14+P24=0,"",SUM(P24,P14)) ->  | Q25: =IF(Q14+Q24=0,"",SUM(Q24,Q14)) ->  | S25: =IF(Q25="","",SUM(S24,S14)/2) ->  | T25: =IF(N25=0,"",(O25)/N25*100) ->  | U25: =IF(Q25="","",(Q25)/18*100) ->  | V25: =IF(Q25="","",(V14+V24)/Q25) ->  | W25: =SUM(W14,W24) -> 0 | X25: =SUM(X14,X24) -> 0 | Y25: =SUM(Y14,Y24) -> 0 | Z25: =SUM(Z14,Z24) -> 0 | AA25: =SUM(AA14,AA24)/2 -> 0 | AB25: =SUM(AB14,AB24) -> 0 | AC25: =SUM(AC24,AC14)/2 -> 0
E27: Udfyld alle grønne felter med 1 for positiv eller antal i tal
A28: =COUNTBLANK(I5:K13) -> 27 | W28: Approach
A29: =COUNTBLANK(I15:K23) -> 27 | E29: Udfyld følgende farver: | S29: Holes to par | W29: Længde (m) | X29: Antal | Y29: Afstand (m)
A30: =SUM(L5:L23) -> 0 | E30: Eagles | S30: Par 3 | T30: =SUMIF(C:C,"3",E:E)/COUNTIF(C:C,3) -> 0 | W30: 45-70 | X30: =COUNTIFS(R5:R23,">=45",R5:R23,"<=70") -> 0 | Y30: =IF(X30=0,"",AVERAGEIFS(S5:S23,R5:R23,">=45",R5:R23,"<=70")) -> 
E31: Birdies | S31: Par 4 | T31: =SUMIF(C:C,"4",E:E)/COUNTIF(C:C,4) -> 0 | W31: 71-90 | X31: =COUNTIFS(R5:R23,">=71",R5:R23,"<=90") -> 0 | Y31: =IF(X31=0,"",AVERAGEIFS(S5:S23,R5:R23,">=71",R5:R23,"<=90")) -> 
E32: Bogeys | S32: Par 5 | T32: =SUMIF(C:C,"5",E:E)/COUNTIF(C:C,5) -> 0 | W32: 91-115 | X32: =COUNTIFS(R5:R23,">=91",R5:R23,"<=115") -> 0 | Y32: =IF(X32=0,"",AVERAGEIFS(S5:S23,R5:R23,">=91",R5:R23,"<=115")) -> 
E33: Doublebogeys eller værre | W33: 116-140 | X33: =COUNTIFS(R5:R23,">=116",R5:R23,"<=140") -> 0 | Y33: =IF(X33=0,"",AVERAGEIFS(S5:S23,R5:R23,">=116",R5:R23,"<=140")) -> 
S34: First 4 | T34: =IF(E25="0","",SUM(E5:E8)-SUM(C5:C8)) ->  | W34: 141-160 | X34: =COUNTIFS(R5:R23,">=141",R5:R23,"<=161") -> 0 | Y34: =IF(X34=0,"",AVERAGEIFS(S5:S23,R5:R23,">=141",R5:R23,"<=160")) -> 
S35: Last 4 | T35: =IF(E25="0","",SUM(E20:E23)-SUM(C20:C23)) ->  | W35: 161-180 | X35: =COUNTIFS(R5:R23,">=161",R5:R23,"<=180") -> 0 | Y35: =IF(X35=0,"",AVERAGEIFS(S5:S23,R5:R23,">=161",R5:R23,"<=180")) -> 
W37: Putting
W38: Længde (m) | X38: Antal | Y38: Holet | Z38: Holet (%)
W39: under 1 m | X39: =COUNTIFS(S5:S23,">=0,1",S5:S23,"<=0,9") -> 0 | Y39: =IF(X39=0,"",COUNTIFS(P5:P23,"=1",S5:S23,"<1")) ->  | Z39: =IF(X39=0,"",Y39/X39*100) -> 
W40: 1 - 1,5 | X40: =COUNTIFS(S5:S23,">=1",S5:S23,"<=1,5") -> 0 | Y40: =IF(X40=0,"",COUNTIFS(P5:P23,"=1",S5:S23,">=1",S5:S23,"<=1,5")) ->  | Z40: =IF(X40=0,"",Y40/X40*100) -> 
W41: 1,5 - 3 | X41: =COUNTIFS(S5:S23,">=1,6",S5:S23,"<=3") -> 0 | Y41: =IF(X41=0,"",COUNTIFS(P5:P23,"=1",S5:S23,">=1,6",S5:S23,"<=3")) ->  | Z41: =IF(X41=0,"",Y41/X41*100) -> 
W42: 3 - 4,5 | X42: =COUNTIFS(S5:S23,">=3,1",S5:S23,"<=4,5") -> 0 | Y42: =IF(X42=0,"",COUNTIFS(P5:P23,"=1",S5:S23,">=3,1",S5:S23,"<=4,5")) -> 
W43: 4,5 - 6 | X43: =COUNTIFS(S5:S23,">=4,6",S5:S23,"<=6") -> 0 | Y43: =IF(X43=0,"",COUNTIFS(P5:P23,"=1",S5:S23,">=4,6",S5:S23,"<=6")) -> 
W44: over 6 meter | X44: =COUNTIFS(S5:S23,">6") -> 0 | Y44: =IF(X44=0,"",COUNTIFS(P5:P23,"=1",S5:S23,">6")) -> 

Sheet Runde 13
A1: Korsør Golf Klub - 18 huller - Gul tee | J1: =IF(E25="0","0","1") -> 0 | L1: Dato: | O1: Handicap: | T1: Antal tildelte slag:
H3: Tee shot | K3: Fairway hits i % | N3: Bunker | R3: Approach shots
A4: Hul | B4: Gul tee | C4: Par | D4: HCP | E4: Score | F4: Netto | G4: Driver | H4: Wood | I4: Jern | J4: Venstre | K4: Midt | L4: Højre | M4: FB | N4: GB | O4: SS | P4: Putts | Q4: GIR | R4: Dist. to pin (m) | S4: Dist. to hole (m) | T4: % SS | U4: % GIR | V4: Putts/GIR | W4: Eagles | X4: Birdies | Y4: Bogeys | Z4: Værre | AA4: % Scramble | AB4: 3+ Putts | AC4: % Driver/Fairwayhits
A5: 1 | B5: 307 | C5: 4 | D5: 11 | V5: =IF(Q5=0,"",P5) ->  | AA5: =IF(AND(Q5="",P5=1),1,"") ->  | AC5: =IF(AND(G5=""),"",SUM(K5)) -> 
A6: 2 | B6: 323 | C6: 4 | D6: 5
A7: 3 | B7: 138 | C7: 3 | D7: 15
A8: 4 | B8: 310 | C8: 4 | D8: 13
A9: 5 | B9: 431 | C9: 5 | D9: 3
A10: 6 | B10: 312 | C10: 4 | D10: 9
A11: 7 | B11: 498 | C11: 5 | D11: 1
A12: 8 | B12: 138 | C12: 3 | D12: 17
A13: 9 | B13: 310 | C13: 4 | D13: 7
B14: =SUM(B5:B13) -> 2767 | C14: =SUM(C5:C13) -> 36 | D14: UD | E14: =SUM(E5:E13) -> 0 | F14: =SUM(F5:F13) -> 0 | G14: =SUM(G5:G13) -> 0 | H14: =SUM(H5:H13) -> 0 | I14: =SUM(I5:I13) -> 0 | J14: =IF((A28=27),"",(SUM(J5:J13)/SUM(J5:L13))*100) ->  | K14: =IF((A28=27),"",(SUM(K5:K13)/SUM(J5:L13))*100) ->  | L14: =IF((A28=27),"",(SUM(L5:L13)/SUM(J5:L13))*100) ->  | M14: =SUM(M5:M13) -> 0 | N14: =SUM(N5:N13) -> 0 | O14: =SUM(O5:O13) -> 0 | P14: =SUM(P5:P13) -> 0 | Q14: =SUM(Q5:Q13) -> 0 | S14: =IF(Q14=0,"",SUM(S5:S13)/Q14) ->  | V14: =SUM(V5:V13) -> 0 | W14: =ColorFunction($E$30,$E$5:$E$13) -> 0 | X14: =ColorFunction($E$31,$E$5:$E$13) -> 0 | Y14: =ColorFunction($E$32,$E$5:$E$13) -> 0 | Z14: =ColorFunction($E$33,$E$5:$E$13) -> 0 | AA14: =SUM(AA5:AA13)/(9-Q14)*100 -> 0 | AB14: =COUNTIF(P5:P13,">2") -> 0 | AC14: =IF((G14=0),"",SUM(AC5:AC13)/G14*100) -> 
A15: 10 | B15: 481 | C15: 5 | D15: 4 | V15: =IF(Q15=0,"",P15) ->  | AA15: =IF(AND(Q15="",P15=1),1,"") ->  | AC15: =IF(AND(G15=""),"",SUM(K15)) -> 
A16: 11 | B16: 319 | C16: 4 | D16: 16
A17: 12 | B17: 431 | C17: 5 | D17: 2
A18: 13 | B18: 122 | C18: 3 | D18: 18
A19: 14 | B19: 379 | C19: 4 | D19: 6
A20: 15 | B20: 316 | C20: 4 | D20: 8
A21: 16 | B21: 322 | C21: 4 | D21: 14
A22: 17 | B22: 345 | C22: 4 | D22: 10
A23: 18 | B23: 281 | C23: 4 | D23: 12
B24: =SUM(B15:B23) -> 2996 | C24: =SUM(C15:C23) -> 37 | D24: IND | E24: =SUM(E15:E23) -> 0 | F24: =SUM(F15:F23) -> 0 | G24: =SUM(G15:G23) -> 0 | H24: =SUM(H15:H23) -> 0 | I24: =SUM(I15:I23) -> 0 | J24: =IF((A29=27),"",(SUM(J15:J23)/SUM(J15:L23))*100) ->  | K24: =IF((A29=27),"",(SUM(K15:K23)/SUM(J15:L23))*100) ->  | L24: =IF((A29=27),"",(SUM(L15:L23)/SUM(J15:L23))*100) ->  | M24: =SUM(M15:M23) -> 0 | N24: =SUM(N15:N23) -> 0 | O24: =SUM(O15:O23) -> 0 | P24: =SUM(P15:P23) -> 0 | Q24: =SUM(Q15:Q23) -> 0 | S24: =IF(Q24=0,"",SUM(S15:S23)/Q24) ->  | V24: =SUM(V15:V23) -> 0 | W24: =ColorFunction($E$30,$E$15:$E$23) -> 0 | X24: =ColorFunction($E$31,$E$15:$E$23) -> 0 | Y24: =ColorFunction($E$32,$E$15:$E$23) -> 0 | Z24: =ColorFunction($E$33,$E$15:$E$23) -> 0 | AA24: =SUM(AA15:AA23)/(9-Q24)*100 -> 0 | AB24: =COUNTIF(P15:P23,">2") -> 0 | AC24: =IF((G24=0),"",SUM(AC15:AC23)/G24*100) -> 
B25: =SUM(B24,B14) -> 5763 | C25: =SUM(C24,C14) -> 73 | D25: TOTAL | E25: =IF(E14=0,"0",(E24+E14)) -> 0 | F25: =SUM(F14,F24) -> 0 | G25: =SUM(G24,G14) -> 0 | H25: =SUM(H24,H14) -> 0 | I25: =SUM(I24,I14) -> 0 | J25: =IF((A28=27),"",(SUM(J14,J24)/2)) ->  | K25: =IF((A28=27),"",(SUM(K14,K24)/2)) ->  | L25: =IF((A28=27),"",(SUM(L14,L24)/2)) ->  | M25: =SUM(M24,M14) -> 0 | N25: =SUM(N24,N14) -> 0 | O25: =SUM(O24,O14) -> 0 | P25: =IF(P14+P24=0,"",SUM(P24,P14)) ->  | Q25: =IF(Q14+Q24=0,"",SUM(Q24,Q14)) ->  | S25: =IF(Q25="","",SUM(S24,S14)/2) ->  | T25: =IF(N25=0,"",(O25)/N25*100) ->  | U25: =IF(Q25="","",(Q25)/18*100) ->  | V25: =IF(Q25="","",(V14+V24)/Q25) ->  | W25: =SUM(W14,W24) -> 0 | X25: =SUM(X14,X24) -> 0 | Y25: =SUM(Y14,Y24) -> 0 | Z25: =SUM(Z14,Z24) -> 0 | AA25: =SUM(AA14,AA24)/2 -> 0 | AB25: =SUM(AB14,AB24) -> 0 | AC25: =SUM(AC24,AC14)/2 -> 0
E27: Udfyld alle grønne felter med 1 for positiv eller antal i tal
A28: =COUNTBLANK(I5:K13) -> 27 | W28: Approach
A29: =COUNTBLANK(I15:K23) -> 27 | E29: Udfyld følgende farver: | S29: Holes to par | W29: Længde (m) | X29: Antal | Y29: Afstand (m)
A30: =SUM(L5:L23) -> 0 | E30: Eagles | S30: Par 3 | T30: =SUMIF(C:C,"3",E:E)/COUNTIF(C:C,3) -> 0 | W30: 45-70 | X30: =COUNTIFS(R5:R23,">=45",R5:R23,"<=70") -> 0 | Y30: =IF(X30=0,"",AVERAGEIFS(S5:S23,R5:R23,">=45",R5:R23,"<=70")) -> 
E31: Birdies | S31: Par 4 | T31: =SUMIF(C:C,"4",E:E)/COUNTIF(C:C,4) -> 0 | W31: 71-90 | X31: =COUNTIFS(R5:R23,">=71",R5:R23,"<=90") -> 0 | Y31: =IF(X31=0,"",AVERAGEIFS(S5:S23,R5:R23,">=71",R5:R23,"<=90")) -> 
E32: Bogeys | S32: Par 5 | T32: =SUMIF(C:C,"5",E:E)/COUNTIF(C:C,5) -> 0 | W32: 91-115 | X32: =COUNTIFS(R5:R23,">=91",R5:R23,"<=115") -> 0 | Y32: =IF(X32=0,"",AVERAGEIFS(S5:S23,R5:R23,">=91",R5:R23,"<=115")) -> 
E33: Doublebogeys eller værre | W33: 116-140 | X33: =COUNTIFS(R5:R23,">=116",R5:R23,"<=140") -> 0 | Y33: =IF(X33=0,"",AVERAGEIFS(S5:S23,R5:R23,">=116",R5:R23,"<=140")) -> 
S34: First 4 | T34: =IF(E25="0","",SUM(E5:E8)-SUM(C5:C8)) ->  | W34: 141-160 | X34: =COUNTIFS(R5:R23,">=141",R5:R23,"<=161") -> 0 | Y34: =IF(X34=0,"",AVERAGEIFS(S5:S23,R5:R23,">=141",R5:R23,"<=160")) -> 
S35: Last 4 | T35: =IF(E25="0","",SUM(E20:E23)-SUM(C20:C23)) ->  | W35: 161-180 | X35: =COUNTIFS(R5:R23,">=161",R5:R23,"<=180") -> 0 | Y35: =IF(X35=0,"",AVERAGEIFS(S5:S23,R5:R23,">=161",R5:R23,"<=180")) -> 
W37: Putting
W38: Længde (m) | X38: Antal | Y38: Holet | Z38: Holet (%)
W39: under 1 m | X39: =COUNTIFS(S5:S23,">=0,1",S5:S23,"<=0,9") -> 0 | Y39: =IF(X39=0,"",COUNTIFS(P5:P23,"=1",S5:S23,"<1")) ->  | Z39: =IF(X39=0,"",Y39/X39*100) -> 
W40: 1 - 1,5 | X40: =COUNTIFS(S5:S23,">=1",S5:S23,"<=1,5") -> 0 | Y40: =IF(X40=0,"",COUNTIFS(P5:P23,"=1",S5:S23,">=1",S5:S23,"<=1,5")) ->  | Z40: =IF(X40=0,"",Y40/X40*100) -> 
W41: 1,5 - 3 | X41: =COUNTIFS(S5:S23,">=1,6",S5:S23,"<=3") -> 0 | Y41: =IF(X41=0,"",COUNTIFS(P5:P23,"=1",S5:S23,">=1,6",S5:S23,"<=3")) ->  | Z41: =IF(X41=0,"",Y41/X41*100) -> 
W42: 3 - 4,5 | X42: =COUNTIFS(S5:S23,">=3,1",S5:S23,"<=4,5") -> 0 | Y42: =IF(X42=0,"",COUNTIFS(P5:P23,"=1",S5:S23,">=3,1",S5:S23,"<=4,5")) -> 
W43: 4,5 - 6 | X43: =COUNTIFS(S5:S23,">=4,6",S5:S23,"<=6") -> 0 | Y43: =IF(X43=0,"",COUNTIFS(P5:P23,"=1",S5:S23,">=4,6",S5:S23,"<=6")) -> 
W44: over 6 meter | X44: =COUNTIFS(S5:S23,">6") -> 0 | Y44: =IF(X44=0,"",COUNTIFS(P5:P23,"=1",S5:S23,">6")) -> 

Sheet Runde 14
A1: Korsør Golf Klub - 18 huller - Gul tee | J1: =IF(E25="0","0","1") -> 0 | L1: Dato: | O1: Handicap: | T1: Antal tildelte slag:
H3: Tee shot | K3: Fairway hits i % | N3: Bunker | R3: Approach shots
A4: Hul | B4: Gul tee | C4: Par | D4: HCP | E4: Score | F4: Netto | G4: Driver | H4: Wood | I4: Jern | J4: Venstre | K4: Midt | L4: Højre | M4: FB | N4: GB | O4: SS | P4: Putts | Q4: GIR | R4: Dist. to pin (m) | S4: Dist. to hole (m) | T4: % SS | U4: % GIR | V4: Putts/GIR | W4: Eagles | X4: Birdies | Y4: Bogeys | Z4: Værre | AA4: % Scramble | AB4: 3+ Putts | AC4: % Driver/Fairwayhits
A5: 1 | B5: 307 | C5: 4 | D5: 11 | V5: =IF(Q5=0,"",P5) ->  | AA5: =IF(AND(Q5="",P5=1),1,"") ->  | AC5: =IF(AND(G5=""),"",SUM(K5)) -> 
A6: 2 | B6: 323 | C6: 4 | D6: 5
A7: 3 | B7: 138 | C7: 3 | D7: 15
A8: 4 | B8: 310 | C8: 4 | D8: 13
A9: 5 | B9: 431 | C9: 5 | D9: 3
A10: 6 | B10: 312 | C10: 4 | D10: 9
A11: 7 | B11: 498 | C11: 5 | D11: 1
A12: 8 | B12: 138 | C12: 3 | D12: 17
A13: 9 | B13: 310 | C13: 4 | D13: 7
B14: =SUM(B5:B13) -> 2767 | C14: =SUM(C5:C13) -> 36 | D14: UD | E14: =SUM(E5:E13) -> 0 | F14: =SUM(F5:F13) -> 0 | G14: =SUM(G5:G13) -> 0 | H14: =SUM(H5:H13) -> 0 | I14: =SUM(I5:I13) -> 0 | J14: =IF((A28=27),"",(SUM(J5:J13)/SUM(J5:L13))*100) ->  | K14: =IF((A28=27),"",(SUM(K5:K13)/SUM(J5:L13))*100) ->  | L14: =IF((A28=27),"",(SUM(L5:L13)/SUM(J5:L13))*100) ->  | M14: =SUM(M5:M13) -> 0 | N14: =SUM(N5:N13) -> 0 | O14: =SUM(O5:O13) -> 0 | P14: =SUM(P5:P13) -> 0 | Q14: =SUM(Q5:Q13) -> 0 | S14: =IF(Q14=0,"",SUM(S5:S13)/Q14) ->  | V14: =SUM(V5:V13) -> 0 | W14: =ColorFunction($E$30,$E$5:$E$13) -> 0 | X14: =ColorFunction($E$31,$E$5:$E$13) -> 0 | Y14: =ColorFunction($E$32,$E$5:$E$13) -> 0 | Z14: =ColorFunction($E$33,$E$5:$E$13) -> 0 | AA14: =SUM(AA5:AA13)/(9-Q14)*100 -> 0 | AB14: =COUNTIF(P5:P13,">2") -> 0 | AC14: =IF((G14=0),"",SUM(AC5:AC13)/G14*100) -> 
A15: 10 | B15: 481 | C15: 5 | D15: 4 | V15: =IF(Q15=0,"",P15) ->  | AA15: =IF(AND(Q15="",P15=1),1,"") ->  | AC15: =IF(AND(G15=""),"",SUM(K15)) -> 
A16: 11 | B16: 319 | C16: 4 | D16: 16
A17: 12 | B17: 431 | C17: 5 | D17: 2
A18: 13 | B18: 122 | C18: 3 | D18: 18
A19: 14 | B19: 379 | C19: 4 | D19: 6
A20: 15 | B20: 316 | C20: 4 | D20: 8
A21: 16 | B21: 322 | C21: 4 | D21: 14
A22: 17 | B22: 345 | C22: 4 | D22: 10
A23: 18 | B23: 281 | C23: 4 | D23: 12
B24: =SUM(B15:B23) -> 2996 | C24: =SUM(C15:C23) -> 37 | D24: IND | E24: =SUM(E15:E23) -> 0 | F24: =SUM(F15:F23) -> 0 | G24: =SUM(G15:G23) -> 0 | H24: =SUM(H15:H23) -> 0 | I24: =SUM(I15:I23) -> 0 | J24: =IF((A29=27),"",(SUM(J15:J23)/SUM(J15:L23))*100) ->  | K24: =IF((A29=27),"",(SUM(K15:K23)/SUM(J15:L23))*100) ->  | L24: =IF((A29=27),"",(SUM(L15:L23)/SUM(J15:L23))*100) ->  | M24: =SUM(M15:M23) -> 0 | N24: =SUM(N15:N23) -> 0 | O24: =SUM(O15:O23) -> 0 | P24: =SUM(P15:P23) -> 0 | Q24: =SUM(Q15:Q23) -> 0 | S24: =IF(Q24=0,"",SUM(S15:S23)/Q24) ->  | V24: =SUM(V15:V23) -> 0 | W24: =ColorFunction($E$30,$E$15:$E$23) -> 0 | X24: =ColorFunction($E$31,$E$15:$E$23) -> 0 | Y24: =ColorFunction($E$32,$E$15:$E$23) -> 0 | Z24: =ColorFunction($E$33,$E$15:$E$23) -> 0 | AA24: =SUM(AA15:AA23)/(9-Q24)*100 -> 0 | AB24: =COUNTIF(P15:P23,">2") -> 0 | AC24: =IF((G24=0),"",SUM(AC15:AC23)/G24*100) -> 
B25: =SUM(B24,B14) -> 5763 | C25: =SUM(C24,C14) -> 73 | D25: TOTAL | E25: =IF(E14=0,"0",(E24+E14)) -> 0 | F25: =SUM(F14,F24) -> 0 | G25: =SUM(G24,G14) -> 0 | H25: =SUM(H24,H14) -> 0 | I25: =SUM(I24,I14) -> 0 | J25: =IF((A28=27),"",(SUM(J14,J24)/2)) ->  | K25: =IF((A28=27),"",(SUM(K14,K24)/2)) ->  | L25: =IF((A28=27),"",(SUM(L14,L24)/2)) ->  | M25: =SUM(M24,M14) -> 0 | N25: =SUM(N24,N14) -> 0 | O25: =SUM(O24,O14) -> 0 | P25: =IF(P14+P24=0,"",SUM(P24,P14)) ->  | Q25: =IF(Q14+Q24=0,"",SUM(Q24,Q14)) ->  | S25: =IF(Q25="","",SUM(S24,S14)/2) ->  | T25: =IF(N25=0,"",(O25)/N25*100) ->  | U25: =IF(Q25="","",(Q25)/18*100) ->  | V25: =IF(Q25="","",(V14+V24)/Q25) ->  | W25: =SUM(W14,W24) -> 0 | X25: =SUM(X14,X24) -> 0 | Y25: =SUM(Y14,Y24) -> 0 | Z25: =SUM(Z14,Z24) -> 0 | AA25: =SUM(AA14,AA24)/2 -> 0 | AB25: =SUM(AB14,AB24) -> 0 | AC25: =SUM(AC24,AC14)/2 -> 0
E27: Udfyld alle grønne felter med 1 for positiv eller antal i tal
A28: =COUNTBLANK(I5:K13) -> 27 | W28: Approach
A29: =COUNTBLANK(I15:K23) -> 27 | E29: Udfyld følgende farver: | S29: Holes to par | W29: Længde (m) | X29: Antal | Y29: Afstand (m)
A30: =SUM(L5:L23) -> 0 | E30: Eagles | S30: Par 3 | T30: =SUMIF(C:C,"3",E:E)/COUNTIF(C:C,3) -> 0 | W30: 45-70 | X30: =COUNTIFS(R5:R23,">=45",R5:R23,"<=70") -> 0 | Y30: =IF(X30=0,"",AVERAGEIFS(S5:S23,R5:R23,">=45",R5:R23,"<=70")) -> 
E31: Birdies | S31: Par 4 | T31: =SUMIF(C:C,"4",E:E)/COUNTIF(C:C,4) -> 0 | W31: 71-90 | X31: =COUNTIFS(R5:R23,">=71",R5:R23,"<=90") -> 0 | Y31: =IF(X31=0,"",AVERAGEIFS(S5:S23,R5:R23,">=71",R5:R23,"<=90")) -> 
E32: Bogeys | S32: Par 5 | T32: =SUMIF(C:C,"5",E:E)/COUNTIF(C:C,5) -> 0 | W32: 91-115 | X32: =COUNTIFS(R5:R23,">=91",R5:R23,"<=115") -> 0 | Y32: =IF(X32=0,"",AVERAGEIFS(S5:S23,R5:R23,">=91",R5:R23,"<=115")) -> 
E33: Doublebogeys eller værre | W33: 116-140 | X33: =COUNTIFS(R5:R23,">=116",R5:R23,"<=140") -> 0 | Y33: =IF(X33=0,"",AVERAGEIFS(S5:S23,R5:R23,">=116",R5:R23,"<=140")) -> 
S34: First 4 | T34: =IF(E25="0","",SUM(E5:E8)-SUM(C5:C8)) ->  | W34: 141-160 | X34: =COUNTIFS(R5:R23,">=141",R5:R23,"<=161") -> 0 | Y34: =IF(X34=0,"",AVERAGEIFS(S5:S23,R5:R23,">=141",R5:R23,"<=160")) -> 
S35: Last 4 | T35: =IF(E25="0","",SUM(E20:E23)-SUM(C20:C23)) ->  | W35: 161-180 | X35: =COUNTIFS(R5:R23,">=161",R5:R23,"<=180") -> 0 | Y35: =IF(X35=0,"",AVERAGEIFS(S5:S23,R5:R23,">=161",R5:R23,"<=180")) -> 
W37: Putting
W38: Længde (m) | X38: Antal | Y38: Holet | Z38: Holet (%)
W39: under 1 m | X39: =COUNTIFS(S5:S23,">=0,1",S5:S23,"<=0,9") -> 0 | Y39: =IF(X39=0,"",COUNTIFS(P5:P23,"=1",S5:S23,"<1")) ->  | Z39: =IF(X39=0,"",Y39/X39*100) -> 
W40: 1 - 1,5 | X40: =COUNTIFS(S5:S23,">=1",S5:S23,"<=1,5") -> 0 | Y40: =IF(X40=0,"",COUNTIFS(P5:P23,"=1",S5:S23,">=1",S5:S23,"<=1,5")) ->  | Z40: =IF(X40=0,"",Y40/X40*100) -> 
W41: 1,5 - 3 | X41: =COUNTIFS(S5:S23,">=1,6",S5:S23,"<=3") -> 0 | Y41: =IF(X41=0,"",COUNTIFS(P5:P23,"=1",S5:S23,">=1,6",S5:S23,"<=3")) ->  | Z41: =IF(X41=0,"",Y41/X41*100) -> 
W42: 3 - 4,5 | X42: =COUNTIFS(S5:S23,">=3,1",S5:S23,"<=4,5") -> 0 | Y42: =IF(X42=0,"",COUNTIFS(P5:P23,"=1",S5:S23,">=3,1",S5:S23,"<=4,5")) -> 
W43: 4,5 - 6 | X43: =COUNTIFS(S5:S23,">=4,6",S5:S23,"<=6") -> 0 | Y43: =IF(X43=0,"",COUNTIFS(P5:P23,"=1",S5:S23,">=4,6",S5:S23,"<=6")) -> 
W44: over 6 meter | X44: =COUNTIFS(S5:S23,">6") -> 0 | Y44: =IF(X44=0,"",COUNTIFS(P5:P23,"=1",S5:S23,">6")) -> 

Sheet Runde 15
A1: Korsør Golf Klub - 18 huller - Gul tee | J1: =IF(E25="0","0","1") -> 0 | L1: Dato: | O1: Handicap: | T1: Antal tildelte slag:
H3: Tee shot | K3: Fairway hits i % | N3: Bunker | R3: Approach shots
A4: Hul | B4: Gul tee | C4: Par | D4: HCP | E4: Score | F4: Netto | G4: Driver | H4: Wood | I4: Jern | J4: Venstre | K4: Midt | L4: Højre | M4: FB | N4: GB | O4: SS | P4: Putts | Q4: GIR | R4: Dist. to pin (m) | S4: Dist. to hole (m) | T4: % SS | U4: % GIR | V4: Putts/GIR | W4: Eagles | X4: Birdies | Y4: Bogeys | Z4: Værre | AA4: % Scramble | AB4: 3+ Putts | AC4: % Driver/Fairwayhits
A5: 1 | B5: 307 | C5: 4 | D5: 11 | V5: =IF(Q5=0,"",P5) ->  | AA5: =IF(AND(Q5="",P5=1),1,"") ->  | AC5: =IF(AND(G5=""),"",SUM(K5)) -> 
A6: 2 | B6: 323 | C6: 4 | D6: 5
A7: 3 | B7: 138 | C7: 3 | D7: 15
A8: 4 | B8: 310 | C8: 4 | D8: 13
A9: 5 | B9: 431 | C9: 5 | D9: 3
A10: 6 | B10: 312 | C10: 4 | D10: 9
A11: 7 | B11: 498 | C11: 5 | D11: 1
A12: 8 | B12: 138 | C12: 3 | D12: 17
A13: 9 | B13: 310 | C13: 4 | D13: 7
B14: =SUM(B5:B13) -> 2767 | C14: =SUM(C5:C13) -> 36 | D14: UD | E14: =SUM(E5:E13) -> 0 | F14: =SUM(F5:F13) -> 0 | G14: =SUM(G5:G13) -> 0 | H14: =SUM(H5:H13) -> 0 | I14: =SUM(I5:I13) -> 0 | J14: =IF((A28=27),"",(SUM(J5:J13)/SUM(J5:L13))*100) ->  | K14: =IF((A28=27),"",(SUM(K5:K13)/SUM(J5:L13))*100) ->  | L14: =IF((A28=27),"",(SUM(L5:L13)/SUM(J5:L13))*100) ->  | M14: =SUM(M5:M13) -> 0 | N14: =SUM(N5:N13) -> 0 | O14: =SUM(O5:O13) -> 0 | P14: =SUM(P5:P13) -> 0 | Q14: =SUM(Q5:Q13) -> 0 | S14: =IF(Q14=0,"",SUM(S5:S13)/Q14) ->  | V14: =SUM(V5:V13) -> 0 | W14: =ColorFunction($E$30,$E$5:$E$13) -> 0 | X14: =ColorFunction($E$31,$E$5:$E$13) -> 0 | Y14: =ColorFunction($E$32,$E$5:$E$13) -> 0 | Z14: =ColorFunction($E$33,$E$5:$E$13) -> 0 | AA14: =SUM(AA5:AA13)/(9-Q14)*100 -> 0 | AB14: =COUNTIF(P5:P13,">2") -> 0 | AC14: =IF((G14=0),"",SUM(AC5:AC13)/G14*100) -> 
A15: 10 | B15: 481 | C15: 5 | D15: 4 | V15: =IF(Q15=0,"",P15) ->  | AA15: =IF(AND(Q15="",P15=1),1,"") ->  | AC15: =IF(AND(G15=""),"",SUM(K15)) -> 
A16: 11 | B16: 319 | C16: 4 | D16: 16
A17: 12 | B17: 431 | C17: 5 | D17: 2
A18: 13 | B18: 122 | C18: 3 | D18: 18
A19: 14 | B19: 379 | C19: 4 | D19: 6
A20: 15 | B20: 316 | C20: 4 | D20: 8
A21: 16 | B21: 322 | C21: 4 | D21: 14
A22: 17 | B22: 345 | C22: 4 | D22: 10
A23: 18 | B23: 281 | C23: 4 | D23: 12
B24: =SUM(B15:B23) -> 2996 | C24: =SUM(C15:C23) -> 37 | D24: IND | E24: =SUM(E15:E23) -> 0 | F24: =SUM(F15:F23) -> 0 | G24: =SUM(G15:G23) -> 0 | H24: =SUM(H15:H23) -> 0 | I24: =SUM(I15:I23) -> 0 | J24: =IF((A29=27),"",(SUM(J15:J23)/SUM(J15:L23))*100) ->  | K24: =IF((A29=27),"",(SUM(K15:K23)/SUM(J15:L23))*100) ->  | L24: =IF((A29=27),"",(SUM(L15:L23)/SUM(J15:L23))*100) ->  | M24: =SUM(M15:M23) -> 0 | N24: =SUM(N15:N23) -> 0 | O24: =SUM(O15:O23) -> 0 | P24: =SUM(P15:P23) -> 0 | Q24: =SUM(Q15:Q23) -> 0 | S24: =IF(Q24=0,"",SUM(S15:S23)/Q24) ->  | V24: =SUM(V15:V23) -> 0 | W24: =ColorFunction($E$30,$E$15:$E$23) -> 0 | X24: =ColorFunction($E$31,$E$15:$E$23) -> 0 | Y24: =ColorFunction($E$32,$E$15:$E$23) -> 0 | Z24: =ColorFunction($E$33,$E$15:$E$23) -> 0 | AA24: =SUM(AA15:AA23)/(9-Q24)*100 -> 0 | AB24: =COUNTIF(P15:P23,">2") -> 0 | AC24: =IF((G24=0),"",SUM(AC15:AC23)/G24*100) -> 
B25: =SUM(B24,B14) -> 5763 | C25: =SUM(C24,C14) -> 73 | D25: TOTAL | E25: =IF(E14=0,"0",(E24+E14)) -> 0 | F25: =SUM(F14,F24) -> 0 | G25: =SUM(G24,G14) -> 0 | H25: =SUM(H24,H14) -> 0 | I25: =SUM(I24,I14) -> 0 | J25: =IF((A28=27),"",(SUM(J14,J24)/2)) ->  | K25: =IF((A28=27),"",(SUM(K14,K24)/2)) ->  | L25: =IF((A28=27),"",(SUM(L14,L24)/2)) ->  | M25: =SUM(M24,M14) -> 0 | N25: =SUM(N24,N14) -> 0 | O25: =SUM(O24,O14) -> 0 | P25: =IF(P14+P24=0,"",SUM(P24,P14)) ->  | Q25: =IF(Q14+Q24=0,"",SUM(Q24,Q14)) ->  | S25: =IF(Q25="","",SUM(S24,S14)/2) ->  | T25: =IF(N25=0,"",(O25)/N25*100) ->  | U25: =IF(Q25="","",(Q25)/18*100) ->  | V25: =IF(Q25="","",(V14+V24)/Q25) ->  | W25: =SUM(W14,W24) -> 0 | X25: =SUM(X14,X24) -> 0 | Y25: =SUM(Y14,Y24) -> 0 | Z25: =SUM(Z14,Z24) -> 0 | AA25: =SUM(AA14,AA24)/2 -> 0 | AB25: =SUM(AB14,AB24) -> 0 | AC25: =SUM(AC24,AC14)/2 -> 0
E27: Udfyld alle grønne felter med 1 for positiv eller antal i tal
A28: =COUNTBLANK(I5:K13) -> 27 | W28: Approach
A29: =COUNTBLANK(I15:K23) -> 27 | E29: Udfyld følgende farver: | S29: Holes to par | W29: Længde (m) | X29: Antal | Y29: Afstand (m)
A30: =SUM(L5:L23) -> 0 | E30: Eagles | S30: Par 3 | T30: =SUMIF(C:C,"3",E:E)/COUNTIF(C:C,3) -> 0 | W30: 45-70 | X30: =COUNTIFS(R5:R23,">=45",R5:R23,"<=70") -> 0 | Y30: =IF(X30=0,"",AVERAGEIFS(S5:S23,R5:R23,">=45",R5:R23,"<=70")) -> 
E31: Birdies | S31: Par 4 | T31: =SUMIF(C:C,"4",E:E)/COUNTIF(C:C,4) -> 0 | W31: 71-90 | X31: =COUNTIFS(R5:R23,">=71",R5:R23,"<=90") -> 0 | Y31: =IF(X31=0,"",AVERAGEIFS(S5:S23,R5:R23,">=71",R5:R23,"<=90")) -> 
E32: Bogeys | S32: Par 5 | T32: =SUMIF(C:C,"5",E:E)/COUNTIF(C:C,5) -> 0 | W32: 91-115 | X32: =COUNTIFS(R5:R23,">=91",R5:R23,"<=115") -> 0 | Y32: =IF(X32=0,"",AVERAGEIFS(S5:S23,R5:R23,">=91",R5:R23,"<=115")) -> 
E33: Doublebogeys eller værre | W33: 116-140 | X33: =COUNTIFS(R5:R23,">=116",R5:R23,"<=140") -> 0 | Y33: =IF(X33=0,"",AVERAGEIFS(S5:S23,R5:R23,">=116",R5:R23,"<=140")) -> 
S34: First 4 | T34: =IF(E25="0","",SUM(E5:E8)-SUM(C5:C8)) ->  | W34: 141-160 | X34: =COUNTIFS(R5:R23,">=141",R5:R23,"<=161") -> 0 | Y34: =IF(X34=0,"",AVERAGEIFS(S5:S23,R5:R23,">=141",R5:R23,"<=160")) -> 
S35: Last 4 | T35: =IF(E25="0","",SUM(E20:E23)-SUM(C20:C23)) ->  | W35: 161-180 | X35: =COUNTIFS(R5:R23,">=161",R5:R23,"<=180") -> 0 | Y35: =IF(X35=0,"",AVERAGEIFS(S5:S23,R5:R23,">=161",R5:R23,"<=180")) -> 
W37: Putting
W38: Længde (m) | X38: Antal | Y38: Holet | Z38: Holet (%)
W39: under 1 m | X39: =COUNTIFS(S5:S23,">=0,1",S5:S23,"<=0,9") -> 0 | Y39: =IF(X39=0,"",COUNTIFS(P5:P23,"=1",S5:S23,"<1")) ->  | Z39: =IF(X39=0,"",Y39/X39*100) -> 
W40: 1 - 1,5 | X40: =COUNTIFS(S5:S23,">=1",S5:S23,"<=1,5") -> 0 | Y40: =IF(X40=0,"",COUNTIFS(P5:P23,"=1",S5:S23,">=1",S5:S23,"<=1,5")) ->  | Z40: =IF(X40=0,"",Y40/X40*100) -> 
W41: 1,5 - 3 | X41: =COUNTIFS(S5:S23,">=1,6",S5:S23,"<=3") -> 0 | Y41: =IF(X41=0,"",COUNTIFS(P5:P23,"=1",S5:S23,">=1,6",S5:S23,"<=3")) ->  | Z41: =IF(X41=0,"",Y41/X41*100) -> 
W42: 3 - 4,5 | X42: =COUNTIFS(S5:S23,">=3,1",S5:S23,"<=4,5") -> 0 | Y42: =IF(X42=0,"",COUNTIFS(P5:P23,"=1",S5:S23,">=3,1",S5:S23,"<=4,5")) -> 
W43: 4,5 - 6 | X43: =COUNTIFS(S5:S23,">=4,6",S5:S23,"<=6") -> 0 | Y43: =IF(X43=0,"",COUNTIFS(P5:P23,"=1",S5:S23,">=4,6",S5:S23,"<=6")) -> 
W44: over 6 meter | X44: =COUNTIFS(S5:S23,">6") -> 0 | Y44: =IF(X44=0,"",COUNTIFS(P5:P23,"=1",S5:S23,">6")) -> 

Sheet Runde 16
A1: Korsør Golf Klub - 18 huller - Gul tee | J1: =IF(E25="0","0","1") -> 0 | L1: Dato: | O1: Handicap: | T1: Antal tildelte slag:
H3: Tee shot | K3: Fairway hits i % | N3: Bunker | R3: Approach shots
A4: Hul | B4: Gul tee | C4: Par | D4: HCP | E4: Score | F4: Netto | G4: Driver | H4: Wood | I4: Jern | J4: Venstre | K4: Midt | L4: Højre | M4: FB | N4: GB | O4: SS | P4: Putts | Q4: GIR | R4: Dist. to pin (m) | S4: Dist. to hole (m) | T4: % SS | U4: % GIR | V4: Putts/GIR | W4: Eagles | X4: Birdies | Y4: Bogeys | Z4: Værre | AA4: % Scramble | AB4: 3+ Putts | AC4: % Driver/Fairwayhits
A5: 1 | B5: 307 | C5: 4 | D5: 11 | V5: =IF(Q5=0,"",P5) ->  | AA5: =IF(AND(Q5="",P5=1),1,"") ->  | AC5: =IF(AND(G5=""),"",SUM(K5)) -> 
A6: 2 | B6: 323 | C6: 4 | D6: 5
A7: 3 | B7: 138 | C7: 3 | D7: 15
A8: 4 | B8: 310 | C8: 4 | D8: 13
A9: 5 | B9: 431 | C9: 5 | D9: 3
A10: 6 | B10: 312 | C10: 4 | D10: 9
A11: 7 | B11: 498 | C11: 5 | D11: 1
A12: 8 | B12: 138 | C12: 3 | D12: 17
A13: 9 | B13: 310 | C13: 4 | D13: 7
B14: =SUM(B5:B13) -> 2767 | C14: =SUM(C5:C13) -> 36 | D14: UD | E14: =SUM(E5:E13) -> 0 | F14: =SUM(F5:F13) -> 0 | G14: =SUM(G5:G13) -> 0 | H14: =SUM(H5:H13) -> 0 | I14: =SUM(I5:I13) -> 0 | J14: =IF((A28=27),"",(SUM(J5:J13)/SUM(J5:L13))*100) ->  | K14: =IF((A28=27),"",(SUM(K5:K13)/SUM(J5:L13))*100) ->  | L14: =IF((A28=27),"",(SUM(L5:L13)/SUM(J5:L13))*100) ->  | M14: =SUM(M5:M13) -> 0 | N14: =SUM(N5:N13) -> 0 | O14: =SUM(O5:O13) -> 0 | P14: =SUM(P5:P13) -> 0 | Q14: =SUM(Q5:Q13) -> 0 | S14: =IF(Q14=0,"",SUM(S5:S13)/Q14) ->  | V14: =SUM(V5:V13) -> 0 | W14: =ColorFunction($E$30,$E$5:$E$13) -> 0 | X14: =ColorFunction($E$31,$E$5:$E$13) -> 0 | Y14: =ColorFunction($E$32,$E$5:$E$13) -> 0 | Z14: =ColorFunction($E$33,$E$5:$E$13) -> 0 | AA14: =SUM(AA5:AA13)/(9-Q14)*100 -> 0 | AB14: =COUNTIF(P5:P13,">2") -> 0 | AC14: =IF((G14=0),"",SUM(AC5:AC13)/G14*100) -> 
A15: 10 | B15: 481 | C15: 5 | D15: 4 | V15: =IF(Q15=0,"",P15) ->  | AA15: =IF(AND(Q15="",P15=1),1,"") ->  | AC15: =IF(AND(G15=""),"",SUM(K15)) -> 
A16: 11 | B16: 319 | C16: 4 | D16: 16
A17: 12 | B17: 431 | C17: 5 | D17: 2
A18: 13 | B18: 122 | C18: 3 | D18: 18
A19: 14 | B19: 379 | C19: 4 | D19: 6
A20: 15 | B20: 316 | C20: 4 | D20: 8
A21: 16 | B21: 322 | C21: 4 | D21: 14
A22: 17 | B22: 345 | C22: 4 | D22: 10
A23: 18 | B23: 281 | C23: 4 | D23: 12
B24: =SUM(B15:B23) -> 2996 | C24: =SUM(C15:C23) -> 37 | D24: IND | E24: =SUM(E15:E23) -> 0 | F24: =SUM(F15:F23) -> 0 | G24: =SUM(G15:G23) -> 0 | H24: =SUM(H15:H23) -> 0 | I24: =SUM(I15:I23) -> 0 | J24: =IF((A29=27),"",(SUM(J15:J23)/SUM(J15:L23))*100) ->  | K24: =IF((A29=27),"",(SUM(K15:K23)/SUM(J15:L23))*100) ->  | L24: =IF((A29=27),"",(SUM(L15:L23)/SUM(J15:L23))*100) ->  | M24: =SUM(M15:M23) -> 0 | N24: =SUM(N15:N23) -> 0 | O24: =SUM(O15:O23) -> 0 | P24: =SUM(P15:P23) -> 0 | Q24: =SUM(Q15:Q23) -> 0 | S24: =IF(Q24=0,"",SUM(S15:S23)/Q24) ->  | V24: =SUM(V15:V23) -> 0 | W24: =ColorFunction($E$30,$E$15:$E$23) -> 0 | X24: =ColorFunction($E$31,$E$15:$E$23) -> 0 | Y24: =ColorFunction($E$32,$E$15:$E$23) -> 0 | Z24: =ColorFunction($E$33,$E$15:$E$23) -> 0 | AA24: =SUM(AA15:AA23)/(9-Q24)*100 -> 0 | AB24: =COUNTIF(P15:P23,">2") -> 0 | AC24: =IF((G24=0),"",SUM(AC15:AC23)/G24*100) -> 
B25: =SUM(B24,B14) -> 5763 | C25: =SUM(C24,C14) -> 73 | D25: TOTAL | E25: =IF(E14=0,"0",(E24+E14)) -> 0 | F25: =SUM(F14,F24) -> 0 | G25: =SUM(G24,G14) -> 0 | H25: =SUM(H24,H14) -> 0 | I25: =SUM(I24,I14) -> 0 | J25: =IF((A28=27),"",(SUM(J14,J24)/2)) ->  | K25: =IF((A28=27),"",(SUM(K14,K24)/2)) ->  | L25: =IF((A28=27),"",(SUM(L14,L24)/2)) ->  | M25: =SUM(M24,M14) -> 0 | N25: =SUM(N24,N14) -> 0 | O25: =SUM(O24,O14) -> 0 | P25: =IF(P14+P24=0,"",SUM(P24,P14)) ->  | Q25: =IF(Q14+Q24=0,"",SUM(Q24,Q14)) ->  | S25: =IF(Q25="","",SUM(S24,S14)/2) ->  | T25: =IF(N25=0,"",(O25)/N25*100) ->  | U25: =IF(Q25="","",(Q25)/18*100) ->  | V25: =IF(Q25="","",(V14+V24)/Q25) ->  | W25: =SUM(W14,W24) -> 0 | X25: =SUM(X14,X24) -> 0 | Y25: =SUM(Y14,Y24) -> 0 | Z25: =SUM(Z14,Z24) -> 0 | AA25: =SUM(AA14,AA24)/2 -> 0 | AB25: =SUM(AB14,AB24) -> 0 | AC25: =SUM(AC24,AC14)/2 -> 0
E27: Udfyld alle grønne felter med 1 for positiv eller antal i tal
A28: =COUNTBLANK(I5:K13) -> 27 | W28: Approach
A29: =COUNTBLANK(I15:K23) -> 27 | E29: Udfyld følgende farver: | S29: Holes to par | W29: Længde (m) | X29: Antal | Y29: Afstand (m)
A30: =SUM(L5:L23) -> 0 | E30: Eagles | S30: Par 3 | T30: =SUMIF(C:C,"3",E:E)/COUNTIF(C:C,3) -> 0 | W30: 45-70 | X30: =COUNTIFS(R5:R23,">=45",R5:R23,"<=70") -> 0 | Y30: =IF(X30=0,"",AVERAGEIFS(S5:S23,R5:R23,">=45",R5:R23,"<=70")) -> 
E31: Birdies | S31: Par 4 | T31: =SUMIF(C:C,"4",E:E)/COUNTIF(C:C,4) -> 0 | W31: 71-90 | X31: =COUNTIFS(R5:R23,">=71",R5:R23,"<=90") -> 0 | Y31: =IF(X31=0,"",AVERAGEIFS(S5:S23,R5:R23,">=71",R5:R23,"<=90")) -> 
E32: Bogeys | S32: Par 5 | T32: =SUMIF(C:C,"5",E:E)/COUNTIF(C:C,5) -> 0 | W32: 91-115 | X32: =COUNTIFS(R5:R23,">=91",R5:R23,"<=115") -> 0 | Y32: =IF(X32=0,"",AVERAGEIFS(S5:S23,R5:R23,">=91",R5:R23,"<=115")) -> 
E33: Doublebogeys eller værre | W33: 116-140 | X33: =COUNTIFS(R5:R23,">=116",R5:R23,"<=140") -> 0 | Y33: =IF(X33=0,"",AVERAGEIFS(S5:S23,R5:R23,">=116",R5:R23,"<=140")) -> 
S34: First 4 | T34: =IF(E25="0","",SUM(E5:E8)-SUM(C5:C8)) ->  | W34: 141-160 | X34: =COUNTIFS(R5:R23,">=141",R5:R23,"<=161") -> 0 | Y34: =IF(X34=0,"",AVERAGEIFS(S5:S23,R5:R23,">=141",R5:R23,"<=160")) -> 
S35: Last 4 | T35: =IF(E25="0","",SUM(E20:E23)-SUM(C20:C23)) ->  | W35: 161-180 | X35: =COUNTIFS(R5:R23,">=161",R5:R23,"<=180") -> 0 | Y35: =IF(X35=0,"",AVERAGEIFS(S5:S23,R5:R23,">=161",R5:R23,"<=180")) -> 
W37: Putting
W38: Længde (m) | X38: Antal | Y38: Holet | Z38: Holet (%)
W39: under 1 m | X39: =COUNTIFS(S5:S23,">=0,1",S5:S23,"<=0,9") -> 0 | Y39: =IF(X39=0,"",COUNTIFS(P5:P23,"=1",S5:S23,"<1")) ->  | Z39: =IF(X39=0,"",Y39/X39*100) -> 
W40: 1 - 1,5 | X40: =COUNTIFS(S5:S23,">=1",S5:S23,"<=1,5") -> 0 | Y40: =IF(X40=0,"",COUNTIFS(P5:P23,"=1",S5:S23,">=1",S5:S23,"<=1,5")) ->  | Z40: =IF(X40=0,"",Y40/X40*100) -> 
W41: 1,5 - 3 | X41: =COUNTIFS(S5:S23,">=1,6",S5:S23,"<=3") -> 0 | Y41: =IF(X41=0,"",COUNTIFS(P5:P23,"=1",S5:S23,">=1,6",S5:S23,"<=3")) ->  | Z41: =IF(X41=0,"",Y41/X41*100) -> 
W42: 3 - 4,5 | X42: =COUNTIFS(S5:S23,">=3,1",S5:S23,"<=4,5") -> 0 | Y42: =IF(X42=0,"",COUNTIFS(P5:P23,"=1",S5:S23,">=3,1",S5:S23,"<=4,5")) -> 
W43: 4,5 - 6 | X43: =COUNTIFS(S5:S23,">=4,6",S5:S23,"<=6") -> 0 | Y43: =IF(X43=0,"",COUNTIFS(P5:P23,"=1",S5:S23,">=4,6",S5:S23,"<=6")) -> 
W44: over 6 meter | X44: =COUNTIFS(S5:S23,">6") -> 0 | Y44: =IF(X44=0,"",COUNTIFS(P5:P23,"=1",S5:S23,">6")) -> 

Sheet Runde 17
A1: Korsør Golf Klub - 18 huller - Gul tee | J1: =IF(E25="0","0","1") -> 0 | L1: Dato: | O1: Handicap: | T1: Antal tildelte slag:
H3: Tee shot | K3: Fairway hits i % | N3: Bunker | R3: Approach shots
A4: Hul | B4: Gul tee | C4: Par | D4: HCP | E4: Score | F4: Netto | G4: Driver | H4: Wood | I4: Jern | J4: Venstre | K4: Midt | L4: Højre | M4: FB | N4: GB | O4: SS | P4: Putts | Q4: GIR | R4: Dist. to pin (m) | S4: Dist. to hole (m) | T4: % SS | U4: % GIR | V4: Putts/GIR | W4: Eagles | X4: Birdies | Y4: Bogeys | Z4: Værre | AA4: % Scramble | AB4: 3+ Putts | AC4: % Driver/Fairwayhits
A5: 1 | B5: 307 | C5: 4 | D5: 11 | V5: =IF(Q5=0,"",P5) ->  | AA5: =IF(AND(Q5="",P5=1),1,"") ->  | AC5: =IF(AND(G5=""),"",SUM(K5)) -> 
A6: 2 | B6: 323 | C6: 4 | D6: 5
A7: 3 | B7: 138 | C7: 3 | D7: 15
A8: 4 | B8: 310 | C8: 4 | D8: 13
A9: 5 | B9: 431 | C9: 5 | D9: 3
A10: 6 | B10: 312 | C10: 4 | D10: 9
A11: 7 | B11: 498 | C11: 5 | D11: 1
A12: 8 | B12: 138 | C12: 3 | D12: 17
A13: 9 | B13: 310 | C13: 4 | D13: 7
B14: =SUM(B5:B13) -> 2767 | C14: =SUM(C5:C13) -> 36 | D14: UD | E14: =SUM(E5:E13) -> 0 | F14: =SUM(F5:F13) -> 0 | G14: =SUM(G5:G13) -> 0 | H14: =SUM(H5:H13) -> 0 | I14: =SUM(I5:I13) -> 0 | J14: =IF((A28=27),"",(SUM(J5:J13)/SUM(J5:L13))*100) ->  | K14: =IF((A28=27),"",(SUM(K5:K13)/SUM(J5:L13))*100) ->  | L14: =IF((A28=27),"",(SUM(L5:L13)/SUM(J5:L13))*100) ->  | M14: =SUM(M5:M13) -> 0 | N14: =SUM(N5:N13) -> 0 | O14: =SUM(O5:O13) -> 0 | P14: =SUM(P5:P13) -> 0 | Q14: =SUM(Q5:Q13) -> 0 | S14: =IF(Q14=0,"",SUM(S5:S13)/Q14) ->  | V14: =SUM(V5:V13) -> 0 | W14: =ColorFunction($E$30,$E$5:$E$13) -> 0 | X14: =ColorFunction($E$31,$E$5:$E$13) -> 0 | Y14: =ColorFunction($E$32,$E$5:$E$13) -> 0 | Z14: =ColorFunction($E$33,$E$5:$E$13) -> 0 | AA14: =SUM(AA5:AA13)/(9-Q14)*100 -> 0 | AB14: =COUNTIF(P5:P13,">2") -> 0 | AC14: =IF((G14=0),"",SUM(AC5:AC13)/G14*100) -> 
A15: 10 | B15: 481 | C15: 5 | D15: 4 | V15: =IF(Q15=0,"",P15) ->  | AA15: =IF(AND(Q15="",P15=1),1,"") ->  | AC15: =IF(AND(G15=""),"",SUM(K15)) -> 
A16: 11 | B16: 319 | C16: 4 | D16: 16
A17: 12 | B17: 431 | C17: 5 | D17: 2
A18: 13 | B18: 122 | C18: 3 | D18: 18
A19: 14 | B19: 379 | C19: 4 | D19: 6
A20: 15 | B20: 316 | C20: 4 | D20: 8
A21: 16 | B21: 322 | C21: 4 | D21: 14
A22: 17 | B22: 345 | C22: 4 | D22: 10
A23: 18 | B23: 281 | C23: 4 | D23: 12
B24: =SUM(B15:B23) -> 2996 | C24: =SUM(C15:C23) -> 37 | D24: IND | E24: =SUM(E15:E23) -> 0 | F24: =SUM(F15:F23) -> 0 | G24: =SUM(G15:G23) -> 0 | H24: =SUM(H15:H23) -> 0 | I24: =SUM(I15:I23) -> 0 | J24: =IF((A29=27),"",(SUM(J15:J23)/SUM(J15:L23))*100) ->  | K24: =IF((A29=27),"",(SUM(K15:K23)/SUM(J15:L23))*100) ->  | L24: =IF((A29=27),"",(SUM(L15:L23)/SUM(J15:L23))*100) ->  | M24: =SUM(M15:M23) -> 0 | N24: =SUM(N15:N23) -> 0 | O24: =SUM(O15:O23) -> 0 | P24: =SUM(P15:P23) -> 0 | Q24: =SUM(Q15:Q23) -> 0 | S24: =IF(Q24=0,"",SUM(S15:S23)/Q24) ->  | V24: =SUM(V15:V23) -> 0 | W24: =ColorFunction($E$30,$E$15:$E$23) -> 0 | X24: =ColorFunction($E$31,$E$15:$E$23) -> 0 | Y24: =ColorFunction($E$32,$E$15:$E$23) -> 0 | Z24: =ColorFunction($E$33,$E$15:$E$23) -> 0 | AA24: =SUM(AA15:AA23)/(9-Q24)*100 -> 0 | AB24: =COUNTIF(P15:P23,">2") -> 0 | AC24: =IF((G24=0),"",SUM(AC15:AC23)/G24*100) -> 
B25: =SUM(B24,B14) -> 5763 | C25: =SUM(C24,C14) -> 73 | D25: TOTAL | E25: =IF(E14=0,"0",(E24+E14)) -> 0 | F25: =SUM(F14,F24) -> 0 | G25: =SUM(G24,G14) -> 0 | H25: =SUM(H24,H14) -> 0 | I25: =SUM(I24,I14) -> 0 | J25: =IF((A28=27),"",(SUM(J14,J24)/2)) ->  | K25: =IF((A28=27),"",(SUM(K14,K24)/2)) ->  | L25: =IF((A28=27),"",(SUM(L14,L24)/2)) ->  | M25: =SUM(M24,M14) -> 0 | N25: =SUM(N24,N14) -> 0 | O25: =SUM(O24,O14) -> 0 | P25: =IF(P14+P24=0,"",SUM(P24,P14)) ->  | Q25: =IF(Q14+Q24=0,"",SUM(Q24,Q14)) ->  | S25: =IF(Q25="","",SUM(S24,S14)/2) ->  | T25: =IF(N25=0,"",(O25)/N25*100) ->  | U25: =IF(Q25="","",(Q25)/18*100) ->  | V25: =IF(Q25="","",(V14+V24)/Q25) ->  | W25: =SUM(W14,W24) -> 0 | X25: =SUM(X14,X24) -> 0 | Y25: =SUM(Y14,Y24) -> 0 | Z25: =SUM(Z14,Z24) -> 0 | AA25: =SUM(AA14,AA24)/2 -> 0 | AB25: =SUM(AB14,AB24) -> 0 | AC25: =SUM(AC24,AC14)/2 -> 0
E27: Udfyld alle grønne felter med 1 for positiv eller antal i tal
A28: =COUNTBLANK(I5:K13) -> 27 | W28: Approach
A29: =COUNTBLANK(I15:K23) -> 27 | E29: Udfyld følgende farver: | S29: Holes to par | W29: Længde (m) | X29: Antal | Y29: Afstand (m)
A30: =SUM(L5:L23) -> 0 | E30: Eagles | S30: Par 3 | T30: =SUMIF(C:C,"3",E:E)/COUNTIF(C:C,3) -> 0 | W30: 45-70 | X30: =COUNTIFS(R5:R23,">=45",R5:R23,"<=70") -> 0 | Y30: =IF(X30=0,"",AVERAGEIFS(S5:S23,R5:R23,">=45",R5:R23,"<=70")) -> 
E31: Birdies | S31: Par 4 | T31: =SUMIF(C:C,"4",E:E)/COUNTIF(C:C,4) -> 0 | W31: 71-90 | X31: =COUNTIFS(R5:R23,">=71",R5:R23,"<=90") -> 0 | Y31: =IF(X31=0,"",AVERAGEIFS(S5:S23,R5:R23,">=71",R5:R23,"<=90")) -> 
E32: Bogeys | S32: Par 5 | T32: =SUMIF(C:C,"5",E:E)/COUNTIF(C:C,5) -> 0 | W32: 91-115 | X32: =COUNTIFS(R5:R23,">=91",R5:R23,"<=115") -> 0 | Y32: =IF(X32=0,"",AVERAGEIFS(S5:S23,R5:R23,">=91",R5:R23,"<=115")) -> 
E33: Doublebogeys eller værre | W33: 116-140 | X33: =COUNTIFS(R5:R23,">=116",R5:R23,"<=140") -> 0 | Y33: =IF(X33=0,"",AVERAGEIFS(S5:S23,R5:R23,">=116",R5:R23,"<=140")) -> 
S34: First 4 | T34: =IF(E25="0","",SUM(E5:E8)-SUM(C5:C8)) ->  | W34: 141-160 | X34: =COUNTIFS(R5:R23,">=141",R5:R23,"<=161") -> 0 | Y34: =IF(X34=0,"",AVERAGEIFS(S5:S23,R5:R23,">=141",R5:R23,"<=160")) -> 
S35: Last 4 | T35: =IF(E25="0","",SUM(E20:E23)-SUM(C20:C23)) ->  | W35: 161-180 | X35: =COUNTIFS(R5:R23,">=161",R5:R23,"<=180") -> 0 | Y35: =IF(X35=0,"",AVERAGEIFS(S5:S23,R5:R23,">=161",R5:R23,"<=180")) -> 
W37: Putting
W38: Længde (m) | X38: Antal | Y38: Holet | Z38: Holet (%)
W39: under 1 m | X39: =COUNTIFS(S5:S23,">=0,1",S5:S23,"<=0,9") -> 0 | Y39: =IF(X39=0,"",COUNTIFS(P5:P23,"=1",S5:S23,"<1")) ->  | Z39: =IF(X39=0,"",Y39/X39*100) -> 
W40: 1 - 1,5 | X40: =COUNTIFS(S5:S23,">=1",S5:S23,"<=1,5") -> 0 | Y40: =IF(X40=0,"",COUNTIFS(P5:P23,"=1",S5:S23,">=1",S5:S23,"<=1,5")) ->  | Z40: =IF(X40=0,"",Y40/X40*100) -> 
W41: 1,5 - 3 | X41: =COUNTIFS(S5:S23,">=1,6",S5:S23,"<=3") -> 0 | Y41: =IF(X41=0,"",COUNTIFS(P5:P23,"=1",S5:S23,">=1,6",S5:S23,"<=3")) ->  | Z41: =IF(X41=0,"",Y41/X41*100) -> 
W42: 3 - 4,5 | X42: =COUNTIFS(S5:S23,">=3,1",S5:S23,"<=4,5") -> 0 | Y42: =IF(X42=0,"",COUNTIFS(P5:P23,"=1",S5:S23,">=3,1",S5:S23,"<=4,5")) -> 
W43: 4,5 - 6 | X43: =COUNTIFS(S5:S23,">=4,6",S5:S23,"<=6") -> 0 | Y43: =IF(X43=0,"",COUNTIFS(P5:P23,"=1",S5:S23,">=4,6",S5:S23,"<=6")) -> 
W44: over 6 meter | X44: =COUNTIFS(S5:S23,">6") -> 0 | Y44: =IF(X44=0,"",COUNTIFS(P5:P23,"=1",S5:S23,">6")) -> 

Sheet Runde 18
A1: Korsør Golf Klub - 18 huller - Gul tee | J1: =IF(E25="0","0","1") -> 0 | L1: Dato: | O1: Handicap: | T1: Antal tildelte slag:
H3: Tee shot | K3: Fairway hits i % | N3: Bunker | R3: Approach shots
A4: Hul | B4: Gul tee | C4: Par | D4: HCP | E4: Score | F4: Netto | G4: Driver | H4: Wood | I4: Jern | J4: Venstre | K4: Midt | L4: Højre | M4: FB | N4: GB | O4: SS | P4: Putts | Q4: GIR | R4: Dist. to pin (m) | S4: Dist. to hole (m) | T4: % SS | U4: % GIR | V4: Putts/GIR | W4: Eagles | X4: Birdies | Y4: Bogeys | Z4: Værre | AA4: % Scramble | AB4: 3+ Putts | AC4: % Driver/Fairwayhits
A5: 1 | B5: 307 | C5: 4 | D5: 11 | V5: =IF(Q5=0,"",P5) ->  | AA5: =IF(AND(Q5="",P5=1),1,"") ->  | AC5: =IF(AND(G5=""),"",SUM(K5)) -> 
A6: 2 | B6: 323 | C6: 4 | D6: 5
A7: 3 | B7: 138 | C7: 3 | D7: 15
A8: 4 | B8: 310 | C8: 4 | D8: 13
A9: 5 | B9: 431 | C9: 5 | D9: 3
A10: 6 | B10: 312 | C10: 4 | D10: 9
A11: 7 | B11: 498 | C11: 5 | D11: 1
A12: 8 | B12: 138 | C12: 3 | D12: 17
A13: 9 | B13: 310 | C13: 4 | D13: 7
B14: =SUM(B5:B13) -> 2767 | C14: =SUM(C5:C13) -> 36 | D14: UD | E14: =SUM(E5:E13) -> 0 | F14: =SUM(F5:F13) -> 0 | G14: =SUM(G5:G13) -> 0 | H14: =SUM(H5:H13) -> 0 | I14: =SUM(I5:I13) -> 0 | J14: =IF((A28=27),"",(SUM(J5:J13)/SUM(J5:L13))*100) ->  | K14: =IF((A28=27),"",(SUM(K5:K13)/SUM(J5:L13))*100) ->  | L14: =IF((A28=27),"",(SUM(L5:L13)/SUM(J5:L13))*100) ->  | M14: =SUM(M5:M13) -> 0 | N14: =SUM(N5:N13) -> 0 | O14: =SUM(O5:O13) -> 0 | P14: =SUM(P5:P13) -> 0 | Q14: =SUM(Q5:Q13) -> 0 | S14: =IF(Q14=0,"",SUM(S5:S13)/Q14) ->  | V14: =SUM(V5:V13) -> 0 | W14: =ColorFunction($E$30,$E$5:$E$13) -> 0 | X14: =ColorFunction($E$31,$E$5:$E$13) -> 0 | Y14: =ColorFunction($E$32,$E$5:$E$13) -> 0 | Z14: =ColorFunction($E$33,$E$5:$E$13) -> 0 | AA14: =SUM(AA5:AA13)/(9-Q14)*100 -> 0 | AB14: =COUNTIF(P5:P13,">2") -> 0 | AC14: =IF((G14=0),"",SUM(AC5:AC13)/G14*100) -> 
A15: 10 | B15: 481 | C15: 5 | D15: 4 | V15: =IF(Q15=0,"",P15) ->  | AA15: =IF(AND(Q15="",P15=1),1,"") ->  | AC15: =IF(AND(G15=""),"",SUM(K15)) -> 
A16: 11 | B16: 319 | C16: 4 | D16: 16
A17: 12 | B17: 431 | C17: 5 | D17: 2
A18: 13 | B18: 122 | C18: 3 | D18: 18
A19: 14 | B19: 379 | C19: 4 | D19: 6
A20: 15 | B20: 316 | C20: 4 | D20: 8
A21: 16 | B21: 322 | C21: 4 | D21: 14
A22: 17 | B22: 345 | C22: 4 | D22: 10
A23: 18 | B23: 281 | C23: 4 | D23: 12
B24: =SUM(B15:B23) -> 2996 | C24: =SUM(C15:C23) -> 37 | D24: IND | E24: =SUM(E15:E23) -> 0 | F24: =SUM(F15:F23) -> 0 | G24: =SUM(G15:G23) -> 0 | H24: =SUM(H15:H23) -> 0 | I24: =SUM(I15:I23) -> 0 | J24: =IF((A29=27),"",(SUM(J15:J23)/SUM(J15:L23))*100) ->  | K24: =IF((A29=27),"",(SUM(K15:K23)/SUM(J15:L23))*100) ->  | L24: =IF((A29=27),"",(SUM(L15:L23)/SUM(J15:L23))*100) ->  | M24: =SUM(M15:M23) -> 0 | N24: =SUM(N15:N23) -> 0 | O24: =SUM(O15:O23) -> 0 | P24: =SUM(P15:P23) -> 0 | Q24: =SUM(Q15:Q23) -> 0 | S24: =IF(Q24=0,"",SUM(S15:S23)/Q24) ->  | V24: =SUM(V15:V23) -> 0 | W24: =ColorFunction($E$30,$E$15:$E$23) -> 0 | X24: =ColorFunction($E$31,$E$15:$E$23) -> 0 | Y24: =ColorFunction($E$32,$E$15:$E$23) -> 0 | Z24: =ColorFunction($E$33,$E$15:$E$23) -> 0 | AA24: =SUM(AA15:AA23)/(9-Q24)*100 -> 0 | AB24: =COUNTIF(P15:P23,">2") -> 0 | AC24: =IF((G24=0),"",SUM(AC15:AC23)/G24*100) -> 
B25: =SUM(B24,B14) -> 5763 | C25: =SUM(C24,C14) -> 73 | D25: TOTAL | E25: =IF(E14=0,"0",(E24+E14)) -> 0 | F25: =SUM(F14,F24) -> 0 | G25: =SUM(G24,G14) -> 0 | H25: =SUM(H24,H14) -> 0 | I25: =SUM(I24,I14) -> 0 | J25: =IF((A28=27),"",(SUM(J14,J24)/2)) ->  | K25: =IF((A28=27),"",(SUM(K14,K24)/2)) ->  | L25: =IF((A28=27),"",(SUM(L14,L24)/2)) ->  | M25: =SUM(M24,M14) -> 0 | N25: =SUM(N24,N14) -> 0 | O25: =SUM(O24,O14) -> 0 | P25: =IF(P14+P24=0,"",SUM(P24,P14)) ->  | Q25: =IF(Q14+Q24=0,"",SUM(Q24,Q14)) ->  | S25: =IF(Q25="","",SUM(S24,S14)/2) ->  | T25: =IF(N25=0,"",(O25)/N25*100) ->  | U25: =IF(Q25="","",(Q25)/18*100) ->  | V25: =IF(Q25="","",(V14+V24)/Q25) ->  | W25: =SUM(W14,W24) -> 0 | X25: =SUM(X14,X24) -> 0 | Y25: =SUM(Y14,Y24) -> 0 | Z25: =SUM(Z14,Z24) -> 0 | AA25: =SUM(AA14,AA24)/2 -> 0 | AB25: =SUM(AB14,AB24) -> 0 | AC25: =SUM(AC24,AC14)/2 -> 0
E27: Udfyld alle grønne felter med 1 for positiv eller antal i tal
A28: =COUNTBLANK(I5:K13) -> 27 | W28: Approach
A29: =COUNTBLANK(I15:K23) -> 27 | E29: Udfyld følgende farver: | S29: Holes to par | W29: Længde (m) | X29: Antal | Y29: Afstand (m)
A30: =SUM(L5:L23) -> 0 | E30: Eagles | S30: Par 3 | T30: =SUMIF(C:C,"3",E:E)/COUNTIF(C:C,3) -> 0 | W30: 45-70 | X30: =COUNTIFS(R5:R23,">=45",R5:R23,"<=70") -> 0 | Y30: =IF(X30=0,"",AVERAGEIFS(S5:S23,R5:R23,">=45",R5:R23,"<=70")) -> 
E31: Birdies | S31: Par 4 | T31: =SUMIF(C:C,"4",E:E)/COUNTIF(C:C,4) -> 0 | W31: 71-90 | X31: =COUNTIFS(R5:R23,">=71",R5:R23,"<=90") -> 0 | Y31: =IF(X31=0,"",AVERAGEIFS(S5:S23,R5:R23,">=71",R5:R23,"<=90")) -> 
E32: Bogeys | S32: Par 5 | T32: =SUMIF(C:C,"5",E:E)/COUNTIF(C:C,5) -> 0 | W32: 91-115 | X32: =COUNTIFS(R5:R23,">=91",R5:R23,"<=115") -> 0 | Y32: =IF(X32=0,"",AVERAGEIFS(S5:S23,R5:R23,">=91",R5:R23,"<=115")) -> 
E33: Doublebogeys eller værre | W33: 116-140 | X33: =COUNTIFS(R5:R23,">=116",R5:R23,"<=140") -> 0 | Y33: =IF(X33=0,"",AVERAGEIFS(S5:S23,R5:R23,">=116",R5:R23,"<=140")) -> 
S34: First 4 | T34: =IF(E25="0","",SUM(E5:E8)-SUM(C5:C8)) ->  | W34: 141-160 | X34: =COUNTIFS(R5:R23,">=141",R5:R23,"<=161") -> 0 | Y34: =IF(X34=0,"",AVERAGEIFS(S5:S23,R5:R23,">=141",R5:R23,"<=160")) -> 
S35: Last 4 | T35: =IF(E25="0","",SUM(E20:E23)-SUM(C20:C23)) ->  | W35: 161-180 | X35: =COUNTIFS(R5:R23,">=161",R5:R23,"<=180") -> 0 | Y35: =IF(X35=0,"",AVERAGEIFS(S5:S23,R5:R23,">=161",R5:R23,"<=180")) -> 
W37: Putting
W38: Længde (m) | X38: Antal | Y38: Holet | Z38: Holet (%)
W39: under 1 m | X39: =COUNTIFS(S5:S23,">=0,1",S5:S23,"<=0,9") -> 0 | Y39: =IF(X39=0,"",COUNTIFS(P5:P23,"=1",S5:S23,"<1")) ->  | Z39: =IF(X39=0,"",Y39/X39*100) -> 
W40: 1 - 1,5 | X40: =COUNTIFS(S5:S23,">=1",S5:S23,"<=1,5") -> 0 | Y40: =IF(X40=0,"",COUNTIFS(P5:P23,"=1",S5:S23,">=1",S5:S23,"<=1,5")) ->  | Z40: =IF(X40=0,"",Y40/X40*100) -> 
W41: 1,5 - 3 | X41: =COUNTIFS(S5:S23,">=1,6",S5:S23,"<=3") -> 0 | Y41: =IF(X41=0,"",COUNTIFS(P5:P23,"=1",S5:S23,">=1,6",S5:S23,"<=3")) ->  | Z41: =IF(X41=0,"",Y41/X41*100) -> 
W42: 3 - 4,5 | X42: =COUNTIFS(S5:S23,">=3,1",S5:S23,"<=4,5") -> 0 | Y42: =IF(X42=0,"",COUNTIFS(P5:P23,"=1",S5:S23,">=3,1",S5:S23,"<=4,5")) -> 
W43: 4,5 - 6 | X43: =COUNTIFS(S5:S23,">=4,6",S5:S23,"<=6") -> 0 | Y43: =IF(X43=0,"",COUNTIFS(P5:P23,"=1",S5:S23,">=4,6",S5:S23,"<=6")) -> 
W44: over 6 meter | X44: =COUNTIFS(S5:S23,">6") -> 0 | Y44: =IF(X44=0,"",COUNTIFS(P5:P23,"=1",S5:S23,">6")) -> 

Sheet Runde 19
A1: Korsør Golf Klub - 18 huller - Gul tee | J1: =IF(E25="0","0","1") -> 0 | L1: Dato: | O1: Handicap: | T1: Antal tildelte slag:
H3: Tee shot | K3: Fairway hits i % | N3: Bunker | R3: Approach shots
A4: Hul | B4: Gul tee | C4: Par | D4: HCP | E4: Score | F4: Netto | G4: Driver | H4: Wood | I4: Jern | J4: Venstre | K4: Midt | L4: Højre | M4: FB | N4: GB | O4: SS | P4: Putts | Q4: GIR | R4: Dist. to pin (m) | S4: Dist. to hole (m) | T4: % SS | U4: % GIR | V4: Putts/GIR | W4: Eagles | X4: Birdies | Y4: Bogeys | Z4: Værre | AA4: % Scramble | AB4: 3+ Putts | AC4: % Driver/Fairwayhits
A5: 1 | B5: 307 | C5: 4 | D5: 11 | V5: =IF(Q5=0,"",P5) ->  | AA5: =IF(AND(Q5="",P5=1),1,"") ->  | AC5: =IF(AND(G5=""),"",SUM(K5)) -> 
A6: 2 | B6: 323 | C6: 4 | D6: 5
A7: 3 | B7: 138 | C7: 3 | D7: 15
A8: 4 | B8: 310 | C8: 4 | D8: 13
A9: 5 | B9: 431 | C9: 5 | D9: 3
A10: 6 | B10: 312 | C10: 4 | D10: 9
A11: 7 | B11: 498 | C11: 5 | D11: 1
A12: 8 | B12: 138 | C12: 3 | D12: 17
A13: 9 | B13: 310 | C13: 4 | D13: 7
B14: =SUM(B5:B13) -> 2767 | C14: =SUM(C5:C13) -> 36 | D14: UD | E14: =SUM(E5:E13) -> 0 | F14: =SUM(F5:F13) -> 0 | G14: =SUM(G5:G13) -> 0 | H14: =SUM(H5:H13) -> 0 | I14: =SUM(I5:I13) -> 0 | J14: =IF((A28=27),"",(SUM(J5:J13)/SUM(J5:L13))*100) ->  | K14: =IF((A28=27),"",(SUM(K5:K13)/SUM(J5:L13))*100) ->  | L14: =IF((A28=27),"",(SUM(L5:L13)/SUM(J5:L13))*100) ->  | M14: =SUM(M5:M13) -> 0 | N14: =SUM(N5:N13) -> 0 | O14: =SUM(O5:O13) -> 0 | P14: =SUM(P5:P13) -> 0 | Q14: =SUM(Q5:Q13) -> 0 | S14: =IF(Q14=0,"",SUM(S5:S13)/Q14) ->  | V14: =SUM(V5:V13) -> 0 | W14: =ColorFunction($E$30,$E$5:$E$13) -> 0 | X14: =ColorFunction($E$31,$E$5:$E$13) -> 0 | Y14: =ColorFunction($E$32,$E$5:$E$13) -> 0 | Z14: =ColorFunction($E$33,$E$5:$E$13) -> 0 | AA14: =SUM(AA5:AA13)/(9-Q14)*100 -> 0 | AB14: =COUNTIF(P5:P13,">2") -> 0 | AC14: =IF((G14=0),"",SUM(AC5:AC13)/G14*100) -> 
A15: 10 | B15: 481 | C15: 5 | D15: 4 | V15: =IF(Q15=0,"",P15) ->  | AA15: =IF(AND(Q15="",P15=1),1,"") ->  | AC15: =IF(AND(G15=""),"",SUM(K15)) -> 
A16: 11 | B16: 319 | C16: 4 | D16: 16
A17: 12 | B17: 431 | C17: 5 | D17: 2
A18: 13 | B18: 122 | C18: 3 | D18: 18
A19: 14 | B19: 379 | C19: 4 | D19: 6
A20: 15 | B20: 316 | C20: 4 | D20: 8
A21: 16 | B21: 322 | C21: 4 | D21: 14
A22: 17 | B22: 345 | C22: 4 | D22: 10
A23: 18 | B23: 281 | C23: 4 | D23: 12
B24: =SUM(B15:B23) -> 2996 | C24: =SUM(C15:C23) -> 37 | D24: IND | E24: =SUM(E15:E23) -> 0 | F24: =SUM(F15:F23) -> 0 | G24: =SUM(G15:G23) -> 0 | H24: =SUM(H15:H23) -> 0 | I24: =SUM(I15:I23) -> 0 | J24: =IF((A29=27),"",(SUM(J15:J23)/SUM(J15:L23))*100) ->  | K24: =IF((A29=27),"",(SUM(K15:K23)/SUM(J15:L23))*100) ->  | L24: =IF((A29=27),"",(SUM(L15:L23)/SUM(J15:L23))*100) ->  | M24: =SUM(M15:M23) -> 0 | N24: =SUM(N15:N23) -> 0 | O24: =SUM(O15:O23) -> 0 | P24: =SUM(P15:P23) -> 0 | Q24: =SUM(Q15:Q23) -> 0 | S24: =IF(Q24=0,"",SUM(S15:S23)/Q24) ->  | V24: =SUM(V15:V23) -> 0 | W24: =ColorFunction($E$30,$E$15:$E$23) -> 0 | X24: =ColorFunction($E$31,$E$15:$E$23) -> 0 | Y24: =ColorFunction($E$32,$E$15:$E$23) -> 0 | Z24: =ColorFunction($E$33,$E$15:$E$23) -> 0 | AA24: =SUM(AA15:AA23)/(9-Q24)*100 -> 0 | AB24: =COUNTIF(P15:P23,">2") -> 0 | AC24: =IF((G24=0),"",SUM(AC15:AC23)/G24*100) -> 
B25: =SUM(B24,B14) -> 5763 | C25: =SUM(C24,C14) -> 73 | D25: TOTAL | E25: =IF(E14=0,"0",(E24+E14)) -> 0 | F25: =SUM(F14,F24) -> 0 | G25: =SUM(G24,G14) -> 0 | H25: =SUM(H24,H14) -> 0 | I25: =SUM(I24,I14) -> 0 | J25: =IF((A28=27),"",(SUM(J14,J24)/2)) ->  | K25: =IF((A28=27),"",(SUM(K14,K24)/2)) ->  | L25: =IF((A28=27),"",(SUM(L14,L24)/2)) ->  | M25: =SUM(M24,M14) -> 0 | N25: =SUM(N24,N14) -> 0 | O25: =SUM(O24,O14) -> 0 | P25: =IF(P14+P24=0,"",SUM(P24,P14)) ->  | Q25: =IF(Q14+Q24=0,"",SUM(Q24,Q14)) ->  | S25: =IF(Q25="","",SUM(S24,S14)/2) ->  | T25: =IF(N25=0,"",(O25)/N25*100) ->  | U25: =IF(Q25="","",(Q25)/18*100) ->  | V25: =IF(Q25="","",(V14+V24)/Q25) ->  | W25: =SUM(W14,W24) -> 0 | X25: =SUM(X14,X24) -> 0 | Y25: =SUM(Y14,Y24) -> 0 | Z25: =SUM(Z14,Z24) -> 0 | AA25: =SUM(AA14,AA24)/2 -> 0 | AB25: =SUM(AB14,AB24) -> 0 | AC25: =SUM(AC24,AC14)/2 -> 0
E27: Udfyld alle grønne felter med 1 for positiv eller antal i tal
A28: =COUNTBLANK(I5:K13) -> 27 | W28: Approach
A29: =COUNTBLANK(I15:K23) -> 27 | E29: Udfyld følgende farver: | S29: Holes to par | W29: Længde (m) | X29: Antal | Y29: Afstand (m)
A30: =SUM(L5:L23) -> 0 | E30: Eagles | S30: Par 3 | T30: =SUMIF(C:C,"3",E:E)/COUNTIF(C:C,3) -> 0 | W30: 45-70 | X30: =COUNTIFS(R5:R23,">=45",R5:R23,"<=70") -> 0 | Y30: =IF(X30=0,"",AVERAGEIFS(S5:S23,R5:R23,">=45",R5:R23,"<=70")) -> 
E31: Birdies | S31: Par 4 | T31: =SUMIF(C:C,"4",E:E)/COUNTIF(C:C,4) -> 0 | W31: 71-90 | X31: =COUNTIFS(R5:R23,">=71",R5:R23,"<=90") -> 0 | Y31: =IF(X31=0,"",AVERAGEIFS(S5:S23,R5:R23,">=71",R5:R23,"<=90")) -> 
E32: Bogeys | S32: Par 5 | T32: =SUMIF(C:C,"5",E:E)/COUNTIF(C:C,5) -> 0 | W32: 91-115 | X32: =COUNTIFS(R5:R23,">=91",R5:R23,"<=115") -> 0 | Y32: =IF(X32=0,"",AVERAGEIFS(S5:S23,R5:R23,">=91",R5:R23,"<=115")) -> 
E33: Doublebogeys eller værre | W33: 116-140 | X33: =COUNTIFS(R5:R23,">=116",R5:R23,"<=140") -> 0 | Y33: =IF(X33=0,"",AVERAGEIFS(S5:S23,R5:R23,">=116",R5:R23,"<=140")) -> 
S34: First 4 | T34: =IF(E25="0","",SUM(E5:E8)-SUM(C5:C8)) ->  | W34: 141-160 | X34: =COUNTIFS(R5:R23,">=141",R5:R23,"<=161") -> 0 | Y34: =IF(X34=0,"",AVERAGEIFS(S5:S23,R5:R23,">=141",R5:R23,"<=160")) -> 
S35: Last 4 | T35: =IF(E25="0","",SUM(E20:E23)-SUM(C20:C23)) ->  | W35: 161-180 | X35: =COUNTIFS(R5:R23,">=161",R5:R23,"<=180") -> 0 | Y35: =IF(X35=0,"",AVERAGEIFS(S5:S23,R5:R23,">=161",R5:R23,"<=180")) -> 
W37: Putting
W38: Længde (m) | X38: Antal | Y38: Holet | Z38: Holet (%)
W39: under 1 m | X39: =COUNTIFS(S5:S23,">=0,1",S5:S23,"<=0,9") -> 0 | Y39: =IF(X39=0,"",COUNTIFS(P5:P23,"=1",S5:S23,"<1")) ->  | Z39: =IF(X39=0,"",Y39/X39*100) -> 
W40: 1 - 1,5 | X40: =COUNTIFS(S5:S23,">=1",S5:S23,"<=1,5") -> 0 | Y40: =IF(X40=0,"",COUNTIFS(P5:P23,"=1",S5:S23,">=1",S5:S23,"<=1,5")) ->  | Z40: =IF(X40=0,"",Y40/X40*100) -> 
W41: 1,5 - 3 | X41: =COUNTIFS(S5:S23,">=1,6",S5:S23,"<=3") -> 0 | Y41: =IF(X41=0,"",COUNTIFS(P5:P23,"=1",S5:S23,">=1,6",S5:S23,"<=3")) ->  | Z41: =IF(X41=0,"",Y41/X41*100) -> 
W42: 3 - 4,5 | X42: =COUNTIFS(S5:S23,">=3,1",S5:S23,"<=4,5") -> 0 | Y42: =IF(X42=0,"",COUNTIFS(P5:P23,"=1",S5:S23,">=3,1",S5:S23,"<=4,5")) -> 
W43: 4,5 - 6 | X43: =COUNTIFS(S5:S23,">=4,6",S5:S23,"<=6") -> 0 | Y43: =IF(X43=0,"",COUNTIFS(P5:P23,"=1",S5:S23,">=4,6",S5:S23,"<=6")) -> 
W44: over 6 meter | X44: =COUNTIFS(S5:S23,">6") -> 0 | Y44: =IF(X44=0,"",COUNTIFS(P5:P23,"=1",S5:S23,">6")) -> 

Sheet Runde 20
A1: Korsør Golf Klub - 18 huller - Gul tee | J1: =IF(E25="0","0","1") -> 0 | L1: Dato: | O1: Handicap: | T1: Antal tildelte slag:
H3: Tee shot | K3: Fairway hits i % | N3: Bunker | R3: Approach shots
A4: Hul | B4: Gul tee | C4: Par | D4: HCP | E4: Score | F4: Netto | G4: Driver | H4: Wood | I4: Jern | J4: Venstre | K4: Midt | L4: Højre | M4: FB | N4: GB | O4: SS | P4: Putts | Q4: GIR | R4: Dist. to pin (m) | S4: Dist. to hole (m) | T4: % SS | U4: % GIR | V4: Putts/GIR | W4: Eagles | X4: Birdies | Y4: Bogeys | Z4: Værre | AA4: % Scramble | AB4: 3+ Putts | AC4: % Driver/Fairwayhits
A5: 1 | B5: 307 | C5: 4 | D5: 11 | V5: =IF(Q5=0,"",P5) ->  | AA5: =IF(AND(Q5="",P5=1),1,"") ->  | AC5: =IF(AND(G5=""),"",SUM(K5)) -> 
A6: 2 | B6: 323 | C6: 4 | D6: 5
A7: 3 | B7: 138 | C7: 3 | D7: 15
A8: 4 | B8: 310 | C8: 4 | D8: 13
A9: 5 | B9: 431 | C9: 5 | D9: 3
A10: 6 | B10: 312 | C10: 4 | D10: 9
A11: 7 | B11: 498 | C11: 5 | D11: 1
A12: 8 | B12: 138 | C12: 3 | D12: 17
A13: 9 | B13: 310 | C13: 4 | D13: 7
B14: =SUM(B5:B13) -> 2767 | C14: =SUM(C5:C13) -> 36 | D14: UD | E14: =SUM(E5:E13) -> 0 | F14: =SUM(F5:F13) -> 0 | G14: =SUM(G5:G13) -> 0 | H14: =SUM(H5:H13) -> 0 | I14: =SUM(I5:I13) -> 0 | J14: =IF((A28=27),"",(SUM(J5:J13)/SUM(J5:L13))*100) ->  | K14: =IF((A28=27),"",(SUM(K5:K13)/SUM(J5:L13))*100) ->  | L14: =IF((A28=27),"",(SUM(L5:L13)/SUM(J5:L13))*100) ->  | M14: =SUM(M5:M13) -> 0 | N14: =SUM(N5:N13) -> 0 | O14: =SUM(O5:O13) -> 0 | P14: =SUM(P5:P13) -> 0 | Q14: =SUM(Q5:Q13) -> 0 | S14: =IF(Q14=0,"",SUM(S5:S13)/Q14) ->  | V14: =SUM(V5:V13) -> 0 | W14: =ColorFunction($E$30,$E$5:$E$13) -> 0 | X14: =ColorFunction($E$31,$E$5:$E$13) -> 0 | Y14: =ColorFunction($E$32,$E$5:$E$13) -> 0 | Z14: =ColorFunction($E$33,$E$5:$E$13) -> 0 | AA14: =SUM(AA5:AA13)/(9-Q14)*100 -> 0 | AB14: =COUNTIF(P5:P13,">2") -> 0 | AC14: =IF((G14=0),"",SUM(AC5:AC13)/G14*100) -> 
A15: 10 | B15: 481 | C15: 5 | D15: 4 | V15: =IF(Q15=0,"",P15) ->  | AA15: =IF(AND(Q15="",P15=1),1,"") ->  | AC15: =IF(AND(G15=""),"",SUM(K15)) -> 
A16: 11 | B16: 319 | C16: 4 | D16: 16
A17: 12 | B17: 431 | C17: 5 | D17: 2
A18: 13 | B18: 122 | C18: 3 | D18: 18
A19: 14 | B19: 379 | C19: 4 | D19: 6
A20: 15 | B20: 316 | C20: 4 | D20: 8
A21: 16 | B21: 322 | C21: 4 | D21: 14
A22: 17 | B22: 345 | C22: 4 | D22: 10
A23: 18 | B23: 281 | C23: 4 | D23: 12
B24: =SUM(B15:B23) -> 2996 | C24: =SUM(C15:C23) -> 37 | D24: IND | E24: =SUM(E15:E23) -> 0 | F24: =SUM(F15:F23) -> 0 | G24: =SUM(G15:G23) -> 0 | H24: =SUM(H15:H23) -> 0 | I24: =SUM(I15:I23) -> 0 | J24: =IF((A29=27),"",(SUM(J15:J23)/SUM(J15:L23))*100) ->  | K24: =IF((A29=27),"",(SUM(K15:K23)/SUM(J15:L23))*100) ->  | L24: =IF((A29=27),"",(SUM(L15:L23)/SUM(J15:L23))*100) ->  | M24: =SUM(M15:M23) -> 0 | N24: =SUM(N15:N23) -> 0 | O24: =SUM(O15:O23) -> 0 | P24: =SUM(P15:P23) -> 0 | Q24: =SUM(Q15:Q23) -> 0 | S24: =IF(Q24=0,"",SUM(S15:S23)/Q24) ->  | V24: =SUM(V15:V23) -> 0 | W24: =ColorFunction($E$30,$E$15:$E$23) -> 0 | X24: =ColorFunction($E$31,$E$15:$E$23) -> 0 | Y24: =ColorFunction($E$32,$E$15:$E$23) -> 0 | Z24: =ColorFunction($E$33,$E$15:$E$23) -> 0 | AA24: =SUM(AA15:AA23)/(9-Q24)*100 -> 0 | AB24: =COUNTIF(P15:P23,">2") -> 0 | AC24: =IF((G24=0),"",SUM(AC15:AC23)/G24*100) -> 
B25: =SUM(B24,B14) -> 5763 | C25: =SUM(C24,C14) -> 73 | D25: TOTAL | E25: =IF(E14=0,"0",(E24+E14)) -> 0 | F25: =SUM(F14,F24) -> 0 | G25: =SUM(G24,G14) -> 0 | H25: =SUM(H24,H14) -> 0 | I25: =SUM(I24,I14) -> 0 | J25: =IF((A28=27),"",(SUM(J14,J24)/2)) ->  | K25: =IF((A28=27),"",(SUM(K14,K24)/2)) ->  | L25: =IF((A28=27),"",(SUM(L14,L24)/2)) ->  | M25: =SUM(M24,M14) -> 0 | N25: =SUM(N24,N14) -> 0 | O25: =SUM(O24,O14) -> 0 | P25: =IF(P14+P24=0,"",SUM(P24,P14)) ->  | Q25: =IF(Q14+Q24=0,"",SUM(Q24,Q14)) ->  | S25: =IF(Q25="","",SUM(S24,S14)/2) ->  | T25: =IF(N25=0,"",(O25)/N25*100) ->  | U25: =IF(Q25="","",(Q25)/18*100) ->  | V25: =IF(Q25="","",(V14+V24)/Q25) ->  | W25: =SUM(W14,W24) -> 0 | X25: =SUM(X14,X24) -> 0 | Y25: =SUM(Y14,Y24) -> 0 | Z25: =SUM(Z14,Z24) -> 0 | AA25: =SUM(AA14,AA24)/2 -> 0 | AB25: =SUM(AB14,AB24) -> 0 | AC25: =SUM(AC24,AC14)/2 -> 0
E27: Udfyld alle grønne felter med 1 for positiv eller antal i tal
A28: =COUNTBLANK(I5:K13) -> 27 | W28: Approach
A29: =COUNTBLANK(I15:K23) -> 27 | E29: Udfyld følgende farver: | S29: Holes to par | W29: Længde (m) | X29: Antal | Y29: Afstand (m)
A30: =SUM(L5:L23) -> 0 | E30: Eagles | S30: Par 3 | T30: =SUMIF(C:C,"3",E:E)/COUNTIF(C:C,3) -> 0 | W30: 45-70 | X30: =COUNTIFS(R5:R23,">=45",R5:R23,"<=70") -> 0 | Y30: =IF(X30=0,"",AVERAGEIFS(S5:S23,R5:R23,">=45",R5:R23,"<=70")) -> 
E31: Birdies | S31: Par 4 | T31: =SUMIF(C:C,"4",E:E)/COUNTIF(C:C,4) -> 0 | W31: 71-90 | X31: =COUNTIFS(R5:R23,">=71",R5:R23,"<=90") -> 0 | Y31: =IF(X31=0,"",AVERAGEIFS(S5:S23,R5:R23,">=71",R5:R23,"<=90")) -> 
E32: Bogeys | S32: Par 5 | T32: =SUMIF(C:C,"5",E:E)/COUNTIF(C:C,5) -> 0 | W32: 91-115 | X32: =COUNTIFS(R5:R23,">=91",R5:R23,"<=115") -> 0 | Y32: =IF(X32=0,"",AVERAGEIFS(S5:S23,R5:R23,">=91",R5:R23,"<=115")) -> 
E33: Doublebogeys eller værre | W33: 116-140 | X33: =COUNTIFS(R5:R23,">=116",R5:R23,"<=140") -> 0 | Y33: =IF(X33=0,"",AVERAGEIFS(S5:S23,R5:R23,">=116",R5:R23,"<=140")) -> 
S34: First 4 | T34: =IF(E25="0","",SUM(E5:E8)-SUM(C5:C8)) ->  | W34: 141-160 | X34: =COUNTIFS(R5:R23,">=141",R5:R23,"<=161") -> 0 | Y34: =IF(X34=0,"",AVERAGEIFS(S5:S23,R5:R23,">=141",R5:R23,"<=160")) -> 
S35: Last 4 | T35: =IF(E25="0","",SUM(E20:E23)-SUM(C20:C23)) ->  | W35: 161-180 | X35: =COUNTIFS(R5:R23,">=161",R5:R23,"<=180") -> 0 | Y35: =IF(X35=0,"",AVERAGEIFS(S5:S23,R5:R23,">=161",R5:R23,"<=180")) -> 
W37: Putting
W38: Længde (m) | X38: Antal | Y38: Holet | Z38: Holet (%)
W39: under 1 m | X39: =COUNTIFS(S5:S23,">=0,1",S5:S23,"<=0,9") -> 0 | Y39: =IF(X39=0,"",COUNTIFS(P5:P23,"=1",S5:S23,"<1")) ->  | Z39: =IF(X39=0,"",Y39/X39*100) -> 
W40: 1 - 1,5 | X40: =COUNTIFS(S5:S23,">=1",S5:S23,"<=1,5") -> 0 | Y40: =IF(X40=0,"",COUNTIFS(P5:P23,"=1",S5:S23,">=1",S5:S23,"<=1,5")) ->  | Z40: =IF(X40=0,"",Y40/X40*100) -> 
W41: 1,5 - 3 | X41: =COUNTIFS(S5:S23,">=1,6",S5:S23,"<=3") -> 0 | Y41: =IF(X41=0,"",COUNTIFS(P5:P23,"=1",S5:S23,">=1,6",S5:S23,"<=3")) ->  | Z41: =IF(X41=0,"",Y41/X41*100) -> 
W42: 3 - 4,5 | X42: =COUNTIFS(S5:S23,">=3,1",S5:S23,"<=4,5") -> 0 | Y42: =IF(X42=0,"",COUNTIFS(P5:P23,"=1",S5:S23,">=3,1",S5:S23,"<=4,5")) -> 
W43: 4,5 - 6 | X43: =COUNTIFS(S5:S23,">=4,6",S5:S23,"<=6") -> 0 | Y43: =IF(X43=0,"",COUNTIFS(P5:P23,"=1",S5:S23,">=4,6",S5:S23,"<=6")) -> 
W44: over 6 meter | X44: =COUNTIFS(S5:S23,">6") -> 0 | Y44: =IF(X44=0,"",COUNTIFS(P5:P23,"=1",S5:S23,">6")) -> 

Sheet Runde 21
A1: Korsør Golf Klub - 18 huller - Gul tee | J1: =IF(E25="0","0","1") -> 0 | L1: Dato: | O1: Handicap: | T1: Antal tildelte slag:
H3: Tee shot | K3: Fairway hits i % | N3: Bunker | R3: Approach shots
A4: Hul | B4: Gul tee | C4: Par | D4: HCP | E4: Score | F4: Netto | G4: Driver | H4: Wood | I4: Jern | J4: Venstre | K4: Midt | L4: Højre | M4: FB | N4: GB | O4: SS | P4: Putts | Q4: GIR | R4: Dist. to pin (m) | S4: Dist. to hole (m) | T4: % SS | U4: % GIR | V4: Putts/GIR | W4: Eagles | X4: Birdies | Y4: Bogeys | Z4: Værre | AA4: % Scramble | AB4: 3+ Putts | AC4: % Driver/Fairwayhits
A5: 1 | B5: 307 | C5: 4 | D5: 11 | V5: =IF(Q5=0,"",P5) ->  | AA5: =IF(AND(Q5="",P5=1),1,"") ->  | AC5: =IF(AND(G5=""),"",SUM(K5)) -> 
A6: 2 | B6: 323 | C6: 4 | D6: 5
A7: 3 | B7: 138 | C7: 3 | D7: 15
A8: 4 | B8: 310 | C8: 4 | D8: 13
A9: 5 | B9: 431 | C9: 5 | D9: 3
A10: 6 | B10: 312 | C10: 4 | D10: 9
A11: 7 | B11: 498 | C11: 5 | D11: 1
A12: 8 | B12: 138 | C12: 3 | D12: 17
A13: 9 | B13: 310 | C13: 4 | D13: 7
B14: =SUM(B5:B13) -> 2767 | C14: =SUM(C5:C13) -> 36 | D14: UD | E14: =SUM(E5:E13) -> 0 | F14: =SUM(F5:F13) -> 0 | G14: =SUM(G5:G13) -> 0 | H14: =SUM(H5:H13) -> 0 | I14: =SUM(I5:I13) -> 0 | J14: =IF((A28=27),"",(SUM(J5:J13)/SUM(J5:L13))*100) ->  | K14: =IF((A28=27),"",(SUM(K5:K13)/SUM(J5:L13))*100) ->  | L14: =IF((A28=27),"",(SUM(L5:L13)/SUM(J5:L13))*100) ->  | M14: =SUM(M5:M13) -> 0 | N14: =SUM(N5:N13) -> 0 | O14: =SUM(O5:O13) -> 0 | P14: =SUM(P5:P13) -> 0 | Q14: =SUM(Q5:Q13) -> 0 | S14: =IF(Q14=0,"",SUM(S5:S13)/Q14) ->  | V14: =SUM(V5:V13) -> 0 | W14: =ColorFunction($E$30,$E$5:$E$13) -> 0 | X14: =ColorFunction($E$31,$E$5:$E$13) -> 0 | Y14: =ColorFunction($E$32,$E$5:$E$13) -> 0 | Z14: =ColorFunction($E$33,$E$5:$E$13) -> 0 | AA14: =SUM(AA5:AA13)/(9-Q14)*100 -> 0 | AB14: =COUNTIF(P5:P13,">2") -> 0 | AC14: =IF((G14=0),"",SUM(AC5:AC13)/G14*100) -> 
A15: 10 | B15: 481 | C15: 5 | D15: 4 | V15: =IF(Q15=0,"",P15) ->  | AA15: =IF(AND(Q15="",P15=1),1,"") ->  | AC15: =IF(AND(G15=""),"",SUM(K15)) -> 
A16: 11 | B16: 319 | C16: 4 | D16: 16
A17: 12 | B17: 431 | C17: 5 | D17: 2
A18: 13 | B18: 122 | C18: 3 | D18: 18
A19: 14 | B19: 379 | C19: 4 | D19: 6
A20: 15 | B20: 316 | C20: 4 | D20: 8
A21: 16 | B21: 322 | C21: 4 | D21: 14
A22: 17 | B22: 345 | C22: 4 | D22: 10
A23: 18 | B23: 281 | C23: 4 | D23: 12
B24: =SUM(B15:B23) -> 2996 | C24: =SUM(C15:C23) -> 37 | D24: IND | E24: =SUM(E15:E23) -> 0 | F24: =SUM(F15:F23) -> 0 | G24: =SUM(G15:G23) -> 0 | H24: =SUM(H15:H23) -> 0 | I24: =SUM(I15:I23) -> 0 | J24: =IF((A29=27),"",(SUM(J15:J23)/SUM(J15:L23))*100) ->  | K24: =IF((A29=27),"",(SUM(K15:K23)/SUM(J15:L23))*100) ->  | L24: =IF((A29=27),"",(SUM(L15:L23)/SUM(J15:L23))*100) ->  | M24: =SUM(M15:M23) -> 0 | N24: =SUM(N15:N23) -> 0 | O24: =SUM(O15:O23) -> 0 | P24: =SUM(P15:P23) -> 0 | Q24: =SUM(Q15:Q23) -> 0 | S24: =IF(Q24=0,"",SUM(S15:S23)/Q24) ->  | V24: =SUM(V15:V23) -> 0 | W24: =ColorFunction($E$30,$E$15:$E$23) -> 0 | X24: =ColorFunction($E$31,$E$15:$E$23) -> 0 | Y24: =ColorFunction($E$32,$E$15:$E$23) -> 0 | Z24: =ColorFunction($E$33,$E$15:$E$23) -> 0 | AA24: =SUM(AA15:AA23)/(9-Q24)*100 -> 0 | AB24: =COUNTIF(P15:P23,">2") -> 0 | AC24: =IF((G24=0),"",SUM(AC15:AC23)/G24*100) -> 
B25: =SUM(B24,B14) -> 5763 | C25: =SUM(C24,C14) -> 73 | D25: TOTAL | E25: =IF(E14=0,"0",(E24+E14)) -> 0 | F25: =SUM(F14,F24) -> 0 | G25: =SUM(G24,G14) -> 0 | H25: =SUM(H24,H14) -> 0 | I25: =SUM(I24,I14) -> 0 | J25: =IF((A28=27),"",(SUM(J14,J24)/2)) ->  | K25: =IF((A28=27),"",(SUM(K14,K24)/2)) ->  | L25: =IF((A28=27),"",(SUM(L14,L24)/2)) ->  | M25: =SUM(M24,M14) -> 0 | N25: =SUM(N24,N14) -> 0 | O25: =SUM(O24,O14) -> 0 | P25: =IF(P14+P24=0,"",SUM(P24,P14)) ->  | Q25: =IF(Q14+Q24=0,"",SUM(Q24,Q14)) ->  | S25: =IF(Q25="","",SUM(S24,S14)/2) ->  | T25: =IF(N25=0,"",(O25)/N25*100) ->  | U25: =IF(Q25="","",(Q25)/18*100) ->  | V25: =IF(Q25="","",(V14+V24)/Q25) ->  | W25: =SUM(W14,W24) -> 0 | X25: =SUM(X14,X24) -> 0 | Y25: =SUM(Y14,Y24) -> 0 | Z25: =SUM(Z14,Z24) -> 0 | AA25: =SUM(AA14,AA24)/2 -> 0 | AB25: =SUM(AB14,AB24) -> 0 | AC25: =SUM(AC24,AC14)/2 -> 0
E27: Udfyld alle grønne felter med 1 for positiv eller antal i tal
A28: =COUNTBLANK(I5:K13) -> 27 | W28: Approach
A29: =COUNTBLANK(I15:K23) -> 27 | E29: Udfyld følgende farver: | S29: Holes to par | W29: Længde (m) | X29: Antal | Y29: Afstand (m)
A30: =SUM(L5:L23) -> 0 | E30: Eagles | S30: Par 3 | T30: =SUMIF(C:C,"3",E:E)/COUNTIF(C:C,3) -> 0 | W30: 45-70 | X30: =COUNTIFS(R5:R23,">=45",R5:R23,"<=70") -> 0 | Y30: =IF(X30=0,"",AVERAGEIFS(S5:S23,R5:R23,">=45",R5:R23,"<=70")) -> 
E31: Birdies | S31: Par 4 | T31: =SUMIF(C:C,"4",E:E)/COUNTIF(C:C,4) -> 0 | W31: 71-90 | X31: =COUNTIFS(R5:R23,">=71",R5:R23,"<=90") -> 0 | Y31: =IF(X31=0,"",AVERAGEIFS(S5:S23,R5:R23,">=71",R5:R23,"<=90")) -> 
E32: Bogeys | S32: Par 5 | T32: =SUMIF(C:C,"5",E:E)/COUNTIF(C:C,5) -> 0 | W32: 91-115 | X32: =COUNTIFS(R5:R23,">=91",R5:R23,"<=115") -> 0 | Y32: =IF(X32=0,"",AVERAGEIFS(S5:S23,R5:R23,">=91",R5:R23,"<=115")) -> 
E33: Doublebogeys eller værre | W33: 116-140 | X33: =COUNTIFS(R5:R23,">=116",R5:R23,"<=140") -> 0 | Y33: =IF(X33=0,"",AVERAGEIFS(S5:S23,R5:R23,">=116",R5:R23,"<=140")) -> 
S34: First 4 | T34: =IF(E25="0","",SUM(E5:E8)-SUM(C5:C8)) ->  | W34: 141-160 | X34: =COUNTIFS(R5:R23,">=141",R5:R23,"<=161") -> 0 | Y34: =IF(X34=0,"",AVERAGEIFS(S5:S23,R5:R23,">=141",R5:R23,"<=160")) -> 
S35: Last 4 | T35: =IF(E25="0","",SUM(E20:E23)-SUM(C20:C23)) ->  | W35: 161-180 | X35: =COUNTIFS(R5:R23,">=161",R5:R23,"<=180") -> 0 | Y35: =IF(X35=0,"",AVERAGEIFS(S5:S23,R5:R23,">=161",R5:R23,"<=180")) -> 
W37: Putting
W38: Længde (m) | X38: Antal | Y38: Holet | Z38: Holet (%)
W39: under 1 m | X39: =COUNTIFS(S5:S23,">=0,1",S5:S23,"<=0,9") -> 0 | Y39: =IF(X39=0,"",COUNTIFS(P5:P23,"=1",S5:S23,"<1")) ->  | Z39: =IF(X39=0,"",Y39/X39*100) -> 
W40: 1 - 1,5 | X40: =COUNTIFS(S5:S23,">=1",S5:S23,"<=1,5") -> 0 | Y40: =IF(X40=0,"",COUNTIFS(P5:P23,"=1",S5:S23,">=1",S5:S23,"<=1,5")) ->  | Z40: =IF(X40=0,"",Y40/X40*100) -> 
W41: 1,5 - 3 | X41: =COUNTIFS(S5:S23,">=1,6",S5:S23,"<=3") -> 0 | Y41: =IF(X41=0,"",COUNTIFS(P5:P23,"=1",S5:S23,">=1,6",S5:S23,"<=3")) ->  | Z41: =IF(X41=0,"",Y41/X41*100) -> 
W42: 3 - 4,5 | X42: =COUNTIFS(S5:S23,">=3,1",S5:S23,"<=4,5") -> 0 | Y42: =IF(X42=0,"",COUNTIFS(P5:P23,"=1",S5:S23,">=3,1",S5:S23,"<=4,5")) -> 
W43: 4,5 - 6 | X43: =COUNTIFS(S5:S23,">=4,6",S5:S23,"<=6") -> 0 | Y43: =IF(X43=0,"",COUNTIFS(P5:P23,"=1",S5:S23,">=4,6",S5:S23,"<=6")) -> 
W44: over 6 meter | X44: =COUNTIFS(S5:S23,">6") -> 0 | Y44: =IF(X44=0,"",COUNTIFS(P5:P23,"=1",S5:S23,">6")) -> 

Sheet Runde 22
A1: Korsør Golf Klub - 18 huller - Gul tee | J1: =IF(E25="0","0","1") -> 0 | L1: Dato: | O1: Handicap: | T1: Antal tildelte slag:
H3: Tee shot | K3: Fairway hits i % | N3: Bunker | R3: Approach shots
A4: Hul | B4: Gul tee | C4: Par | D4: HCP | E4: Score | F4: Netto | G4: Driver | H4: Wood | I4: Jern | J4: Venstre | K4: Midt | L4: Højre | M4: FB | N4: GB | O4: SS | P4: Putts | Q4: GIR | R4: Dist. to pin (m) | S4: Dist. to hole (m) | T4: % SS | U4: % GIR | V4: Putts/GIR | W4: Eagles | X4: Birdies | Y4: Bogeys | Z4: Værre | AA4: % Scramble | AB4: 3+ Putts | AC4: % Driver/Fairwayhits
A5: 1 | B5: 307 | C5: 4 | D5: 11 | V5: =IF(Q5=0,"",P5) ->  | AA5: =IF(AND(Q5="",P5=1),1,"") ->  | AC5: =IF(AND(G5=""),"",SUM(K5)) -> 
A6: 2 | B6: 323 | C6: 4 | D6: 5
A7: 3 | B7: 138 | C7: 3 | D7: 15
A8: 4 | B8: 310 | C8: 4 | D8: 13
A9: 5 | B9: 431 | C9: 5 | D9: 3
A10: 6 | B10: 312 | C10: 4 | D10: 9
A11: 7 | B11: 498 | C11: 5 | D11: 1
A12: 8 | B12: 138 | C12: 3 | D12: 17
A13: 9 | B13: 310 | C13: 4 | D13: 7
B14: =SUM(B5:B13) -> 2767 | C14: =SUM(C5:C13) -> 36 | D14: UD | E14: =SUM(E5:E13) -> 0 | F14: =SUM(F5:F13) -> 0 | G14: =SUM(G5:G13) -> 0 | H14: =SUM(H5:H13) -> 0 | I14: =SUM(I5:I13) -> 0 | J14: =IF((A28=27),"",(SUM(J5:J13)/SUM(J5:L13))*100) ->  | K14: =IF((A28=27),"",(SUM(K5:K13)/SUM(J5:L13))*100) ->  | L14: =IF((A28=27),"",(SUM(L5:L13)/SUM(J5:L13))*100) ->  | M14: =SUM(M5:M13) -> 0 | N14: =SUM(N5:N13) -> 0 | O14: =SUM(O5:O13) -> 0 | P14: =SUM(P5:P13) -> 0 | Q14: =SUM(Q5:Q13) -> 0 | S14: =IF(Q14=0,"",SUM(S5:S13)/Q14) ->  | V14: =SUM(V5:V13) -> 0 | W14: =ColorFunction($E$30,$E$5:$E$13) -> 0 | X14: =ColorFunction($E$31,$E$5:$E$13) -> 0 | Y14: =ColorFunction($E$32,$E$5:$E$13) -> 0 | Z14: =ColorFunction($E$33,$E$5:$E$13) -> 0 | AA14: =SUM(AA5:AA13)/(9-Q14)*100 -> 0 | AB14: =COUNTIF(P5:P13,">2") -> 0 | AC14: =IF((G14=0),"",SUM(AC5:AC13)/G14*100) -> 
A15: 10 | B15: 481 | C15: 5 | D15: 4 | V15: =IF(Q15=0,"",P15) ->  | AA15: =IF(AND(Q15="",P15=1),1,"") ->  | AC15: =IF(AND(G15=""),"",SUM(K15)) -> 
A16: 11 | B16: 319 | C16: 4 | D16: 16
A17: 12 | B17: 431 | C17: 5 | D17: 2
A18: 13 | B18: 122 | C18: 3 | D18: 18
A19: 14 | B19: 379 | C19: 4 | D19: 6
A20: 15 | B20: 316 | C20: 4 | D20: 8
A21: 16 | B21: 322 | C21: 4 | D21: 14
A22: 17 | B22: 345 | C22: 4 | D22: 10
A23: 18 | B23: 281 | C23: 4 | D23: 12
B24: =SUM(B15:B23) -> 2996 | C24: =SUM(C15:C23) -> 37 | D24: IND | E24: =SUM(E15:E23) -> 0 | F24: =SUM(F15:F23) -> 0 | G24: =SUM(G15:G23) -> 0 | H24: =SUM(H15:H23) -> 0 | I24: =SUM(I15:I23) -> 0 | J24: =IF((A29=27),"",(SUM(J15:J23)/SUM(J15:L23))*100) ->  | K24: =IF((A29=27),"",(SUM(K15:K23)/SUM(J15:L23))*100) ->  | L24: =IF((A29=27),"",(SUM(L15:L23)/SUM(J15:L23))*100) ->  | M24: =SUM(M15:M23) -> 0 | N24: =SUM(N15:N23) -> 0 | O24: =SUM(O15:O23) -> 0 | P24: =SUM(P15:P23) -> 0 | Q24: =SUM(Q15:Q23) -> 0 | S24: =IF(Q24=0,"",SUM(S15:S23)/Q24) ->  | V24: =SUM(V15:V23) -> 0 | W24: =ColorFunction($E$30,$E$15:$E$23) -> 0 | X24: =ColorFunction($E$31,$E$15:$E$23) -> 0 | Y24: =ColorFunction($E$32,$E$15:$E$23) -> 0 | Z24: =ColorFunction($E$33,$E$15:$E$23) -> 0 | AA24: =SUM(AA15:AA23)/(9-Q24)*100 -> 0 | AB24: =COUNTIF(P15:P23,">2") -> 0 | AC24: =IF((G24=0),"",SUM(AC15:AC23)/G24*100) -> 
B25: =SUM(B24,B14) -> 5763 | C25: =SUM(C24,C14) -> 73 | D25: TOTAL | E25: =IF(E14=0,"0",(E24+E14)) -> 0 | F25: =SUM(F14,F24) -> 0 | G25: =SUM(G24,G14) -> 0 | H25: =SUM(H24,H14) -> 0 | I25: =SUM(I24,I14) -> 0 | J25: =IF((A28=27),"",(SUM(J14,J24)/2)) ->  | K25: =IF((A28=27),"",(SUM(K14,K24)/2)) ->  | L25: =IF((A28=27),"",(SUM(L14,L24)/2)) ->  | M25: =SUM(M24,M14) -> 0 | N25: =SUM(N24,N14) -> 0 | O25: =SUM(O24,O14) -> 0 | P25: =IF(P14+P24=0,"",SUM(P24,P14)) ->  | Q25: =IF(Q14+Q24=0,"",SUM(Q24,Q14)) ->  | S25: =IF(Q25="","",SUM(S24,S14)/2) ->  | T25: =IF(N25=0,"",(O25)/N25*100) ->  | U25: =IF(Q25="","",(Q25)/18*100) ->  | V25: =IF(Q25="","",(V14+V24)/Q25) ->  | W25: =SUM(W14,W24) -> 0 | X25: =SUM(X14,X24) -> 0 | Y25: =SUM(Y14,Y24) -> 0 | Z25: =SUM(Z14,Z24) -> 0 | AA25: =SUM(AA14,AA24)/2 -> 0 | AB25: =SUM(AB14,AB24) -> 0 | AC25: =SUM(AC24,AC14)/2 -> 0
E27: Udfyld alle grønne felter med 1 for positiv eller antal i tal
A28: =COUNTBLANK(I5:K13) -> 27 | W28: Approach
A29: =COUNTBLANK(I15:K23) -> 27 | E29: Udfyld følgende farver: | S29: Holes to par | W29: Længde (m) | X29: Antal | Y29: Afstand (m)
A30: =SUM(L5:L23) -> 0 | E30: Eagles | S30: Par 3 | T30: =SUMIF(C:C,"3",E:E)/COUNTIF(C:C,3) -> 0 | W30: 45-70 | X30: =COUNTIFS(R5:R23,">=45",R5:R23,"<=70") -> 0 | Y30: =IF(X30=0,"",AVERAGEIFS(S5:S23,R5:R23,">=45",R5:R23,"<=70")) -> 
E31: Birdies | S31: Par 4 | T31: =SUMIF(C:C,"4",E:E)/COUNTIF(C:C,4) -> 0 | W31: 71-90 | X31: =COUNTIFS(R5:R23,">=71",R5:R23,"<=90") -> 0 | Y31: =IF(X31=0,"",AVERAGEIFS(S5:S23,R5:R23,">=71",R5:R23,"<=90")) -> 
E32: Bogeys | S32: Par 5 | T32: =SUMIF(C:C,"5",E:E)/COUNTIF(C:C,5) -> 0 | W32: 91-115 | X32: =COUNTIFS(R5:R23,">=91",R5:R23,"<=115") -> 0 | Y32: =IF(X32=0,"",AVERAGEIFS(S5:S23,R5:R23,">=91",R5:R23,"<=115")) -> 
E33: Doublebogeys eller værre | W33: 116-140 | X33: =COUNTIFS(R5:R23,">=116",R5:R23,"<=140") -> 0 | Y33: =IF(X33=0,"",AVERAGEIFS(S5:S23,R5:R23,">=116",R5:R23,"<=140")) -> 
S34: First 4 | T34: =IF(E25="0","",SUM(E5:E8)-SUM(C5:C8)) ->  | W34: 141-160 | X34: =COUNTIFS(R5:R23,">=141",R5:R23,"<=161") -> 0 | Y34: =IF(X34=0,"",AVERAGEIFS(S5:S23,R5:R23,">=141",R5:R23,"<=160")) -> 
S35: Last 4 | T35: =IF(E25="0","",SUM(E20:E23)-SUM(C20:C23)) ->  | W35: 161-180 | X35: =COUNTIFS(R5:R23,">=161",R5:R23,"<=180") -> 0 | Y35: =IF(X35=0,"",AVERAGEIFS(S5:S23,R5:R23,">=161",R5:R23,"<=180")) -> 
W37: Putting
W38: Længde (m) | X38: Antal | Y38: Holet | Z38: Holet (%)
W39: under 1 m | X39: =COUNTIFS(S5:S23,">=0,1",S5:S23,"<=0,9") -> 0 | Y39: =IF(X39=0,"",COUNTIFS(P5:P23,"=1",S5:S23,"<1")) ->  | Z39: =IF(X39=0,"",Y39/X39*100) -> 
W40: 1 - 1,5 | X40: =COUNTIFS(S5:S23,">=1",S5:S23,"<=1,5") -> 0 | Y40: =IF(X40=0,"",COUNTIFS(P5:P23,"=1",S5:S23,">=1",S5:S23,"<=1,5")) ->  | Z40: =IF(X40=0,"",Y40/X40*100) -> 
W41: 1,5 - 3 | X41: =COUNTIFS(S5:S23,">=1,6",S5:S23,"<=3") -> 0 | Y41: =IF(X41=0,"",COUNTIFS(P5:P23,"=1",S5:S23,">=1,6",S5:S23,"<=3")) ->  | Z41: =IF(X41=0,"",Y41/X41*100) -> 
W42: 3 - 4,5 | X42: =COUNTIFS(S5:S23,">=3,1",S5:S23,"<=4,5") -> 0 | Y42: =IF(X42=0,"",COUNTIFS(P5:P23,"=1",S5:S23,">=3,1",S5:S23,"<=4,5")) -> 
W43: 4,5 - 6 | X43: =COUNTIFS(S5:S23,">=4,6",S5:S23,"<=6") -> 0 | Y43: =IF(X43=0,"",COUNTIFS(P5:P23,"=1",S5:S23,">=4,6",S5:S23,"<=6")) -> 
W44: over 6 meter | X44: =COUNTIFS(S5:S23,">6") -> 0 | Y44: =IF(X44=0,"",COUNTIFS(P5:P23,"=1",S5:S23,">6")) -> 

Sheet Runde 23
A1: Korsør Golf Klub - 18 huller - Gul tee | J1: =IF(E25="0","0","1") -> 0 | L1: Dato: | O1: Handicap: | T1: Antal tildelte slag:
H3: Tee shot | K3: Fairway hits i % | N3: Bunker | R3: Approach shots
A4: Hul | B4: Gul tee | C4: Par | D4: HCP | E4: Score | F4: Netto | G4: Driver | H4: Wood | I4: Jern | J4: Venstre | K4: Midt | L4: Højre | M4: FB | N4: GB | O4: SS | P4: Putts | Q4: GIR | R4: Dist. to pin (m) | S4: Dist. to hole (m) | T4: % SS | U4: % GIR | V4: Putts/GIR | W4: Eagles | X4: Birdies | Y4: Bogeys | Z4: Værre | AA4: % Scramble | AB4: 3+ Putts | AC4: % Driver/Fairwayhits
A5: 1 | B5: 307 | C5: 4 | D5: 11 | V5: =IF(Q5=0,"",P5) ->  | AA5: =IF(AND(Q5="",P5=1),1,"") ->  | AC5: =IF(AND(G5=""),"",SUM(K5)) -> 
A6: 2 | B6: 323 | C6: 4 | D6: 5
A7: 3 | B7: 138 | C7: 3 | D7: 15
A8: 4 | B8: 310 | C8: 4 | D8: 13
A9: 5 | B9: 431 | C9: 5 | D9: 3
A10: 6 | B10: 312 | C10: 4 | D10: 9
A11: 7 | B11: 498 | C11: 5 | D11: 1
A12: 8 | B12: 138 | C12: 3 | D12: 17
A13: 9 | B13: 310 | C13: 4 | D13: 7
B14: =SUM(B5:B13) -> 2767 | C14: =SUM(C5:C13) -> 36 | D14: UD | E14: =SUM(E5:E13) -> 0 | F14: =SUM(F5:F13) -> 0 | G14: =SUM(G5:G13) -> 0 | H14: =SUM(H5:H13) -> 0 | I14: =SUM(I5:I13) -> 0 | J14: =IF((A28=27),"",(SUM(J5:J13)/SUM(J5:L13))*100) ->  | K14: =IF((A28=27),"",(SUM(K5:K13)/SUM(J5:L13))*100) ->  | L14: =IF((A28=27),"",(SUM(L5:L13)/SUM(J5:L13))*100) ->  | M14: =SUM(M5:M13) -> 0 | N14: =SUM(N5:N13) -> 0 | O14: =SUM(O5:O13) -> 0 | P14: =SUM(P5:P13) -> 0 | Q14: =SUM(Q5:Q13) -> 0 | S14: =IF(Q14=0,"",SUM(S5:S13)/Q14) ->  | V14: =SUM(V5:V13) -> 0 | W14: =ColorFunction($E$30,$E$5:$E$13) -> 0 | X14: =ColorFunction($E$31,$E$5:$E$13) -> 0 | Y14: =ColorFunction($E$32,$E$5:$E$13) -> 0 | Z14: =ColorFunction($E$33,$E$5:$E$13) -> 0 | AA14: =SUM(AA5:AA13)/(9-Q14)*100 -> 0 | AB14: =COUNTIF(P5:P13,">2") -> 0 | AC14: =IF((G14=0),"",SUM(AC5:AC13)/G14*100) -> 
A15: 10 | B15: 481 | C15: 5 | D15: 4 | V15: =IF(Q15=0,"",P15) ->  | AA15: =IF(AND(Q15="",P15=1),1,"") ->  | AC15: =IF(AND(G15=""),"",SUM(K15)) -> 
A16: 11 | B16: 319 | C16: 4 | D16: 16
A17: 12 | B17: 431 | C17: 5 | D17: 2
A18: 13 | B18: 122 | C18: 3 | D18: 18
A19: 14 | B19: 379 | C19: 4 | D19: 6
A20: 15 | B20: 316 | C20: 4 | D20: 8
A21: 16 | B21: 322 | C21: 4 | D21: 14
A22: 17 | B22: 345 | C22: 4 | D22: 10
A23: 18 | B23: 281 | C23: 4 | D23: 12
B24: =SUM(B15:B23) -> 2996 | C24: =SUM(C15:C23) -> 37 | D24: IND | E24: =SUM(E15:E23) -> 0 | F24: =SUM(F15:F23) -> 0 | G24: =SUM(G15:G23) -> 0 | H24: =SUM(H15:H23) -> 0 | I24: =SUM(I15:I23) -> 0 | J24: =IF((A29=27),"",(SUM(J15:J23)/SUM(J15:L23))*100) ->  | K24: =IF((A29=27),"",(SUM(K15:K23)/SUM(J15:L23))*100) ->  | L24: =IF((A29=27),"",(SUM(L15:L23)/SUM(J15:L23))*100) ->  | M24: =SUM(M15:M23) -> 0 | N24: =SUM(N15:N23) -> 0 | O24: =SUM(O15:O23) -> 0 | P24: =SUM(P15:P23) -> 0 | Q24: =SUM(Q15:Q23) -> 0 | S24: =IF(Q24=0,"",SUM(S15:S23)/Q24) ->  | V24: =SUM(V15:V23) -> 0 | W24: =ColorFunction($E$30,$E$15:$E$23) -> 0 | X24: =ColorFunction($E$31,$E$15:$E$23) -> 0 | Y24: =ColorFunction($E$32,$E$15:$E$23) -> 0 | Z24: =ColorFunction($E$33,$E$15:$E$23) -> 0 | AA24: =SUM(AA15:AA23)/(9-Q24)*100 -> 0 | AB24: =COUNTIF(P15:P23,">2") -> 0 | AC24: =IF((G24=0),"",SUM(AC15:AC23)/G24*100) -> 
B25: =SUM(B24,B14) -> 5763 | C25: =SUM(C24,C14) -> 73 | D25: TOTAL | E25: =IF(E14=0,"0",(E24+E14)) -> 0 | F25: =SUM(F14,F24) -> 0 | G25: =SUM(G24,G14) -> 0 | H25: =SUM(H24,H14) -> 0 | I25: =SUM(I24,I14) -> 0 | J25: =IF((A28=27),"",(SUM(J14,J24)/2)) ->  | K25: =IF((A28=27),"",(SUM(K14,K24)/2)) ->  | L25: =IF((A28=27),"",(SUM(L14,L24)/2)) ->  | M25: =SUM(M24,M14) -> 0 | N25: =SUM(N24,N14) -> 0 | O25: =SUM(O24,O14) -> 0 | P25: =IF(P14+P24=0,"",SUM(P24,P14)) ->  | Q25: =IF(Q14+Q24=0,"",SUM(Q24,Q14)) ->  | S25: =IF(Q25="","",SUM(S24,S14)/2) ->  | T25: =IF(N25=0,"",(O25)/N25*100) ->  | U25: =IF(Q25="","",(Q25)/18*100) ->  | V25: =IF(Q25="","",(V14+V24)/Q25) ->  | W25: =SUM(W14,W24) -> 0 | X25: =SUM(X14,X24) -> 0 | Y25: =SUM(Y14,Y24) -> 0 | Z25: =SUM(Z14,Z24) -> 0 | AA25: =SUM(AA14,AA24)/2 -> 0 | AB25: =SUM(AB14,AB24) -> 0 | AC25: =SUM(AC24,AC14)/2 -> 0
E27: Udfyld alle grønne felter med 1 for positiv eller antal i tal
A28: =COUNTBLANK(I5:K13) -> 27 | W28: Approach
A29: =COUNTBLANK(I15:K23) -> 27 | E29: Udfyld følgende farver: | S29: Holes to par | W29: Længde (m) | X29: Antal | Y29: Afstand (m)
A30: =SUM(L5:L23) -> 0 | E30: Eagles | S30: Par 3 | T30: =SUMIF(C:C,"3",E:E)/COUNTIF(C:C,3) -> 0 | W30: 45-70 | X30: =COUNTIFS(R5:R23,">=45",R5:R23,"<=70") -> 0 | Y30: =IF(X30=0,"",AVERAGEIFS(S5:S23,R5:R23,">=45",R5:R23,"<=70")) -> 
E31: Birdies | S31: Par 4 | T31: =SUMIF(C:C,"4",E:E)/COUNTIF(C:C,4) -> 0 | W31: 71-90 | X31: =COUNTIFS(R5:R23,">=71",R5:R23,"<=90") -> 0 | Y31: =IF(X31=0,"",AVERAGEIFS(S5:S23,R5:R23,">=71",R5:R23,"<=90")) -> 
E32: Bogeys | S32: Par 5 | T32: =SUMIF(C:C,"5",E:E)/COUNTIF(C:C,5) -> 0 | W32: 91-115 | X32: =COUNTIFS(R5:R23,">=91",R5:R23,"<=115") -> 0 | Y32: =IF(X32=0,"",AVERAGEIFS(S5:S23,R5:R23,">=91",R5:R23,"<=115")) -> 
E33: Doublebogeys eller værre | W33: 116-140 | X33: =COUNTIFS(R5:R23,">=116",R5:R23,"<=140") -> 0 | Y33: =IF(X33=0,"",AVERAGEIFS(S5:S23,R5:R23,">=116",R5:R23,"<=140")) -> 
S34: First 4 | T34: =IF(E25="0","",SUM(E5:E8)-SUM(C5:C8)) ->  | W34: 141-160 | X34: =COUNTIFS(R5:R23,">=141",R5:R23,"<=161") -> 0 | Y34: =IF(X34=0,"",AVERAGEIFS(S5:S23,R5:R23,">=141",R5:R23,"<=160")) -> 
S35: Last 4 | T35: =IF(E25="0","",SUM(E20:E23)-SUM(C20:C23)) ->  | W35: 161-180 | X35: =COUNTIFS(R5:R23,">=161",R5:R23,"<=180") -> 0 | Y35: =IF(X35=0,"",AVERAGEIFS(S5:S23,R5:R23,">=161",R5:R23,"<=180")) -> 
W37: Putting
W38: Længde (m) | X38: Antal | Y38: Holet | Z38: Holet (%)
W39: under 1 m | X39: =COUNTIFS(S5:S23,">=0,1",S5:S23,"<=0,9") -> 0 | Y39: =IF(X39=0,"",COUNTIFS(P5:P23,"=1",S5:S23,"<1")) ->  | Z39: =IF(X39=0,"",Y39/X39*100) -> 
W40: 1 - 1,5 | X40: =COUNTIFS(S5:S23,">=1",S5:S23,"<=1,5") -> 0 | Y40: =IF(X40=0,"",COUNTIFS(P5:P23,"=1",S5:S23,">=1",S5:S23,"<=1,5")) ->  | Z40: =IF(X40=0,"",Y40/X40*100) -> 
W41: 1,5 - 3 | X41: =COUNTIFS(S5:S23,">=1,6",S5:S23,"<=3") -> 0 | Y41: =IF(X41=0,"",COUNTIFS(P5:P23,"=1",S5:S23,">=1,6",S5:S23,"<=3")) ->  | Z41: =IF(X41=0,"",Y41/X41*100) -> 
W42: 3 - 4,5 | X42: =COUNTIFS(S5:S23,">=3,1",S5:S23,"<=4,5") -> 0 | Y42: =IF(X42=0,"",COUNTIFS(P5:P23,"=1",S5:S23,">=3,1",S5:S23,"<=4,5")) -> 
W43: 4,5 - 6 | X43: =COUNTIFS(S5:S23,">=4,6",S5:S23,"<=6") -> 0 | Y43: =IF(X43=0,"",COUNTIFS(P5:P23,"=1",S5:S23,">=4,6",S5:S23,"<=6")) -> 
W44: over 6 meter | X44: =COUNTIFS(S5:S23,">6") -> 0 | Y44: =IF(X44=0,"",COUNTIFS(P5:P23,"=1",S5:S23,">6")) -> 

Sheet Runde 24
A1: Korsør Golf Klub - 18 huller - Gul tee | J1: =IF(E25="0","0","1") -> 0 | L1: Dato: | O1: Handicap: | T1: Antal tildelte slag:
H3: Tee shot | K3: Fairway hits i % | N3: Bunker | R3: Approach shots
A4: Hul | B4: Gul tee | C4: Par | D4: HCP | E4: Score | F4: Netto | G4: Driver | H4: Wood | I4: Jern | J4: Venstre | K4: Midt | L4: Højre | M4: FB | N4: GB | O4: SS | P4: Putts | Q4: GIR | R4: Dist. to pin (m) | S4: Dist. to hole (m) | T4: % SS | U4: % GIR | V4: Putts/GIR | W4: Eagles | X4: Birdies | Y4: Bogeys | Z4: Værre | AA4: % Scramble | AB4: 3+ Putts | AC4: % Driver/Fairwayhits
A5: 1 | B5: 307 | C5: 4 | D5: 11 | V5: =IF(Q5=0,"",P5) ->  | AA5: =IF(AND(Q5="",P5=1),1,"") ->  | AC5: =IF(AND(G5=""),"",SUM(K5)) -> 
A6: 2 | B6: 323 | C6: 4 | D6: 5
A7: 3 | B7: 138 | C7: 3 | D7: 15
A8: 4 | B8: 310 | C8: 4 | D8: 13
A9: 5 | B9: 431 | C9: 5 | D9: 3
A10: 6 | B10: 312 | C10: 4 | D10: 9
A11: 7 | B11: 498 | C11: 5 | D11: 1
A12: 8 | B12: 138 | C12: 3 | D12: 17
A13: 9 | B13: 310 | C13: 4 | D13: 7
B14: =SUM(B5:B13) -> 2767 | C14: =SUM(C5:C13) -> 36 | D14: UD | E14: =SUM(E5:E13) -> 0 | F14: =SUM(F5:F13) -> 0 | G14: =SUM(G5:G13) -> 0 | H14: =SUM(H5:H13) -> 0 | I14: =SUM(I5:I13) -> 0 | J14: =IF((A28=27),"",(SUM(J5:J13)/SUM(J5:L13))*100) ->  | K14: =IF((A28=27),"",(SUM(K5:K13)/SUM(J5:L13))*100) ->  | L14: =IF((A28=27),"",(SUM(L5:L13)/SUM(J5:L13))*100) ->  | M14: =SUM(M5:M13) -> 0 | N14: =SUM(N5:N13) -> 0 | O14: =SUM(O5:O13) -> 0 | P14: =SUM(P5:P13) -> 0 | Q14: =SUM(Q5:Q13) -> 0 | S14: =IF(Q14=0,"",SUM(S5:S13)/Q14) ->  | V14: =SUM(V5:V13) -> 0 | W14: =ColorFunction($E$30,$E$5:$E$13) -> 0 | X14: =ColorFunction($E$31,$E$5:$E$13) -> 0 | Y14: =ColorFunction($E$32,$E$5:$E$13) -> 0 | Z14: =ColorFunction($E$33,$E$5:$E$13) -> 0 | AA14: =SUM(AA5:AA13)/(9-Q14)*100 -> 0 | AB14: =COUNTIF(P5:P13,">2") -> 0 | AC14: =IF((G14=0),"",SUM(AC5:AC13)/G14*100) -> 
A15: 10 | B15: 481 | C15: 5 | D15: 4 | V15: =IF(Q15=0,"",P15) ->  | AA15: =IF(AND(Q15="",P15=1),1,"") ->  | AC15: =IF(AND(G15=""),"",SUM(K15)) -> 
A16: 11 | B16: 319 | C16: 4 | D16: 16
A17: 12 | B17: 431 | C17: 5 | D17: 2
A18: 13 | B18: 122 | C18: 3 | D18: 18
A19: 14 | B19: 379 | C19: 4 | D19: 6
A20: 15 | B20: 316 | C20: 4 | D20: 8
A21: 16 | B21: 322 | C21: 4 | D21: 14
A22: 17 | B22: 345 | C22: 4 | D22: 10
A23: 18 | B23: 281 | C23: 4 | D23: 12
B24: =SUM(B15:B23) -> 2996 | C24: =SUM(C15:C23) -> 37 | D24: IND | E24: =SUM(E15:E23) -> 0 | F24: =SUM(F15:F23) -> 0 | G24: =SUM(G15:G23) -> 0 | H24: =SUM(H15:H23) -> 0 | I24: =SUM(I15:I23) -> 0 | J24: =IF((A29=27),"",(SUM(J15:J23)/SUM(J15:L23))*100) ->  | K24: =IF((A29=27),"",(SUM(K15:K23)/SUM(J15:L23))*100) ->  | L24: =IF((A29=27),"",(SUM(L15:L23)/SUM(J15:L23))*100) ->  | M24: =SUM(M15:M23) -> 0 | N24: =SUM(N15:N23) -> 0 | O24: =SUM(O15:O23) -> 0 | P24: =SUM(P15:P23) -> 0 | Q24: =SUM(Q15:Q23) -> 0 | S24: =IF(Q24=0,"",SUM(S15:S23)/Q24) ->  | V24: =SUM(V15:V23) -> 0 | W24: =ColorFunction($E$30,$E$15:$E$23) -> 0 | X24: =ColorFunction($E$31,$E$15:$E$23) -> 0 | Y24: =ColorFunction($E$32,$E$15:$E$23) -> 0 | Z24: =ColorFunction($E$33,$E$15:$E$23) -> 0 | AA24: =SUM(AA15:AA23)/(9-Q24)*100 -> 0 | AB24: =COUNTIF(P15:P23,">2") -> 0 | AC24: =IF((G24=0),"",SUM(AC15:AC23)/G24*100) -> 
B25: =SUM(B24,B14) -> 5763 | C25: =SUM(C24,C14) -> 73 | D25: TOTAL | E25: =IF(E14=0,"0",(E24+E14)) -> 0 | F25: =SUM(F14,F24) -> 0 | G25: =SUM(G24,G14) -> 0 | H25: =SUM(H24,H14) -> 0 | I25: =SUM(I24,I14) -> 0 | J25: =IF((A28=27),"",(SUM(J14,J24)/2)) ->  | K25: =IF((A28=27),"",(SUM(K14,K24)/2)) ->  | L25: =IF((A28=27),"",(SUM(L14,L24)/2)) ->  | M25: =SUM(M24,M14) -> 0 | N25: =SUM(N24,N14) -> 0 | O25: =SUM(O24,O14) -> 0 | P25: =IF(P14+P24=0,"",SUM(P24,P14)) ->  | Q25: =IF(Q14+Q24=0,"",SUM(Q24,Q14)) ->  | S25: =IF(Q25="","",SUM(S24,S14)/2) ->  | T25: =IF(N25=0,"",(O25)/N25*100) ->  | U25: =IF(Q25="","",(Q25)/18*100) ->  | V25: =IF(Q25="","",(V14+V24)/Q25) ->  | W25: =SUM(W14,W24) -> 0 | X25: =SUM(X14,X24) -> 0 | Y25: =SUM(Y14,Y24) -> 0 | Z25: =SUM(Z14,Z24) -> 0 | AA25: =SUM(AA14,AA24)/2 -> 0 | AB25: =SUM(AB14,AB24) -> 0 | AC25: =SUM(AC24,AC14)/2 -> 0
E27: Udfyld alle grønne felter med 1 for positiv eller antal i tal
A28: =COUNTBLANK(I5:K13) -> 27 | W28: Approach
A29: =COUNTBLANK(I15:K23) -> 27 | E29: Udfyld følgende farver: | S29: Holes to par | W29: Længde (m) | X29: Antal | Y29: Afstand (m)
A30: =SUM(L5:L23) -> 0 | E30: Eagles | S30: Par 3 | T30: =SUMIF(C:C,"3",E:E)/COUNTIF(C:C,3) -> 0 | W30: 45-70 | X30: =COUNTIFS(R5:R23,">=45",R5:R23,"<=70") -> 0 | Y30: =IF(X30=0,"",AVERAGEIFS(S5:S23,R5:R23,">=45",R5:R23,"<=70")) -> 
E31: Birdies | S31: Par 4 | T31: =SUMIF(C:C,"4",E:E)/COUNTIF(C:C,4) -> 0 | W31: 71-90 | X31: =COUNTIFS(R5:R23,">=71",R5:R23,"<=90") -> 0 | Y31: =IF(X31=0,"",AVERAGEIFS(S5:S23,R5:R23,">=71",R5:R23,"<=90")) -> 
E32: Bogeys | S32: Par 5 | T32: =SUMIF(C:C,"5",E:E)/COUNTIF(C:C,5) -> 0 | W32: 91-115 | X32: =COUNTIFS(R5:R23,">=91",R5:R23,"<=115") -> 0 | Y32: =IF(X32=0,"",AVERAGEIFS(S5:S23,R5:R23,">=91",R5:R23,"<=115")) -> 
E33: Doublebogeys eller værre | W33: 116-140 | X33: =COUNTIFS(R5:R23,">=116",R5:R23,"<=140") -> 0 | Y33: =IF(X33=0,"",AVERAGEIFS(S5:S23,R5:R23,">=116",R5:R23,"<=140")) -> 
S34: First 4 | T34: =IF(E25="0","",SUM(E5:E8)-SUM(C5:C8)) ->  | W34: 141-160 | X34: =COUNTIFS(R5:R23,">=141",R5:R23,"<=161") -> 0 | Y34: =IF(X34=0,"",AVERAGEIFS(S5:S23,R5:R23,">=141",R5:R23,"<=160")) -> 
S35: Last 4 | T35: =IF(E25="0","",SUM(E20:E23)-SUM(C20:C23)) ->  | W35: 161-180 | X35: =COUNTIFS(R5:R23,">=161",R5:R23,"<=180") -> 0 | Y35: =IF(X35=0,"",AVERAGEIFS(S5:S23,R5:R23,">=161",R5:R23,"<=180")) -> 
W37: Putting
W38: Længde (m) | X38: Antal | Y38: Holet | Z38: Holet (%)
W39: under 1 m | X39: =COUNTIFS(S5:S23,">=0,1",S5:S23,"<=0,9") -> 0 | Y39: =IF(X39=0,"",COUNTIFS(P5:P23,"=1",S5:S23,"<1")) ->  | Z39: =IF(X39=0,"",Y39/X39*100) -> 
W40: 1 - 1,5 | X40: =COUNTIFS(S5:S23,">=1",S5:S23,"<=1,5") -> 0 | Y40: =IF(X40=0,"",COUNTIFS(P5:P23,"=1",S5:S23,">=1",S5:S23,"<=1,5")) ->  | Z40: =IF(X40=0,"",Y40/X40*100) -> 
W41: 1,5 - 3 | X41: =COUNTIFS(S5:S23,">=1,6",S5:S23,"<=3") -> 0 | Y41: =IF(X41=0,"",COUNTIFS(P5:P23,"=1",S5:S23,">=1,6",S5:S23,"<=3")) ->  | Z41: =IF(X41=0,"",Y41/X41*100) -> 
W42: 3 - 4,5 | X42: =COUNTIFS(S5:S23,">=3,1",S5:S23,"<=4,5") -> 0 | Y42: =IF(X42=0,"",COUNTIFS(P5:P23,"=1",S5:S23,">=3,1",S5:S23,"<=4,5")) -> 
W43: 4,5 - 6 | X43: =COUNTIFS(S5:S23,">=4,6",S5:S23,"<=6") -> 0 | Y43: =IF(X43=0,"",COUNTIFS(P5:P23,"=1",S5:S23,">=4,6",S5:S23,"<=6")) -> 
W44: over 6 meter | X44: =COUNTIFS(S5:S23,">6") -> 0 | Y44: =IF(X44=0,"",COUNTIFS(P5:P23,"=1",S5:S23,">6")) -> 

Sheet Runde 25
A1: Korsør Golf Klub - 18 huller - Gul tee | J1: =IF(E25="0","0","1") -> 0 | L1: Dato: | O1: Handicap: | T1: Antal tildelte slag:
H3: Tee shot | K3: Fairway hits i % | N3: Bunker | R3: Approach shots
A4: Hul | B4: Gul tee | C4: Par | D4: HCP | E4: Score | F4: Netto | G4: Driver | H4: Wood | I4: Jern | J4: Venstre | K4: Midt | L4: Højre | M4: FB | N4: GB | O4: SS | P4: Putts | Q4: GIR | R4: Dist. to pin (m) | S4: Dist. to hole (m) | T4: % SS | U4: % GIR | V4: Putts/GIR | W4: Eagles | X4: Birdies | Y4: Bogeys | Z4: Værre | AA4: % Scramble | AB4: 3+ Putts | AC4: % Driver/Fairwayhits
A5: 1 | B5: 307 | C5: 4 | D5: 11 | V5: =IF(Q5=0,"",P5) ->  | AA5: =IF(AND(Q5="",P5=1),1,"") ->  | AC5: =IF(AND(G5=""),"",SUM(K5)) -> 
A6: 2 | B6: 323 | C6: 4 | D6: 5
A7: 3 | B7: 138 | C7: 3 | D7: 15
A8: 4 | B8: 310 | C8: 4 | D8: 13
A9: 5 | B9: 431 | C9: 5 | D9: 3
A10: 6 | B10: 312 | C10: 4 | D10: 9
A11: 7 | B11: 498 | C11: 5 | D11: 1
A12: 8 | B12: 138 | C12: 3 | D12: 17
A13: 9 | B13: 310 | C13: 4 | D13: 7
B14: =SUM(B5:B13) -> 2767 | C14: =SUM(C5:C13) -> 36 | D14: UD | E14: =SUM(E5:E13) -> 0 | F14: =SUM(F5:F13) -> 0 | G14: =SUM(G5:G13) -> 0 | H14: =SUM(H5:H13) -> 0 | I14: =SUM(I5:I13) -> 0 | J14: =IF((A28=27),"",(SUM(J5:J13)/SUM(J5:L13))*100) ->  | K14: =IF((A28=27),"",(SUM(K5:K13)/SUM(J5:L13))*100) ->  | L14: =IF((A28=27),"",(SUM(L5:L13)/SUM(J5:L13))*100) ->  | M14: =SUM(M5:M13) -> 0 | N14: =SUM(N5:N13) -> 0 | O14: =SUM(O5:O13) -> 0 | P14: =SUM(P5:P13) -> 0 | Q14: =SUM(Q5:Q13) -> 0 | S14: =IF(Q14=0,"",SUM(S5:S13)/Q14) ->  | V14: =SUM(V5:V13) -> 0 | W14: =ColorFunction($E$30,$E$5:$E$13) -> 0 | X14: =ColorFunction($E$31,$E$5:$E$13) -> 0 | Y14: =ColorFunction($E$32,$E$5:$E$13) -> 0 | Z14: =ColorFunction($E$33,$E$5:$E$13) -> 0 | AA14: =SUM(AA5:AA13)/(9-Q14)*100 -> 0 | AB14: =COUNTIF(P5:P13,">2") -> 0 | AC14: =IF((G14=0),"",SUM(AC5:AC13)/G14*100) -> 
A15: 10 | B15: 481 | C15: 5 | D15: 4 | V15: =IF(Q15=0,"",P15) ->  | AA15: =IF(AND(Q15="",P15=1),1,"") ->  | AC15: =IF(AND(G15=""),"",SUM(K15)) -> 
A16: 11 | B16: 319 | C16: 4 | D16: 16
A17: 12 | B17: 431 | C17: 5 | D17: 2
A18: 13 | B18: 122 | C18: 3 | D18: 18
A19: 14 | B19: 379 | C19: 4 | D19: 6
A20: 15 | B20: 316 | C20: 4 | D20: 8
A21: 16 | B21: 322 | C21: 4 | D21: 14
A22: 17 | B22: 345 | C22: 4 | D22: 10
A23: 18 | B23: 281 | C23: 4 | D23: 12
B24: =SUM(B15:B23) -> 2996 | C24: =SUM(C15:C23) -> 37 | D24: IND | E24: =SUM(E15:E23) -> 0 | F24: =SUM(F15:F23) -> 0 | G24: =SUM(G15:G23) -> 0 | H24: =SUM(H15:H23) -> 0 | I24: =SUM(I15:I23) -> 0 | J24: =IF((A29=27),"",(SUM(J15:J23)/SUM(J15:L23))*100) ->  | K24: =IF((A29=27),"",(SUM(K15:K23)/SUM(J15:L23))*100) ->  | L24: =IF((A29=27),"",(SUM(L15:L23)/SUM(J15:L23))*100) ->  | M24: =SUM(M15:M23) -> 0 | N24: =SUM(N15:N23) -> 0 | O24: =SUM(O15:O23) -> 0 | P24: =SUM(P15:P23) -> 0 | Q24: =SUM(Q15:Q23) -> 0 | S24: =IF(Q24=0,"",SUM(S15:S23)/Q24) ->  | V24: =SUM(V15:V23) -> 0 | W24: =ColorFunction($E$30,$E$15:$E$23) -> 0 | X24: =ColorFunction($E$31,$E$15:$E$23) -> 0 | Y24: =ColorFunction($E$32,$E$15:$E$23) -> 0 | Z24: =ColorFunction($E$33,$E$15:$E$23) -> 0 | AA24: =SUM(AA15:AA23)/(9-Q24)*100 -> 0 | AB24: =COUNTIF(P15:P23,">2") -> 0 | AC24: =IF((G24=0),"",SUM(AC15:AC23)/G24*100) -> 
B25: =SUM(B24,B14) -> 5763 | C25: =SUM(C24,C14) -> 73 | D25: TOTAL | E25: =IF(E14=0,"0",(E24+E14)) -> 0 | F25: =SUM(F14,F24) -> 0 | G25: =SUM(G24,G14) -> 0 | H25: =SUM(H24,H14) -> 0 | I25: =SUM(I24,I14) -> 0 | J25: =IF((A28=27),"",(SUM(J14,J24)/2)) ->  | K25: =IF((A28=27),"",(SUM(K14,K24)/2)) ->  | L25: =IF((A28=27),"",(SUM(L14,L24)/2)) ->  | M25: =SUM(M24,M14) -> 0 | N25: =SUM(N24,N14) -> 0 | O25: =SUM(O24,O14) -> 0 | P25: =IF(P14+P24=0,"",SUM(P24,P14)) ->  | Q25: =IF(Q14+Q24=0,"",SUM(Q24,Q14)) ->  | S25: =IF(Q25="","",SUM(S24,S14)/2) ->  | T25: =IF(N25=0,"",(O25)/N25*100) ->  | U25: =IF(Q25="","",(Q25)/18*100) ->  | V25: =IF(Q25="","",(V14+V24)/Q25) ->  | W25: =SUM(W14,W24) -> 0 | X25: =SUM(X14,X24) -> 0 | Y25: =SUM(Y14,Y24) -> 0 | Z25: =SUM(Z14,Z24) -> 0 | AA25: =SUM(AA14,AA24)/2 -> 0 | AB25: =SUM(AB14,AB24) -> 0 | AC25: =SUM(AC24,AC14)/2 -> 0
E27: Udfyld alle grønne felter med 1 for positiv eller antal i tal
A28: =COUNTBLANK(I5:K13) -> 27 | W28: Approach
A29: =COUNTBLANK(I15:K23) -> 27 | E29: Udfyld følgende farver: | S29: Holes to par | W29: Længde (m) | X29: Antal | Y29: Afstand (m)
A30: =SUM(L5:L23) -> 0 | E30: Eagles | S30: Par 3 | T30: =SUMIF(C:C,"3",E:E)/COUNTIF(C:C,3) -> 0 | W30: 45-70 | X30: =COUNTIFS(R5:R23,">=45",R5:R23,"<=70") -> 0 | Y30: =IF(X30=0,"",AVERAGEIFS(S5:S23,R5:R23,">=45",R5:R23,"<=70")) -> 
E31: Birdies | S31: Par 4 | T31: =SUMIF(C:C,"4",E:E)/COUNTIF(C:C,4) -> 0 | W31: 71-90 | X31: =COUNTIFS(R5:R23,">=71",R5:R23,"<=90") -> 0 | Y31: =IF(X31=0,"",AVERAGEIFS(S5:S23,R5:R23,">=71",R5:R23,"<=90")) -> 
E32: Bogeys | S32: Par 5 | T32: =SUMIF(C:C,"5",E:E)/COUNTIF(C:C,5) -> 0 | W32: 91-115 | X32: =COUNTIFS(R5:R23,">=91",R5:R23,"<=115") -> 0 | Y32: =IF(X32=0,"",AVERAGEIFS(S5:S23,R5:R23,">=91",R5:R23,"<=115")) -> 
E33: Doublebogeys eller værre | W33: 116-140 | X33: =COUNTIFS(R5:R23,">=116",R5:R23,"<=140") -> 0 | Y33: =IF(X33=0,"",AVERAGEIFS(S5:S23,R5:R23,">=116",R5:R23,"<=140")) -> 
S34: First 4 | T34: =IF(E25="0","",SUM(E5:E8)-SUM(C5:C8)) ->  | W34: 141-160 | X34: =COUNTIFS(R5:R23,">=141",R5:R23,"<=161") -> 0 | Y34: =IF(X34=0,"",AVERAGEIFS(S5:S23,R5:R23,">=141",R5:R23,"<=160")) -> 
S35: Last 4 | T35: =IF(E25="0","",SUM(E20:E23)-SUM(C20:C23)) ->  | W35: 161-180 | X35: =COUNTIFS(R5:R23,">=161",R5:R23,"<=180") -> 0 | Y35: =IF(X35=0,"",AVERAGEIFS(S5:S23,R5:R23,">=161",R5:R23,"<=180")) -> 
W37: Putting
W38: Længde (m) | X38: Antal | Y38: Holet | Z38: Holet (%)
W39: under 1 m | X39: =COUNTIFS(S5:S23,">=0,1",S5:S23,"<=0,9") -> 0 | Y39: =IF(X39=0,"",COUNTIFS(P5:P23,"=1",S5:S23,"<1")) ->  | Z39: =IF(X39=0,"",Y39/X39*100) -> 
W40: 1 - 1,5 | X40: =COUNTIFS(S5:S23,">=1",S5:S23,"<=1,5") -> 0 | Y40: =IF(X40=0,"",COUNTIFS(P5:P23,"=1",S5:S23,">=1",S5:S23,"<=1,5")) ->  | Z40: =IF(X40=0,"",Y40/X40*100) -> 
W41: 1,5 - 3 | X41: =COUNTIFS(S5:S23,">=1,6",S5:S23,"<=3") -> 0 | Y41: =IF(X41=0,"",COUNTIFS(P5:P23,"=1",S5:S23,">=1,6",S5:S23,"<=3")) ->  | Z41: =IF(X41=0,"",Y41/X41*100) -> 
W42: 3 - 4,5 | X42: =COUNTIFS(S5:S23,">=3,1",S5:S23,"<=4,5") -> 0 | Y42: =IF(X42=0,"",COUNTIFS(P5:P23,"=1",S5:S23,">=3,1",S5:S23,"<=4,5")) -> 
W43: 4,5 - 6 | X43: =COUNTIFS(S5:S23,">=4,6",S5:S23,"<=6") -> 0 | Y43: =IF(X43=0,"",COUNTIFS(P5:P23,"=1",S5:S23,">=4,6",S5:S23,"<=6")) -> 
W44: over 6 meter | X44: =COUNTIFS(S5:S23,">6") -> 0 | Y44: =IF(X44=0,"",COUNTIFS(P5:P23,"=1",S5:S23,">6")) -> 

Sheet Runde 26
A1: Korsør Golf Klub - 18 huller - Gul tee | J1: =IF(E25="0","0","1") -> 0 | L1: Dato: | O1: Handicap: | T1: Antal tildelte slag:
H3: Tee shot | K3: Fairway hits i % | N3: Bunker | R3: Approach shots
A4: Hul | B4: Gul tee | C4: Par | D4: HCP | E4: Score | F4: Netto | G4: Driver | H4: Wood | I4: Jern | J4: Venstre | K4: Midt | L4: Højre | M4: FB | N4: GB | O4: SS | P4: Putts | Q4: GIR | R4: Dist. to pin (m) | S4: Dist. to hole (m) | T4: % SS | U4: % GIR | V4: Putts/GIR | W4: Eagles | X4: Birdies | Y4: Bogeys | Z4: Værre | AA4: % Scramble | AB4: 3+ Putts | AC4: % Driver/Fairwayhits
A5: 1 | B5: 307 | C5: 4 | D5: 11 | V5: =IF(Q5=0,"",P5) ->  | AA5: =IF(AND(Q5="",P5=1),1,"") ->  | AC5: =IF(AND(G5=""),"",SUM(K5)) -> 
A6: 2 | B6: 323 | C6: 4 | D6: 5
A7: 3 | B7: 138 | C7: 3 | D7: 15
A8: 4 | B8: 310 | C8: 4 | D8: 13
A9: 5 | B9: 431 | C9: 5 | D9: 3
A10: 6 | B10: 312 | C10: 4 | D10: 9
A11: 7 | B11: 498 | C11: 5 | D11: 1
A12: 8 | B12: 138 | C12: 3 | D12: 17
A13: 9 | B13: 310 | C13: 4 | D13: 7
B14: =SUM(B5:B13) -> 2767 | C14: =SUM(C5:C13) -> 36 | D14: UD | E14: =SUM(E5:E13) -> 0 | F14: =SUM(F5:F13) -> 0 | G14: =SUM(G5:G13) -> 0 | H14: =SUM(H5:H13) -> 0 | I14: =SUM(I5:I13) -> 0 | J14: =IF((A28=27),"",(SUM(J5:J13)/SUM(J5:L13))*100) ->  | K14: =IF((A28=27),"",(SUM(K5:K13)/SUM(J5:L13))*100) ->  | L14: =IF((A28=27),"",(SUM(L5:L13)/SUM(J5:L13))*100) ->  | M14: =SUM(M5:M13) -> 0 | N14: =SUM(N5:N13) -> 0 | O14: =SUM(O5:O13) -> 0 | P14: =SUM(P5:P13) -> 0 | Q14: =SUM(Q5:Q13) -> 0 | S14: =IF(Q14=0,"",SUM(S5:S13)/Q14) ->  | V14: =SUM(V5:V13) -> 0 | W14: =ColorFunction($E$30,$E$5:$E$13) -> 0 | X14: =ColorFunction($E$31,$E$5:$E$13) -> 0 | Y14: =ColorFunction($E$32,$E$5:$E$13) -> 0 | Z14: =ColorFunction($E$33,$E$5:$E$13) -> 0 | AA14: =SUM(AA5:AA13)/(9-Q14)*100 -> 0 | AB14: =COUNTIF(P5:P13,">2") -> 0 | AC14: =IF((G14=0),"",SUM(AC5:AC13)/G14*100) -> 
A15: 10 | B15: 481 | C15: 5 | D15: 4 | V15: =IF(Q15=0,"",P15) ->  | AA15: =IF(AND(Q15="",P15=1),1,"") ->  | AC15: =IF(AND(G15=""),"",SUM(K15)) -> 
A16: 11 | B16: 319 | C16: 4 | D16: 16
A17: 12 | B17: 431 | C17: 5 | D17: 2
A18: 13 | B18: 122 | C18: 3 | D18: 18
A19: 14 | B19: 379 | C19: 4 | D19: 6
A20: 15 | B20: 316 | C20: 4 | D20: 8
A21: 16 | B21: 322 | C21: 4 | D21: 14
A22: 17 | B22: 345 | C22: 4 | D22: 10
A23: 18 | B23: 281 | C23: 4 | D23: 12
B24: =SUM(B15:B23) -> 2996 | C24: =SUM(C15:C23) -> 37 | D24: IND | E24: =SUM(E15:E23) -> 0 | F24: =SUM(F15:F23) -> 0 | G24: =SUM(G15:G23) -> 0 | H24: =SUM(H15:H23) -> 0 | I24: =SUM(I15:I23) -> 0 | J24: =IF((A29=27),"",(SUM(J15:J23)/SUM(J15:L23))*100) ->  | K24: =IF((A29=27),"",(SUM(K15:K23)/SUM(J15:L23))*100) ->  | L24: =IF((A29=27),"",(SUM(L15:L23)/SUM(J15:L23))*100) ->  | M24: =SUM(M15:M23) -> 0 | N24: =SUM(N15:N23) -> 0 | O24: =SUM(O15:O23) -> 0 | P24: =SUM(P15:P23) -> 0 | Q24: =SUM(Q15:Q23) -> 0 | S24: =IF(Q24=0,"",SUM(S15:S23)/Q24) ->  | V24: =SUM(V15:V23) -> 0 | W24: =ColorFunction($E$30,$E$15:$E$23) -> 0 | X24: =ColorFunction($E$31,$E$15:$E$23) -> 0 | Y24: =ColorFunction($E$32,$E$15:$E$23) -> 0 | Z24: =ColorFunction($E$33,$E$15:$E$23) -> 0 | AA24: =SUM(AA15:AA23)/(9-Q24)*100 -> 0 | AB24: =COUNTIF(P15:P23,">2") -> 0 | AC24: =IF((G24=0),"",SUM(AC15:AC23)/G24*100) -> 
B25: =SUM(B24,B14) -> 5763 | C25: =SUM(C24,C14) -> 73 | D25: TOTAL | E25: =IF(E14=0,"0",(E24+E14)) -> 0 | F25: =SUM(F14,F24) -> 0 | G25: =SUM(G24,G14) -> 0 | H25: =SUM(H24,H14) -> 0 | I25: =SUM(I24,I14) -> 0 | J25: =IF((A28=27),"",(SUM(J14,J24)/2)) ->  | K25: =IF((A28=27),"",(SUM(K14,K24)/2)) ->  | L25: =IF((A28=27),"",(SUM(L14,L24)/2)) ->  | M25: =SUM(M24,M14) -> 0 | N25: =SUM(N24,N14) -> 0 | O25: =SUM(O24,O14) -> 0 | P25: =IF(P14+P24=0,"",SUM(P24,P14)) ->  | Q25: =IF(Q14+Q24=0,"",SUM(Q24,Q14)) ->  | S25: =IF(Q25="","",SUM(S24,S14)/2) ->  | T25: =IF(N25=0,"",(O25)/N25*100) ->  | U25: =IF(Q25="","",(Q25)/18*100) ->  | V25: =IF(Q25="","",(V14+V24)/Q25) ->  | W25: =SUM(W14,W24) -> 0 | X25: =SUM(X14,X24) -> 0 | Y25: =SUM(Y14,Y24) -> 0 | Z25: =SUM(Z14,Z24) -> 0 | AA25: =SUM(AA14,AA24)/2 -> 0 | AB25: =SUM(AB14,AB24) -> 0 | AC25: =SUM(AC24,AC14)/2 -> 0
E27: Udfyld alle grønne felter med 1 for positiv eller antal i tal
A28: =COUNTBLANK(I5:K13) -> 27 | W28: Approach
A29: =COUNTBLANK(I15:K23) -> 27 | E29: Udfyld følgende farver: | S29: Holes to par | W29: Længde (m) | X29: Antal | Y29: Afstand (m)
A30: =SUM(L5:L23) -> 0 | E30: Eagles | S30: Par 3 | T30: =SUMIF(C:C,"3",E:E)/COUNTIF(C:C,3) -> 0 | W30: 45-70 | X30: =COUNTIFS(R5:R23,">=45",R5:R23,"<=70") -> 0 | Y30: =IF(X30=0,"",AVERAGEIFS(S5:S23,R5:R23,">=45",R5:R23,"<=70")) -> 
E31: Birdies | S31: Par 4 | T31: =SUMIF(C:C,"4",E:E)/COUNTIF(C:C,4) -> 0 | W31: 71-90 | X31: =COUNTIFS(R5:R23,">=71",R5:R23,"<=90") -> 0 | Y31: =IF(X31=0,"",AVERAGEIFS(S5:S23,R5:R23,">=71",R5:R23,"<=90")) -> 
E32: Bogeys | S32: Par 5 | T32: =SUMIF(C:C,"5",E:E)/COUNTIF(C:C,5) -> 0 | W32: 91-115 | X32: =COUNTIFS(R5:R23,">=91",R5:R23,"<=115") -> 0 | Y32: =IF(X32=0,"",AVERAGEIFS(S5:S23,R5:R23,">=91",R5:R23,"<=115")) -> 
E33: Doublebogeys eller værre | W33: 116-140 | X33: =COUNTIFS(R5:R23,">=116",R5:R23,"<=140") -> 0 | Y33: =IF(X33=0,"",AVERAGEIFS(S5:S23,R5:R23,">=116",R5:R23,"<=140")) -> 
S34: First 4 | T34: =IF(E25="0","",SUM(E5:E8)-SUM(C5:C8)) ->  | W34: 141-160 | X34: =COUNTIFS(R5:R23,">=141",R5:R23,"<=161") -> 0 | Y34: =IF(X34=0,"",AVERAGEIFS(S5:S23,R5:R23,">=141",R5:R23,"<=160")) -> 
S35: Last 4 | T35: =IF(E25="0","",SUM(E20:E23)-SUM(C20:C23)) ->  | W35: 161-180 | X35: =COUNTIFS(R5:R23,">=161",R5:R23,"<=180") -> 0 | Y35: =IF(X35=0,"",AVERAGEIFS(S5:S23,R5:R23,">=161",R5:R23,"<=180")) -> 
W37: Putting
W38: Længde (m) | X38: Antal | Y38: Holet | Z38: Holet (%)
W39: under 1 m | X39: =COUNTIFS(S5:S23,">=0,1",S5:S23,"<=0,9") -> 0 | Y39: =IF(X39=0,"",COUNTIFS(P5:P23,"=1",S5:S23,"<1")) ->  | Z39: =IF(X39=0,"",Y39/X39*100) -> 
W40: 1 - 1,5 | X40: =COUNTIFS(S5:S23,">=1",S5:S23,"<=1,5") -> 0 | Y40: =IF(X40=0,"",COUNTIFS(P5:P23,"=1",S5:S23,">=1",S5:S23,"<=1,5")) ->  | Z40: =IF(X40=0,"",Y40/X40*100) -> 
W41: 1,5 - 3 | X41: =COUNTIFS(S5:S23,">=1,6",S5:S23,"<=3") -> 0 | Y41: =IF(X41=0,"",COUNTIFS(P5:P23,"=1",S5:S23,">=1,6",S5:S23,"<=3")) ->  | Z41: =IF(X41=0,"",Y41/X41*100) -> 
W42: 3 - 4,5 | X42: =COUNTIFS(S5:S23,">=3,1",S5:S23,"<=4,5") -> 0 | Y42: =IF(X42=0,"",COUNTIFS(P5:P23,"=1",S5:S23,">=3,1",S5:S23,"<=4,5")) -> 
W43: 4,5 - 6 | X43: =COUNTIFS(S5:S23,">=4,6",S5:S23,"<=6") -> 0 | Y43: =IF(X43=0,"",COUNTIFS(P5:P23,"=1",S5:S23,">=4,6",S5:S23,"<=6")) -> 
W44: over 6 meter | X44: =COUNTIFS(S5:S23,">6") -> 0 | Y44: =IF(X44=0,"",COUNTIFS(P5:P23,"=1",S5:S23,">6")) -> 

Sheet Runde 27
A1: Korsør Golf Klub - 18 huller - Gul tee | J1: =IF(E25="0","0","1") -> 0 | L1: Dato: | O1: Handicap: | T1: Antal tildelte slag:
H3: Tee shot | K3: Fairway hits i % | N3: Bunker | R3: Approach shots
A4: Hul | B4: Gul tee | C4: Par | D4: HCP | E4: Score | F4: Netto | G4: Driver | H4: Wood | I4: Jern | J4: Venstre | K4: Midt | L4: Højre | M4: FB | N4: GB | O4: SS | P4: Putts | Q4: GIR | R4: Dist. to pin (m) | S4: Dist. to hole (m) | T4: % SS | U4: % GIR | V4: Putts/GIR | W4: Eagles | X4: Birdies | Y4: Bogeys | Z4: Værre | AA4: % Scramble | AB4: 3+ Putts | AC4: % Driver/Fairwayhits
A5: 1 | B5: 307 | C5: 4 | D5: 11 | V5: =IF(Q5=0,"",P5) ->  | AA5: =IF(AND(Q5="",P5=1),1,"") ->  | AC5: =IF(AND(G5=""),"",SUM(K5)) -> 
A6: 2 | B6: 323 | C6: 4 | D6: 5
A7: 3 | B7: 138 | C7: 3 | D7: 15
A8: 4 | B8: 310 | C8: 4 | D8: 13
A9: 5 | B9: 431 | C9: 5 | D9: 3
A10: 6 | B10: 312 | C10: 4 | D10: 9
A11: 7 | B11: 498 | C11: 5 | D11: 1
A12: 8 | B12: 138 | C12: 3 | D12: 17
A13: 9 | B13: 310 | C13: 4 | D13: 7
B14: =SUM(B5:B13) -> 2767 | C14: =SUM(C5:C13) -> 36 | D14: UD | E14: =SUM(E5:E13) -> 0 | F14: =SUM(F5:F13) -> 0 | G14: =SUM(G5:G13) -> 0 | H14: =SUM(H5:H13) -> 0 | I14: =SUM(I5:I13) -> 0 | J14: =IF((A28=27),"",(SUM(J5:J13)/SUM(J5:L13))*100) ->  | K14: =IF((A28=27),"",(SUM(K5:K13)/SUM(J5:L13))*100) ->  | L14: =IF((A28=27),"",(SUM(L5:L13)/SUM(J5:L13))*100) ->  | M14: =SUM(M5:M13) -> 0 | N14: =SUM(N5:N13) -> 0 | O14: =SUM(O5:O13) -> 0 | P14: =SUM(P5:P13) -> 0 | Q14: =SUM(Q5:Q13) -> 0 | S14: =IF(Q14=0,"",SUM(S5:S13)/Q14) ->  | V14: =SUM(V5:V13) -> 0 | W14: =ColorFunction($E$30,$E$5:$E$13) -> 0 | X14: =ColorFunction($E$31,$E$5:$E$13) -> 0 | Y14: =ColorFunction($E$32,$E$5:$E$13) -> 0 | Z14: =ColorFunction($E$33,$E$5:$E$13) -> 0 | AA14: =SUM(AA5:AA13)/(9-Q14)*100 -> 0 | AB14: =COUNTIF(P5:P13,">2") -> 0 | AC14: =IF((G14=0),"",SUM(AC5:AC13)/G14*100) -> 
A15: 10 | B15: 481 | C15: 5 | D15: 4 | V15: =IF(Q15=0,"",P15) ->  | AA15: =IF(AND(Q15="",P15=1),1,"") ->  | AC15: =IF(AND(G15=""),"",SUM(K15)) -> 
A16: 11 | B16: 319 | C16: 4 | D16: 16
A17: 12 | B17: 431 | C17: 5 | D17: 2
A18: 13 | B18: 122 | C18: 3 | D18: 18
A19: 14 | B19: 379 | C19: 4 | D19: 6
A20: 15 | B20: 316 | C20: 4 | D20: 8
A21: 16 | B21: 322 | C21: 4 | D21: 14
A22: 17 | B22: 345 | C22: 4 | D22: 10
A23: 18 | B23: 281 | C23: 4 | D23: 12
B24: =SUM(B15:B23) -> 2996 | C24: =SUM(C15:C23) -> 37 | D24: IND | E24: =SUM(E15:E23) -> 0 | F24: =SUM(F15:F23) -> 0 | G24: =SUM(G15:G23) -> 0 | H24: =SUM(H15:H23) -> 0 | I24: =SUM(I15:I23) -> 0 | J24: =IF((A29=27),"",(SUM(J15:J23)/SUM(J15:L23))*100) ->  | K24: =IF((A29=27),"",(SUM(K15:K23)/SUM(J15:L23))*100) ->  | L24: =IF((A29=27),"",(SUM(L15:L23)/SUM(J15:L23))*100) ->  | M24: =SUM(M15:M23) -> 0 | N24: =SUM(N15:N23) -> 0 | O24: =SUM(O15:O23) -> 0 | P24: =SUM(P15:P23) -> 0 | Q24: =SUM(Q15:Q23) -> 0 | S24: =IF(Q24=0,"",SUM(S15:S23)/Q24) ->  | V24: =SUM(V15:V23) -> 0 | W24: =ColorFunction($E$30,$E$15:$E$23) -> 0 | X24: =ColorFunction($E$31,$E$15:$E$23) -> 0 | Y24: =ColorFunction($E$32,$E$15:$E$23) -> 0 | Z24: =ColorFunction($E$33,$E$15:$E$23) -> 0 | AA24: =SUM(AA15:AA23)/(9-Q24)*100 -> 0 | AB24: =COUNTIF(P15:P23,">2") -> 0 | AC24: =IF((G24=0),"",SUM(AC15:AC23)/G24*100) -> 
B25: =SUM(B24,B14) -> 5763 | C25: =SUM(C24,C14) -> 73 | D25: TOTAL | E25: =IF(E14=0,"0",(E24+E14)) -> 0 | F25: =SUM(F14,F24) -> 0 | G25: =SUM(G24,G14) -> 0 | H25: =SUM(H24,H14) -> 0 | I25: =SUM(I24,I14) -> 0 | J25: =IF((A28=27),"",(SUM(J14,J24)/2)) ->  | K25: =IF((A28=27),"",(SUM(K14,K24)/2)) ->  | L25: =IF((A28=27),"",(SUM(L14,L24)/2)) ->  | M25: =SUM(M24,M14) -> 0 | N25: =SUM(N24,N14) -> 0 | O25: =SUM(O24,O14) -> 0 | P25: =IF(P14+P24=0,"",SUM(P24,P14)) ->  | Q25: =IF(Q14+Q24=0,"",SUM(Q24,Q14)) ->  | S25: =IF(Q25="","",SUM(S24,S14)/2) ->  | T25: =IF(N25=0,"",(O25)/N25*100) ->  | U25: =IF(Q25="","",(Q25)/18*100) ->  | V25: =IF(Q25="","",(V14+V24)/Q25) ->  | W25: =SUM(W14,W24) -> 0 | X25: =SUM(X14,X24) -> 0 | Y25: =SUM(Y14,Y24) -> 0 | Z25: =SUM(Z14,Z24) -> 0 | AA25: =SUM(AA14,AA24)/2 -> 0 | AB25: =SUM(AB14,AB24) -> 0 | AC25: =SUM(AC24,AC14)/2 -> 0
E27: Udfyld alle grønne felter med 1 for positiv eller antal i tal
A28: =COUNTBLANK(I5:K13) -> 27 | W28: Approach
A29: =COUNTBLANK(I15:K23) -> 27 | E29: Udfyld følgende farver: | S29: Holes to par | W29: Længde (m) | X29: Antal | Y29: Afstand (m)
A30: =SUM(L5:L23) -> 0 | E30: Eagles | S30: Par 3 | T30: =SUMIF(C:C,"3",E:E)/COUNTIF(C:C,3) -> 0 | W30: 45-70 | X30: =COUNTIFS(R5:R23,">=45",R5:R23,"<=70") -> 0 | Y30: =IF(X30=0,"",AVERAGEIFS(S5:S23,R5:R23,">=45",R5:R23,"<=70")) -> 
E31: Birdies | S31: Par 4 | T31: =SUMIF(C:C,"4",E:E)/COUNTIF(C:C,4) -> 0 | W31: 71-90 | X31: =COUNTIFS(R5:R23,">=71",R5:R23,"<=90") -> 0 | Y31: =IF(X31=0,"",AVERAGEIFS(S5:S23,R5:R23,">=71",R5:R23,"<=90")) -> 
E32: Bogeys | S32: Par 5 | T32: =SUMIF(C:C,"5",E:E)/COUNTIF(C:C,5) -> 0 | W32: 91-115 | X32: =COUNTIFS(R5:R23,">=91",R5:R23,"<=115") -> 0 | Y32: =IF(X32=0,"",AVERAGEIFS(S5:S23,R5:R23,">=91",R5:R23,"<=115")) -> 
E33: Doublebogeys eller værre | W33: 116-140 | X33: =COUNTIFS(R5:R23,">=116",R5:R23,"<=140") -> 0 | Y33: =IF(X33=0,"",AVERAGEIFS(S5:S23,R5:R23,">=116",R5:R23,"<=140")) -> 
S34: First 4 | T34: =IF(E25="0","",SUM(E5:E8)-SUM(C5:C8)) ->  | W34: 141-160 | X34: =COUNTIFS(R5:R23,">=141",R5:R23,"<=161") -> 0 | Y34: =IF(X34=0,"",AVERAGEIFS(S5:S23,R5:R23,">=141",R5:R23,"<=160")) -> 
S35: Last 4 | T35: =IF(E25="0","",SUM(E20:E23)-SUM(C20:C23)) ->  | W35: 161-180 | X35: =COUNTIFS(R5:R23,">=161",R5:R23,"<=180") -> 0 | Y35: =IF(X35=0,"",AVERAGEIFS(S5:S23,R5:R23,">=161",R5:R23,"<=180")) -> 
W37: Putting
W38: Længde (m) | X38: Antal | Y38: Holet | Z38: Holet (%)
W39: under 1 m | X39: =COUNTIFS(S5:S23,">=0,1",S5:S23,"<=0,9") -> 0 | Y39: =IF(X39=0,"",COUNTIFS(P5:P23,"=1",S5:S23,"<1")) ->  | Z39: =IF(X39=0,"",Y39/X39*100) -> 
W40: 1 - 1,5 | X40: =COUNTIFS(S5:S23,">=1",S5:S23,"<=1,5") -> 0 | Y40: =IF(X40=0,"",COUNTIFS(P5:P23,"=1",S5:S23,">=1",S5:S23,"<=1,5")) ->  | Z40: =IF(X40=0,"",Y40/X40*100) -> 
W41: 1,5 - 3 | X41: =COUNTIFS(S5:S23,">=1,6",S5:S23,"<=3") -> 0 | Y41: =IF(X41=0,"",COUNTIFS(P5:P23,"=1",S5:S23,">=1,6",S5:S23,"<=3")) ->  | Z41: =IF(X41=0,"",Y41/X41*100) -> 
W42: 3 - 4,5 | X42: =COUNTIFS(S5:S23,">=3,1",S5:S23,"<=4,5") -> 0 | Y42: =IF(X42=0,"",COUNTIFS(P5:P23,"=1",S5:S23,">=3,1",S5:S23,"<=4,5")) -> 
W43: 4,5 - 6 | X43: =COUNTIFS(S5:S23,">=4,6",S5:S23,"<=6") -> 0 | Y43: =IF(X43=0,"",COUNTIFS(P5:P23,"=1",S5:S23,">=4,6",S5:S23,"<=6")) -> 
W44: over 6 meter | X44: =COUNTIFS(S5:S23,">6") -> 0 | Y44: =IF(X44=0,"",COUNTIFS(P5:P23,"=1",S5:S23,">6")) -> 

Sheet Runde 28
A1: Korsør Golf Klub - 18 huller - Gul tee | J1: =IF(E25="0","0","1") -> 0 | L1: Dato: | O1: Handicap: | T1: Antal tildelte slag:
H3: Tee shot | K3: Fairway hits i % | N3: Bunker | R3: Approach shots
A4: Hul | B4: Gul tee | C4: Par | D4: HCP | E4: Score | F4: Netto | G4: Driver | H4: Wood | I4: Jern | J4: Venstre | K4: Midt | L4: Højre | M4: FB | N4: GB | O4: SS | P4: Putts | Q4: GIR | R4: Dist. to pin (m) | S4: Dist. to hole (m) | T4: % SS | U4: % GIR | V4: Putts/GIR | W4: Eagles | X4: Birdies | Y4: Bogeys | Z4: Værre | AA4: % Scramble | AB4: 3+ Putts | AC4: % Driver/Fairwayhits
A5: 1 | B5: 307 | C5: 4 | D5: 11 | V5: =IF(Q5=0,"",P5) ->  | AA5: =IF(AND(Q5="",P5=1),1,"") ->  | AC5: =IF(AND(G5=""),"",SUM(K5)) -> 
A6: 2 | B6: 323 | C6: 4 | D6: 5
A7: 3 | B7: 138 | C7: 3 | D7: 15
A8: 4 | B8: 310 | C8: 4 | D8: 13
A9: 5 | B9: 431 | C9: 5 | D9: 3
A10: 6 | B10: 312 | C10: 4 | D10: 9
A11: 7 | B11: 498 | C11: 5 | D11: 1
A12: 8 | B12: 138 | C12: 3 | D12: 17
A13: 9 | B13: 310 | C13: 4 | D13: 7
B14: =SUM(B5:B13) -> 2767 | C14: =SUM(C5:C13) -> 36 | D14: UD | E14: =SUM(E5:E13) -> 0 | F14: =SUM(F5:F13) -> 0 | G14: =SUM(G5:G13) -> 0 | H14: =SUM(H5:H13) -> 0 | I14: =SUM(I5:I13) -> 0 | J14: =IF((A28=27),"",(SUM(J5:J13)/SUM(J5:L13))*100) ->  | K14: =IF((A28=27),"",(SUM(K5:K13)/SUM(J5:L13))*100) ->  | L14: =IF((A28=27),"",(SUM(L5:L13)/SUM(J5:L13))*100) ->  | M14: =SUM(M5:M13) -> 0 | N14: =SUM(N5:N13) -> 0 | O14: =SUM(O5:O13) -> 0 | P14: =SUM(P5:P13) -> 0 | Q14: =SUM(Q5:Q13) -> 0 | S14: =IF(Q14=0,"",SUM(S5:S13)/Q14) ->  | V14: =SUM(V5:V13) -> 0 | W14: =ColorFunction($E$30,$E$5:$E$13) -> 0 | X14: =ColorFunction($E$31,$E$5:$E$13) -> 0 | Y14: =ColorFunction($E$32,$E$5:$E$13) -> 0 | Z14: =ColorFunction($E$33,$E$5:$E$13) -> 0 | AA14: =SUM(AA5:AA13)/(9-Q14)*100 -> 0 | AB14: =COUNTIF(P5:P13,">2") -> 0 | AC14: =IF((G14=0),"",SUM(AC5:AC13)/G14*100) -> 
A15: 10 | B15: 481 | C15: 5 | D15: 4 | V15: =IF(Q15=0,"",P15) ->  | AA15: =IF(AND(Q15="",P15=1),1,"") ->  | AC15: =IF(AND(G15=""),"",SUM(K15)) -> 
A16: 11 | B16: 319 | C16: 4 | D16: 16
A17: 12 | B17: 431 | C17: 5 | D17: 2
A18: 13 | B18: 122 | C18: 3 | D18: 18
A19: 14 | B19: 379 | C19: 4 | D19: 6
A20: 15 | B20: 316 | C20: 4 | D20: 8
A21: 16 | B21: 322 | C21: 4 | D21: 14
A22: 17 | B22: 345 | C22: 4 | D22: 10
A23: 18 | B23: 281 | C23: 4 | D23: 12
B24: =SUM(B15:B23) -> 2996 | C24: =SUM(C15:C23) -> 37 | D24: IND | E24: =SUM(E15:E23) -> 0 | F24: =SUM(F15:F23) -> 0 | G24: =SUM(G15:G23) -> 0 | H24: =SUM(H15:H23) -> 0 | I24: =SUM(I15:I23) -> 0 | J24: =IF((A29=27),"",(SUM(J15:J23)/SUM(J15:L23))*100) ->  | K24: =IF((A29=27),"",(SUM(K15:K23)/SUM(J15:L23))*100) ->  | L24: =IF((A29=27),"",(SUM(L15:L23)/SUM(J15:L23))*100) ->  | M24: =SUM(M15:M23) -> 0 | N24: =SUM(N15:N23) -> 0 | O24: =SUM(O15:O23) -> 0 | P24: =SUM(P15:P23) -> 0 | Q24: =SUM(Q15:Q23) -> 0 | S24: =IF(Q24=0,"",SUM(S15:S23)/Q24) ->  | V24: =SUM(V15:V23) -> 0 | W24: =ColorFunction($E$30,$E$15:$E$23) -> 0 | X24: =ColorFunction($E$31,$E$15:$E$23) -> 0 | Y24: =ColorFunction($E$32,$E$15:$E$23) -> 0 | Z24: =ColorFunction($E$33,$E$15:$E$23) -> 0 | AA24: =SUM(AA15:AA23)/(9-Q24)*100 -> 0 | AB24: =COUNTIF(P15:P23,">2") -> 0 | AC24: =IF((G24=0),"",SUM(AC15:AC23)/G24*100) -> 
B25: =SUM(B24,B14) -> 5763 | C25: =SUM(C24,C14) -> 73 | D25: TOTAL | E25: =IF(E14=0,"0",(E24+E14)) -> 0 | F25: =SUM(F14,F24) -> 0 | G25: =SUM(G24,G14) -> 0 | H25: =SUM(H24,H14) -> 0 | I25: =SUM(I24,I14) -> 0 | J25: =IF((A28=27),"",(SUM(J14,J24)/2)) ->  | K25: =IF((A28=27),"",(SUM(K14,K24)/2)) ->  | L25: =IF((A28=27),"",(SUM(L14,L24)/2)) ->  | M25: =SUM(M24,M14) -> 0 | N25: =SUM(N24,N14) -> 0 | O25: =SUM(O24,O14) -> 0 | P25: =IF(P14+P24=0,"",SUM(P24,P14)) ->  | Q25: =IF(Q14+Q24=0,"",SUM(Q24,Q14)) ->  | S25: =IF(Q25="","",SUM(S24,S14)/2) ->  | T25: =IF(N25=0,"",(O25)/N25*100) ->  | U25: =IF(Q25="","",(Q25)/18*100) ->  | V25: =IF(Q25="","",(V14+V24)/Q25) ->  | W25: =SUM(W14,W24) -> 0 | X25: =SUM(X14,X24) -> 0 | Y25: =SUM(Y14,Y24) -> 0 | Z25: =SUM(Z14,Z24) -> 0 | AA25: =SUM(AA14,AA24)/2 -> 0 | AB25: =SUM(AB14,AB24) -> 0 | AC25: =SUM(AC24,AC14)/2 -> 0
E27: Udfyld alle grønne felter med 1 for positiv eller antal i tal
A28: =COUNTBLANK(I5:K13) -> 27 | W28: Approach
A29: =COUNTBLANK(I15:K23) -> 27 | E29: Udfyld følgende farver: | S29: Holes to par | W29: Længde (m) | X29: Antal | Y29: Afstand (m)
A30: =SUM(L5:L23) -> 0 | E30: Eagles | S30: Par 3 | T30: =SUMIF(C:C,"3",E:E)/COUNTIF(C:C,3) -> 0 | W30: 45-70 | X30: =COUNTIFS(R5:R23,">=45",R5:R23,"<=70") -> 0 | Y30: =IF(X30=0,"",AVERAGEIFS(S5:S23,R5:R23,">=45",R5:R23,"<=70")) -> 
E31: Birdies | S31: Par 4 | T31: =SUMIF(C:C,"4",E:E)/COUNTIF(C:C,4) -> 0 | W31: 71-90 | X31: =COUNTIFS(R5:R23,">=71",R5:R23,"<=90") -> 0 | Y31: =IF(X31=0,"",AVERAGEIFS(S5:S23,R5:R23,">=71",R5:R23,"<=90")) -> 
E32: Bogeys | S32: Par 5 | T32: =SUMIF(C:C,"5",E:E)/COUNTIF(C:C,5) -> 0 | W32: 91-115 | X32: =COUNTIFS(R5:R23,">=91",R5:R23,"<=115") -> 0 | Y32: =IF(X32=0,"",AVERAGEIFS(S5:S23,R5:R23,">=91",R5:R23,"<=115")) -> 
E33: Doublebogeys eller værre | W33: 116-140 | X33: =COUNTIFS(R5:R23,">=116",R5:R23,"<=140") -> 0 | Y33: =IF(X33=0,"",AVERAGEIFS(S5:S23,R5:R23,">=116",R5:R23,"<=140")) -> 
S34: First 4 | T34: =IF(E25="0","",SUM(E5:E8)-SUM(C5:C8)) ->  | W34: 141-160 | X34: =COUNTIFS(R5:R23,">=141",R5:R23,"<=161") -> 0 | Y34: =IF(X34=0,"",AVERAGEIFS(S5:S23,R5:R23,">=141",R5:R23,"<=160")) -> 
S35: Last 4 | T35: =IF(E25="0","",SUM(E20:E23)-SUM(C20:C23)) ->  | W35: 161-180 | X35: =COUNTIFS(R5:R23,">=161",R5:R23,"<=180") -> 0 | Y35: =IF(X35=0,"",AVERAGEIFS(S5:S23,R5:R23,">=161",R5:R23,"<=180")) -> 
W37: Putting
W38: Længde (m) | X38: Antal | Y38: Holet | Z38: Holet (%)
W39: under 1 m | X39: =COUNTIFS(S5:S23,">=0,1",S5:S23,"<=0,9") -> 0 | Y39: =IF(X39=0,"",COUNTIFS(P5:P23,"=1",S5:S23,"<1")) ->  | Z39: =IF(X39=0,"",Y39/X39*100) -> 
W40: 1 - 1,5 | X40: =COUNTIFS(S5:S23,">=1",S5:S23,"<=1,5") -> 0 | Y40: =IF(X40=0,"",COUNTIFS(P5:P23,"=1",S5:S23,">=1",S5:S23,"<=1,5")) ->  | Z40: =IF(X40=0,"",Y40/X40*100) -> 
W41: 1,5 - 3 | X41: =COUNTIFS(S5:S23,">=1,6",S5:S23,"<=3") -> 0 | Y41: =IF(X41=0,"",COUNTIFS(P5:P23,"=1",S5:S23,">=1,6",S5:S23,"<=3")) ->  | Z41: =IF(X41=0,"",Y41/X41*100) -> 
W42: 3 - 4,5 | X42: =COUNTIFS(S5:S23,">=3,1",S5:S23,"<=4,5") -> 0 | Y42: =IF(X42=0,"",COUNTIFS(P5:P23,"=1",S5:S23,">=3,1",S5:S23,"<=4,5")) -> 
W43: 4,5 - 6 | X43: =COUNTIFS(S5:S23,">=4,6",S5:S23,"<=6") -> 0 | Y43: =IF(X43=0,"",COUNTIFS(P5:P23,"=1",S5:S23,">=4,6",S5:S23,"<=6")) -> 
W44: over 6 meter | X44: =COUNTIFS(S5:S23,">6") -> 0 | Y44: =IF(X44=0,"",COUNTIFS(P5:P23,"=1",S5:S23,">6")) -> 

Sheet Runde 29
A1: Korsør Golf Klub - 18 huller - Gul tee | J1: =IF(E25="0","0","1") -> 0 | L1: Dato: | O1: Handicap: | T1: Antal tildelte slag:
H3: Tee shot | K3: Fairway hits i % | N3: Bunker | R3: Approach shots
A4: Hul | B4: Gul tee | C4: Par | D4: HCP | E4: Score | F4: Netto | G4: Driver | H4: Wood | I4: Jern | J4: Venstre | K4: Midt | L4: Højre | M4: FB | N4: GB | O4: SS | P4: Putts | Q4: GIR | R4: Dist. to pin (m) | S4: Dist. to hole (m) | T4: % SS | U4: % GIR | V4: Putts/GIR | W4: Eagles | X4: Birdies | Y4: Bogeys | Z4: Værre | AA4: % Scramble | AB4: 3+ Putts | AC4: % Driver/Fairwayhits
A5: 1 | B5: 307 | C5: 4 | D5: 11 | V5: =IF(Q5=0,"",P5) ->  | AA5: =IF(AND(Q5="",P5=1),1,"") ->  | AC5: =IF(AND(G5=""),"",SUM(K5)) -> 
A6: 2 | B6: 323 | C6: 4 | D6: 5
A7: 3 | B7: 138 | C7: 3 | D7: 15
A8: 4 | B8: 310 | C8: 4 | D8: 13
A9: 5 | B9: 431 | C9: 5 | D9: 3
A10: 6 | B10: 312 | C10: 4 | D10: 9
A11: 7 | B11: 498 | C11: 5 | D11: 1
A12: 8 | B12: 138 | C12: 3 | D12: 17
A13: 9 | B13: 310 | C13: 4 | D13: 7
B14: =SUM(B5:B13) -> 2767 | C14: =SUM(C5:C13) -> 36 | D14: UD | E14: =SUM(E5:E13) -> 0 | F14: =SUM(F5:F13) -> 0 | G14: =SUM(G5:G13) -> 0 | H14: =SUM(H5:H13) -> 0 | I14: =SUM(I5:I13) -> 0 | J14: =IF((A28=27),"",(SUM(J5:J13)/SUM(J5:L13))*100) ->  | K14: =IF((A28=27),"",(SUM(K5:K13)/SUM(J5:L13))*100) ->  | L14: =IF((A28=27),"",(SUM(L5:L13)/SUM(J5:L13))*100) ->  | M14: =SUM(M5:M13) -> 0 | N14: =SUM(N5:N13) -> 0 | O14: =SUM(O5:O13) -> 0 | P14: =SUM(P5:P13) -> 0 | Q14: =SUM(Q5:Q13) -> 0 | S14: =IF(Q14=0,"",SUM(S5:S13)/Q14) ->  | V14: =SUM(V5:V13) -> 0 | W14: =ColorFunction($E$30,$E$5:$E$13) -> 0 | X14: =ColorFunction($E$31,$E$5:$E$13) -> 0 | Y14: =ColorFunction($E$32,$E$5:$E$13) -> 0 | Z14: =ColorFunction($E$33,$E$5:$E$13) -> 0 | AA14: =SUM(AA5:AA13)/(9-Q14)*100 -> 0 | AB14: =COUNTIF(P5:P13,">2") -> 0 | AC14: =IF((G14=0),"",SUM(AC5:AC13)/G14*100) -> 
A15: 10 | B15: 481 | C15: 5 | D15: 4 | V15: =IF(Q15=0,"",P15) ->  | AA15: =IF(AND(Q15="",P15=1),1,"") ->  | AC15: =IF(AND(G15=""),"",SUM(K15)) -> 
A16: 11 | B16: 319 | C16: 4 | D16: 16
A17: 12 | B17: 431 | C17: 5 | D17: 2
A18: 13 | B18: 122 | C18: 3 | D18: 18
A19: 14 | B19: 379 | C19: 4 | D19: 6
A20: 15 | B20: 316 | C20: 4 | D20: 8
A21: 16 | B21: 322 | C21: 4 | D21: 14
A22: 17 | B22: 345 | C22: 4 | D22: 10
A23: 18 | B23: 281 | C23: 4 | D23: 12
B24: =SUM(B15:B23) -> 2996 | C24: =SUM(C15:C23) -> 37 | D24: IND | E24: =SUM(E15:E23) -> 0 | F24: =SUM(F15:F23) -> 0 | G24: =SUM(G15:G23) -> 0 | H24: =SUM(H15:H23) -> 0 | I24: =SUM(I15:I23) -> 0 | J24: =IF((A29=27),"",(SUM(J15:J23)/SUM(J15:L23))*100) ->  | K24: =IF((A29=27),"",(SUM(K15:K23)/SUM(J15:L23))*100) ->  | L24: =IF((A29=27),"",(SUM(L15:L23)/SUM(J15:L23))*100) ->  | M24: =SUM(M15:M23) -> 0 | N24: =SUM(N15:N23) -> 0 | O24: =SUM(O15:O23) -> 0 | P24: =SUM(P15:P23) -> 0 | Q24: =SUM(Q15:Q23) -> 0 | S24: =IF(Q24=0,"",SUM(S15:S23)/Q24) ->  | V24: =SUM(V15:V23) -> 0 | W24: =ColorFunction($E$30,$E$15:$E$23) -> 0 | X24: =ColorFunction($E$31,$E$15:$E$23) -> 0 | Y24: =ColorFunction($E$32,$E$15:$E$23) -> 0 | Z24: =ColorFunction($E$33,$E$15:$E$23) -> 0 | AA24: =SUM(AA15:AA23)/(9-Q24)*100 -> 0 | AB24: =COUNTIF(P15:P23,">2") -> 0 | AC24: =IF((G24=0),"",SUM(AC15:AC23)/G24*100) -> 
B25: =SUM(B24,B14) -> 5763 | C25: =SUM(C24,C14) -> 73 | D25: TOTAL | E25: =IF(E14=0,"0",(E24+E14)) -> 0 | F25: =SUM(F14,F24) -> 0 | G25: =SUM(G24,G14) -> 0 | H25: =SUM(H24,H14) -> 0 | I25: =SUM(I24,I14) -> 0 | J25: =IF((A28=27),"",(SUM(J14,J24)/2)) ->  | K25: =IF((A28=27),"",(SUM(K14,K24)/2)) ->  | L25: =IF((A28=27),"",(SUM(L14,L24)/2)) ->  | M25: =SUM(M24,M14) -> 0 | N25: =SUM(N24,N14) -> 0 | O25: =SUM(O24,O14) -> 0 | P25: =IF(P14+P24=0,"",SUM(P24,P14)) ->  | Q25: =IF(Q14+Q24=0,"",SUM(Q24,Q14)) ->  | S25: =IF(Q25="","",SUM(S24,S14)/2) ->  | T25: =IF(N25=0,"",(O25)/N25*100) ->  | U25: =IF(Q25="","",(Q25)/18*100) ->  | V25: =IF(Q25="","",(V14+V24)/Q25) ->  | W25: =SUM(W14,W24) -> 0 | X25: =SUM(X14,X24) -> 0 | Y25: =SUM(Y14,Y24) -> 0 | Z25: =SUM(Z14,Z24) -> 0 | AA25: =SUM(AA14,AA24)/2 -> 0 | AB25: =SUM(AB14,AB24) -> 0 | AC25: =SUM(AC24,AC14)/2 -> 0
E27: Udfyld alle grønne felter med 1 for positiv eller antal i tal
A28: =COUNTBLANK(I5:K13) -> 27 | W28: Approach
A29: =COUNTBLANK(I15:K23) -> 27 | E29: Udfyld følgende farver: | S29: Holes to par | W29: Længde (m) | X29: Antal | Y29: Afstand (m)
A30: =SUM(L5:L23) -> 0 | E30: Eagles | S30: Par 3 | T30: =SUMIF(C:C,"3",E:E)/COUNTIF(C:C,3) -> 0 | W30: 45-70 | X30: =COUNTIFS(R5:R23,">=45",R5:R23,"<=70") -> 0 | Y30: =IF(X30=0,"",AVERAGEIFS(S5:S23,R5:R23,">=45",R5:R23,"<=70")) -> 
E31: Birdies | S31: Par 4 | T31: =SUMIF(C:C,"4",E:E)/COUNTIF(C:C,4) -> 0 | W31: 71-90 | X31: =COUNTIFS(R5:R23,">=71",R5:R23,"<=90") -> 0 | Y31: =IF(X31=0,"",AVERAGEIFS(S5:S23,R5:R23,">=71",R5:R23,"<=90")) -> 
E32: Bogeys | S32: Par 5 | T32: =SUMIF(C:C,"5",E:E)/COUNTIF(C:C,5) -> 0 | W32: 91-115 | X32: =COUNTIFS(R5:R23,">=91",R5:R23,"<=115") -> 0 | Y32: =IF(X32=0,"",AVERAGEIFS(S5:S23,R5:R23,">=91",R5:R23,"<=115")) -> 
E33: Doublebogeys eller værre | W33: 116-140 | X33: =COUNTIFS(R5:R23,">=116",R5:R23,"<=140") -> 0 | Y33: =IF(X33=0,"",AVERAGEIFS(S5:S23,R5:R23,">=116",R5:R23,"<=140")) -> 
S34: First 4 | T34: =IF(E25="0","",SUM(E5:E8)-SUM(C5:C8)) ->  | W34: 141-160 | X34: =COUNTIFS(R5:R23,">=141",R5:R23,"<=161") -> 0 | Y34: =IF(X34=0,"",AVERAGEIFS(S5:S23,R5:R23,">=141",R5:R23,"<=160")) -> 
S35: Last 4 | T35: =IF(E25="0","",SUM(E20:E23)-SUM(C20:C23)) ->  | W35: 161-180 | X35: =COUNTIFS(R5:R23,">=161",R5:R23,"<=180") -> 0 | Y35: =IF(X35=0,"",AVERAGEIFS(S5:S23,R5:R23,">=161",R5:R23,"<=180")) -> 
W37: Putting
W38: Længde (m) | X38: Antal | Y38: Holet | Z38: Holet (%)
W39: under 1 m | X39: =COUNTIFS(S5:S23,">=0,1",S5:S23,"<=0,9") -> 0 | Y39: =IF(X39=0,"",COUNTIFS(P5:P23,"=1",S5:S23,"<1")) ->  | Z39: =IF(X39=0,"",Y39/X39*100) -> 
W40: 1 - 1,5 | X40: =COUNTIFS(S5:S23,">=1",S5:S23,"<=1,5") -> 0 | Y40: =IF(X40=0,"",COUNTIFS(P5:P23,"=1",S5:S23,">=1",S5:S23,"<=1,5")) ->  | Z40: =IF(X40=0,"",Y40/X40*100) -> 
W41: 1,5 - 3 | X41: =COUNTIFS(S5:S23,">=1,6",S5:S23,"<=3") -> 0 | Y41: =IF(X41=0,"",COUNTIFS(P5:P23,"=1",S5:S23,">=1,6",S5:S23,"<=3")) ->  | Z41: =IF(X41=0,"",Y41/X41*100) -> 
W42: 3 - 4,5 | X42: =COUNTIFS(S5:S23,">=3,1",S5:S23,"<=4,5") -> 0 | Y42: =IF(X42=0,"",COUNTIFS(P5:P23,"=1",S5:S23,">=3,1",S5:S23,"<=4,5")) -> 
W43: 4,5 - 6 | X43: =COUNTIFS(S5:S23,">=4,6",S5:S23,"<=6") -> 0 | Y43: =IF(X43=0,"",COUNTIFS(P5:P23,"=1",S5:S23,">=4,6",S5:S23,"<=6")) -> 
W44: over 6 meter | X44: =COUNTIFS(S5:S23,">6") -> 0 | Y44: =IF(X44=0,"",COUNTIFS(P5:P23,"=1",S5:S23,">6")) -> 

Sheet Runde 30
A1: Korsør Golf Klub - 18 huller - Gul tee | J1: =IF(E25="0","0","1") -> 0 | L1: Dato: | O1: Handicap: | T1: Antal tildelte slag:
H3: Tee shot | K3: Fairway hits i % | N3: Bunker | R3: Approach shots
A4: Hul | B4: Gul tee | C4: Par | D4: HCP | E4: Score | F4: Netto | G4: Driver | H4: Wood | I4: Jern | J4: Venstre | K4: Midt | L4: Højre | M4: FB | N4: GB | O4: SS | P4: Putts | Q4: GIR | R4: Dist. to pin (m) | S4: Dist. to hole (m) | T4: % SS | U4: % GIR | V4: Putts/GIR | W4: Eagles | X4: Birdies | Y4: Bogeys | Z4: Værre | AA4: % Scramble | AB4: 3+ Putts | AC4: % Driver/Fairwayhits
A5: 1 | B5: 307 | C5: 4 | D5: 11 | V5: =IF(Q5=0,"",P5) ->  | AA5: =IF(AND(Q5="",P5=1),1,"") ->  | AC5: =IF(AND(G5=""),"",SUM(K5)) -> 
A6: 2 | B6: 323 | C6: 4 | D6: 5
A7: 3 | B7: 138 | C7: 3 | D7: 15
A8: 4 | B8: 310 | C8: 4 | D8: 13
A9: 5 | B9: 431 | C9: 5 | D9: 3
A10: 6 | B10: 312 | C10: 4 | D10: 9
A11: 7 | B11: 498 | C11: 5 | D11: 1
A12: 8 | B12: 138 | C12: 3 | D12: 17
A13: 9 | B13: 310 | C13: 4 | D13: 7
B14: =SUM(B5:B13) -> 2767 | C14: =SUM(C5:C13) -> 36 | D14: UD | E14: =SUM(E5:E13) -> 0 | F14: =SUM(F5:F13) -> 0 | G14: =SUM(G5:G13) -> 0 | H14: =SUM(H5:H13) -> 0 | I14: =SUM(I5:I13) -> 0 | J14: =IF((A28=27),"",(SUM(J5:J13)/SUM(J5:L13))*100) ->  | K14: =IF((A28=27),"",(SUM(K5:K13)/SUM(J5:L13))*100) ->  | L14: =IF((A28=27),"",(SUM(L5:L13)/SUM(J5:L13))*100) ->  | M14: =SUM(M5:M13) -> 0 | N14: =SUM(N5:N13) -> 0 | O14: =SUM(O5:O13) -> 0 | P14: =SUM(P5:P13) -> 0 | Q14: =SUM(Q5:Q13) -> 0 | S14: =IF(Q14=0,"",SUM(S5:S13)/Q14) ->  | V14: =SUM(V5:V13) -> 0 | W14: =ColorFunction($E$30,$E$5:$E$13) -> 0 | X14: =ColorFunction($E$31,$E$5:$E$13) -> 0 | Y14: =ColorFunction($E$32,$E$5:$E$13) -> 0 | Z14: =ColorFunction($E$33,$E$5:$E$13) -> 0 | AA14: =SUM(AA5:AA13)/(9-Q14)*100 -> 0 | AB14: =COUNTIF(P5:P13,">2") -> 0 | AC14: =IF((G14=0),"",SUM(AC5:AC13)/G14*100) -> 
A15: 10 | B15: 481 | C15: 5 | D15: 4 | V15: =IF(Q15=0,"",P15) ->  | AA15: =IF(AND(Q15="",P15=1),1,"") ->  | AC15: =IF(AND(G15=""),"",SUM(K15)) -> 
A16: 11 | B16: 319 | C16: 4 | D16: 16
A17: 12 | B17: 431 | C17: 5 | D17: 2
A18: 13 | B18: 122 | C18: 3 | D18: 18
A19: 14 | B19: 379 | C19: 4 | D19: 6
A20: 15 | B20: 316 | C20: 4 | D20: 8
A21: 16 | B21: 322 | C21: 4 | D21: 14
A22: 17 | B22: 345 | C22: 4 | D22: 10
A23: 18 | B23: 281 | C23: 4 | D23: 12
B24: =SUM(B15:B23) -> 2996 | C24: =SUM(C15:C23) -> 37 | D24: IND | E24: =SUM(E15:E23) -> 0 | F24: =SUM(F15:F23) -> 0 | G24: =SUM(G15:G23) -> 0 | H24: =SUM(H15:H23) -> 0 | I24: =SUM(I15:I23) -> 0 | J24: =IF((A29=27),"",(SUM(J15:J23)/SUM(J15:L23))*100) ->  | K24: =IF((A29=27),"",(SUM(K15:K23)/SUM(J15:L23))*100) ->  | L24: =IF((A29=27),"",(SUM(L15:L23)/SUM(J15:L23))*100) ->  | M24: =SUM(M15:M23) -> 0 | N24: =SUM(N15:N23) -> 0 | O24: =SUM(O15:O23) -> 0 | P24: =SUM(P15:P23) -> 0 | Q24: =SUM(Q15:Q23) -> 0 | S24: =IF(Q24=0,"",SUM(S15:S23)/Q24) ->  | V24: =SUM(V15:V23) -> 0 | W24: =ColorFunction($E$30,$E$15:$E$23) -> 0 | X24: =ColorFunction($E$31,$E$15:$E$23) -> 0 | Y24: =ColorFunction($E$32,$E$15:$E$23) -> 0 | Z24: =ColorFunction($E$33,$E$15:$E$23) -> 0 | AA24: =SUM(AA15:AA23)/(9-Q24)*100 -> 0 | AB24: =COUNTIF(P15:P23,">2") -> 0 | AC24: =IF((G24=0),"",SUM(AC15:AC23)/G24*100) -> 
B25: =SUM(B24,B14) -> 5763 | C25: =SUM(C24,C14) -> 73 | D25: TOTAL | E25: =IF(E14=0,"0",(E24+E14)) -> 0 | F25: =SUM(F14,F24) -> 0 | G25: =SUM(G24,G14) -> 0 | H25: =SUM(H24,H14) -> 0 | I25: =SUM(I24,I14) -> 0 | J25: =IF((A28=27),"",(SUM(J14,J24)/2)) ->  | K25: =IF((A28=27),"",(SUM(K14,K24)/2)) ->  | L25: =IF((A28=27),"",(SUM(L14,L24)/2)) ->  | M25: =SUM(M24,M14) -> 0 | N25: =SUM(N24,N14) -> 0 | O25: =SUM(O24,O14) -> 0 | P25: =IF(P14+P24=0,"",SUM(P24,P14)) ->  | Q25: =IF(Q14+Q24=0,"",SUM(Q24,Q14)) ->  | S25: =IF(Q25="","",SUM(S24,S14)/2) ->  | T25: =IF(N25=0,"",(O25)/N25*100) ->  | U25: =IF(Q25="","",(Q25)/18*100) ->  | V25: =IF(Q25="","",(V14+V24)/Q25) ->  | W25: =SUM(W14,W24) -> 0 | X25: =SUM(X14,X24) -> 0 | Y25: =SUM(Y14,Y24) -> 0 | Z25: =SUM(Z14,Z24) -> 0 | AA25: =SUM(AA14,AA24)/2 -> 0 | AB25: =SUM(AB14,AB24) -> 0 | AC25: =SUM(AC24,AC14)/2 -> 0
E27: Udfyld alle grønne felter med 1 for positiv eller antal i tal
A28: =COUNTBLANK(I5:K13) -> 27 | W28: Approach
A29: =COUNTBLANK(I15:K23) -> 27 | E29: Udfyld følgende farver: | S29: Holes to par | W29: Længde (m) | X29: Antal | Y29: Afstand (m)
A30: =SUM(L5:L23) -> 0 | E30: Eagles | S30: Par 3 | T30: =SUMIF(C:C,"3",E:E)/COUNTIF(C:C,3) -> 0 | W30: 45-70 | X30: =COUNTIFS(R5:R23,">=45",R5:R23,"<=70") -> 0 | Y30: =IF(X30=0,"",AVERAGEIFS(S5:S23,R5:R23,">=45",R5:R23,"<=70")) -> 
E31: Birdies | S31: Par 4 | T31: =SUMIF(C:C,"4",E:E)/COUNTIF(C:C,4) -> 0 | W31: 71-90 | X31: =COUNTIFS(R5:R23,">=71",R5:R23,"<=90") -> 0 | Y31: =IF(X31=0,"",AVERAGEIFS(S5:S23,R5:R23,">=71",R5:R23,"<=90")) -> 
E32: Bogeys | S32: Par 5 | T32: =SUMIF(C:C,"5",E:E)/COUNTIF(C:C,5) -> 0 | W32: 91-115 | X32: =COUNTIFS(R5:R23,">=91",R5:R23,"<=115") -> 0 | Y32: =IF(X32=0,"",AVERAGEIFS(S5:S23,R5:R23,">=91",R5:R23,"<=115")) -> 
E33: Doublebogeys eller værre | W33: 116-140 | X33: =COUNTIFS(R5:R23,">=116",R5:R23,"<=140") -> 0 | Y33: =IF(X33=0,"",AVERAGEIFS(S5:S23,R5:R23,">=116",R5:R23,"<=140")) -> 
S34: First 4 | T34: =IF(E25="0","",SUM(E5:E8)-SUM(C5:C8)) ->  | W34: 141-160 | X34: =COUNTIFS(R5:R23,">=141",R5:R23,"<=161") -> 0 | Y34: =IF(X34=0,"",AVERAGEIFS(S5:S23,R5:R23,">=141",R5:R23,"<=160")) -> 
S35: Last 4 | T35: =IF(E25="0","",SUM(E20:E23)-SUM(C20:C23)) ->  | W35: 161-180 | X35: =COUNTIFS(R5:R23,">=161",R5:R23,"<=180") -> 0 | Y35: =IF(X35=0,"",AVERAGEIFS(S5:S23,R5:R23,">=161",R5:R23,"<=180")) -> 
W37: Putting
W38: Længde (m) | X38: Antal | Y38: Holet | Z38: Holet (%)
W39: under 1 m | X39: =COUNTIFS(S5:S23,">=0,1",S5:S23,"<=0,9") -> 0 | Y39: =IF(X39=0,"",COUNTIFS(P5:P23,"=1",S5:S23,"<1")) ->  | Z39: =IF(X39=0,"",Y39/X39*100) -> 
W40: 1 - 1,5 | X40: =COUNTIFS(S5:S23,">=1",S5:S23,"<=1,5") -> 0 | Y40: =IF(X40=0,"",COUNTIFS(P5:P23,"=1",S5:S23,">=1",S5:S23,"<=1,5")) ->  | Z40: =IF(X40=0,"",Y40/X40*100) -> 
W41: 1,5 - 3 | X41: =COUNTIFS(S5:S23,">=1,6",S5:S23,"<=3") -> 0 | Y41: =IF(X41=0,"",COUNTIFS(P5:P23,"=1",S5:S23,">=1,6",S5:S23,"<=3")) ->  | Z41: =IF(X41=0,"",Y41/X41*100) -> 
W42: 3 - 4,5 | X42: =COUNTIFS(S5:S23,">=3,1",S5:S23,"<=4,5") -> 0 | Y42: =IF(X42=0,"",COUNTIFS(P5:P23,"=1",S5:S23,">=3,1",S5:S23,"<=4,5")) -> 
W43: 4,5 - 6 | X43: =COUNTIFS(S5:S23,">=4,6",S5:S23,"<=6") -> 0 | Y43: =IF(X43=0,"",COUNTIFS(P5:P23,"=1",S5:S23,">=4,6",S5:S23,"<=6")) -> 
W44: over 6 meter | X44: =COUNTIFS(S5:S23,">6") -> 0 | Y44: =IF(X44=0,"",COUNTIFS(P5:P23,"=1",S5:S23,">6")) -> 

Sheet DATA - nix pille
A3: Runder i alt | B3: =('Runde 1'!J1+'Runde 2'!J1+'Runde 3'!J1+'Runde 4'!J1+'Runde 5'!J1+'Runde 6'!J1+'Runde 7'!J1+'Runde 8'!J1+'Runde 9'!J1+'Runde 10'!J1+'Runde 11'!J1+'Runde 12'!J1+'Runde 13'!J1+'Runde 14'!J1+'Runde 15'!J1+'Runde 16'!J1+'Runde 17'!J1+'Runde 18'!J1+'Runde 19'!J1+'Runde 20'!J1+'Runde 21'!J1+'Runde 22'!J1+'Runde 23'!J1+'Runde 24'!J1+'Runde 25'!J1+'Runde 26'!J1+'Runde 27'!J1+'Runde 28'!J1+'Runde 29'!J1+'Runde 30'!J1) -> 0
A6: Score
A7: =IF('Runde 1'!M1="","",'Runde 1'!M1) ->  | B7: =IF('Runde 2'!M1="","",'Runde 2'!M1) ->  | C7: =IF('Runde 3'!M1="","",'Runde 3'!M1) ->  | D7: =IF('Runde 4'!M1="","",'Runde 4'!M1) ->  | E7: =IF('Runde 5'!M1="","",'Runde 5'!M1) ->  | F7: =IF('Runde 6'!M1="","",'Runde 6'!M1) ->  | G7: =IF('Runde 7'!M1="","",'Runde 7'!M1) ->  | H7: =IF('Runde 8'!M1="","",'Runde 8'!M1) ->  | I7: =IF('Runde 9'!M1="","",'Runde 9'!M1) ->  | J7: =IF('Runde 10'!M1="","",'Runde 10'!M1) ->  | K7: =IF('Runde 11'!M1="","",'Runde 11'!M1) ->  | L7: =IF('Runde 12'!M1="","",'Runde 12'!M1) ->  | M7: =IF('Runde 13'!M1="","",'Runde 13'!M1) ->  | N7: =IF('Runde 14'!M1="","",'Runde 14'!M1) ->  | O7: =IF('Runde 15'!M1="","",'Runde 15'!M1) ->  | P7: =IF('Runde 16'!M1="","",'Runde 16'!M1) ->  | Q7: =IF('Runde 17'!M1="","",'Runde 17'!M1) ->  | R7: =IF('Runde 18'!M1="","",'Runde 18'!M1) ->  | S7: =IF('Runde 19'!M1="","",'Runde 19'!M1) ->  | T7: =IF('Runde 20'!M1="","",'Runde 20'!M1) ->  | U7: =IF('Runde 21'!M1="","",'Runde 21'!M1) ->  | V7: =IF('Runde 22'!M1="","",'Runde 22'!M1) ->  | W7: =IF('Runde 23'!M1="","",'Runde 23'!M1) ->  | X7: =IF('Runde 24'!M1="","",'Runde 24'!M1) ->  | Y7: =IF('Runde 25'!M1="","",'Runde 25'!M1) ->  | Z7: =IF('Runde 26'!M1="","",'Runde 26'!M1) ->  | AA7: =IF('Runde 27'!M1="","",'Runde 27'!M1) ->  | AB7: =IF('Runde 28'!M1="","",'Runde 28'!M1) ->  | AC7: =IF('Runde 29'!M1="","",'Runde 29'!M1) ->  | AD7: =IF('Runde 30'!M1="","",'Runde 30'!M1) -> 
A8: ='Runde 1'!E25 -> 0 | B8: ='Runde 2'!E25 -> 0 | C8: ='Runde 3'!E25 -> 0 | D8: ='Runde 4'!E25 -> 0 | E8: ='Runde 5'!E25 -> 0 | F8: ='Runde 6'!E25 -> 0 | G8: ='Runde 7'!E25 -> 0 | H8: ='Runde 8'!E25 -> 0 | I8: ='Runde 9'!E25 -> 0 | J8: ='Runde 10'!E25 -> 0 | K8: ='Runde 11'!E25 -> 0 | L8: ='Runde 12'!E25 -> 0 | M8: ='Runde 13'!E25 -> 0 | N8: ='Runde 14'!E25 -> 0 | O8: ='Runde 15'!E25 -> 0 | P8: ='Runde 16'!E25 -> 0 | Q8: ='Runde 17'!E25 -> 0 | R8: ='Runde 18'!E25 -> 0 | S8: ='Runde 19'!E25 -> 0 | T8: ='Runde 20'!E25 -> 0 | U8: ='Runde 21'!E25 -> 0 | V8: ='Runde 22'!E25 -> 0 | W8: ='Runde 23'!E25 -> 0 | X8: ='Runde 24'!E25 -> 0 | Y8: ='Runde 25'!E25 -> 0 | Z8: ='Runde 26'!E25 -> 0 | AA8: ='Runde 27'!E25 -> 0 | AB8: ='Runde 28'!E25 -> 0 | AC8: ='Runde 29'!E25 -> 0 | AD8: ='Runde 30'!E25 -> 0
A10: % GIR
A11: Runde 1 | B11: Runde 2 | C11: Runde 3 | D11: Runde 4 | E11: Runde 5 | F11: Runde 6 | G11: Runde 7 | H11: Runde 8 | I11: Runde 9 | J11: Runde 10 | K11: Runde 11 | L11: Runde 12 | M11: Runde 13 | N11: Runde 14 | O11: Runde 15 | P11: Runde 16 | Q11: Runde 17 | R11: Runde 18 | S11: Runde 19 | T11: Runde 20 | U11: Runde 21 | V11: Runde 22 | W11: Runde 23 | X11: Runde 24 | Y11: Runde 25 | Z11: Runde 26 | AA11: Runde 27 | AB11: Runde 28 | AC11: Runde 29 | AD11: Runde 30
A12: ='Runde 1'!U25 ->  | B12: ='Runde 2'!U25 ->  | C12: ='Runde 3'!U25 ->  | D12: ='Runde 4'!U25 ->  | E12: ='Runde 5'!U25 ->  | F12: ='Runde 6'!U25 ->  | G12: ='Runde 7'!U25 ->  | H12: ='Runde 8'!U25 ->  | I12: ='Runde 9'!U25 ->  | J12: ='Runde 10'!U25 ->  | K12: ='Runde 11'!U25 ->  | L12: ='Runde 12'!U25 ->  | M12: ='Runde 13'!U25 ->  | N12: ='Runde 14'!U25 ->  | O12: ='Runde 15'!U25 ->  | P12: ='Runde 16'!U25 ->  | Q12: ='Runde 17'!U25 ->  | R12: ='Runde 18'!U25 ->  | S12: ='Runde 19'!U25 ->  | T12: ='Runde 20'!U25 ->  | U12: ='Runde 21'!U25 ->  | V12: ='Runde 22'!U25 ->  | W12: ='Runde 23'!U25 ->  | X12: ='Runde 24'!U25 ->  | Y12: ='Runde 25'!U25 ->  | Z12: ='Runde 26'!U25 ->  | AA12: ='Runde 27'!U25 ->  | AB12: ='Runde 28'!U25 ->  | AC12: ='Runde 29'!U25 ->  | AD12: ='Runde 30'!U25 -> 
A14: % Fairwayhits
A15: Runde 1 | B15: Runde 2 | C15: Runde 3 | D15: Runde 4 | E15: Runde 5 | F15: Runde 6 | G15: Runde 7 | H15: Runde 8 | I15: Runde 9 | J15: Runde 10 | K15: Runde 11 | L15: Runde 12 | M15: Runde 13 | N15: Runde 14 | O15: Runde 15 | P15: Runde 16 | Q15: Runde 17 | R15: Runde 18 | S15: Runde 19 | T15: Runde 20 | U15: Runde 21 | V15: Runde 22 | W15: Runde 23 | X15: Runde 24 | Y15: Runde 25 | Z15: Runde 26 | AA15: Runde 27 | AB15: Runde 28 | AC15: Runde 29 | AD15: Runde 30
A16: ='Runde 1'!K25 ->  | B16: ='Runde 2'!K25 ->  | C16: ='Runde 3'!K25 ->  | D16: ='Runde 4'!K25 ->  | E16: ='Runde 5'!K25 ->  | F16: ='Runde 6'!K25 ->  | G16: ='Runde 7'!K25 ->  | H16: ='Runde 8'!K25 ->  | I16: ='Runde 9'!K25 ->  | J16: ='Runde 10'!K25 ->  | K16: ='Runde 11'!K25 ->  | L16: ='Runde 12'!K25 ->  | M16: ='Runde 13'!K25 ->  | N16: ='Runde 14'!K25 ->  | O16: ='Runde 15'!K25 ->  | P16: ='Runde 16'!K25 ->  | Q16: ='Runde 17'!K25 ->  | R16: ='Runde 18'!K25 ->  | S16: ='Runde 19'!K25 ->  | T16: ='Runde 20'!K25 ->  | U16: ='Runde 21'!K25 ->  | V16: ='Runde 22'!K25 ->  | W16: ='Runde 23'!K25 ->  | X16: ='Runde 24'!K25 ->  | Y16: ='Runde 25'!K25 ->  | Z16: ='Runde 26'!K25 ->  | AA16: ='Runde 27'!K25 ->  | AB16: ='Runde 28'!K25 ->  | AC16: ='Runde 29'!K25 ->  | AD16: ='Runde 30'!K25 -> 
A18: Putts
A19: Runde 1 | B19: Runde 2 | C19: Runde 3 | D19: Runde 4 | E19: Runde 5 | F19: Runde 6 | G19: Runde 7 | H19: Runde 8 | I19: Runde 9 | J19: Runde 10 | K19: Runde 11 | L19: Runde 12 | M19: Runde 13 | N19: Runde 14 | O19: Runde 15 | P19: Runde 16 | Q19: Runde 17 | R19: Runde 18 | S19: Runde 19 | T19: Runde 20 | U19: Runde 21 | V19: Runde 22 | W19: Runde 23 | X19: Runde 24 | Y19: Runde 25 | Z19: Runde 26 | AA19: Runde 27 | AB19: Runde 28 | AC19: Runde 29 | AD19: Runde 30
A20: ='Runde 1'!P25 ->  | B20: ='Runde 2'!P25 ->  | C20: ='Runde 3'!P25 ->  | D20: ='Runde 4'!P25 ->  | E20: ='Runde 5'!P25 ->  | F20: ='Runde 6'!P25 ->  | G20: ='Runde 7'!P25 ->  | H20: ='Runde 8'!P25 ->  | I20: ='Runde 9'!P25 ->  | J20: ='Runde 10'!P25 ->  | K20: ='Runde 11'!P25 ->  | L20: ='Runde 12'!P25 ->  | M20: ='Runde 13'!P25 ->  | N20: ='Runde 14'!P25 ->  | O20: ='Runde 15'!P25 ->  | P20: ='Runde 16'!P25 ->  | Q20: ='Runde 17'!P25 ->  | R20: ='Runde 18'!P25 ->  | S20: ='Runde 19'!P25 ->  | T20: ='Runde 20'!P25 ->  | U20: ='Runde 21'!P25 ->  | V20: ='Runde 22'!P25 ->  | W20: ='Runde 23'!P25 ->  | X20: ='Runde 24'!P25 ->  | Y20: ='Runde 25'!P25 ->  | Z20: ='Runde 26'!P25 ->  | AA20: ='Runde 27'!P25 ->  | AB20: ='Runde 28'!P25 ->  | AC20: ='Runde 29'!P25 ->  | AD20: ='Runde 30'!P25 -> 
A22: Bunkers totalt | C22: =IF(B3=0,"",SUM('Runde 1'!N25,'Runde 2'!N25,'Runde 3'!N25,'Runde 4'!N25,'Runde 5'!N25,'Runde 6'!U35,'Runde 7'!N25,'Runde 8'!N25,'Runde 9'!N25,'Runde 10'!N25,'Runde 11'!N25,'Runde 12'!N25,'Runde 13'!N25,'Runde 14'!N25,'Runde 15'!N25,'Runde 16'!N25,'Runde 17'!N25,'Runde 18'!N25,'Runde 19'!N25,'Runde 20'!N25,'Runde 21'!N25,'Runde 22'!N25,'Runde 23'!N25,'Runde 24'!N25,'Runde 25'!N25,'Runde 26'!N25,'Runde 27'!N25,'Runde 27'!N25,'Runde 28'!N25,'Runde 29'!N25,'Runde 30'!N25)) -> 
A23: Sandsaves totalt | C23: =IF(B3=0,"",SUM('Runde 1'!O25,'Runde 2'!O25,'Runde 3'!O25,'Runde 4'!O25,'Runde 5'!O25,'Runde 6'!U35,'Runde 7'!O25,'Runde 8'!O25,'Runde 9'!O25,'Runde 10'!O25,'Runde 11'!O25,'Runde 12'!O25,'Runde 13'!O25,'Runde 14'!O25,'Runde 15'!O25,'Runde 16'!O25,'Runde 17'!O25,'Runde 18'!O25,'Runde 19'!O25,'Runde 20'!O25,'Runde 21'!O25,'Runde 22'!O25,'Runde 23'!O25,'Runde 24'!O25,'Runde 25'!O25,'Runde 26'!O25,'Runde 27'!O25,'Runde 27'!O25,'Runde 28'!O25,'Runde 29'!O25,'Runde 30'!O25)) -> 
